﻿Department Family,Entity,Date,Expense Type,Expense Area,Supplier,Transaction Number,AP Amount,VAT Registration Number,Purchase Invoice Number
Department of Health,Worcestershire Acute Hospitals NHST,2017-01-31,Med & Surg Equip Disp,Oral Surg Out-Patients,3M UNITEK UK,16331182,86.1,362586629,1275155
Department of Health,Worcestershire Acute Hospitals NHST,2017-01-31,Surg Instruments General,Oral Surg Out-Patients,3M UNITEK UK,16331182,-14.35,362586629,1275155
Department of Health,Worcestershire Acute Hospitals NHST,2017-01-31,Med & Surg Equip General,Ophthalmic Nursing,ALTOMED LTD,16814568,483.5,178872994,301796
Department of Health,Worcestershire Acute Hospitals NHST,2017-01-31,Med & Surg Equip General,T&O Medical,TJ SMITH & NEPHEW LTD,18124772,1517.93,,0915291082
Department of Health,Worcestershire Acute Hospitals NHST,2017-01-31,Med & Surg Equip General,T&O Medical,B BRAUN MEDICAL LTD,19373713,5940,,0328272051
Department of Health,Worcestershire Acute Hospitals NHST,2017-01-31,Med & Surg Equip Disp,Cardiac Cath Lab,BOSTON SCIENTIFIC LTD,19454265,134.4,896105403,7161517008
Department of Health,Worcestershire Acute Hospitals NHST,2017-01-31,Stents,Cardiac Cath Lab,BOSTON SCIENTIFIC LTD,19454265,-8.4,896105403,7161517008
Department of Health,Worcestershire Acute Hospitals NHST,2017-01-31,Med & Surg Equip Disp,Cardiac Cath Lab,TERUMO UK LTD,19644385,47,804941042,3876011945
Department of Health,Worcestershire Acute Hospitals NHST,2017-01-31,X-Ray Equipment Purchase,Radiology Countwide,DE LAGE LANDEN LEASING LTD,20235407,6245.8,621784929,95611600002953
Department of Health,Worcestershire Acute Hospitals NHST,2017-01-31,Office Equipment Hire,Occupational Health,MARLER HALEY,20465242,-5,972746383,001927
Department of Health,Worcestershire Acute Hospitals NHST,2017-01-31,Stationery,Occupational Health,MARLER HALEY,20465242,30,972746383,001927
Department of Health,Worcestershire Acute Hospitals NHST,2017-01-31,Laboratory External Tests,Radiology Med Staff WRH,MEDICA REPORTING LTD,20484966,-564,858701107,8638
Department of Health,Worcestershire Acute Hospitals NHST,2017-01-31,Laboratory External Tests,Radiology Med Staff WRH,MEDICA REPORTING LTD,20484981,-94,858701107,8532
Department of Health,Worcestershire Acute Hospitals NHST,2017-01-31,Stationery,Breast Screening TCS,SYNERTEC LTD,20694808,1396.92,736676494,QS129103
Department of Health,Worcestershire Acute Hospitals NHST,2017-01-31,Cleaning Equipment,Endoscopy,CANTEL UK LTD,20695298,-233,,OPI013647
Department of Health,Worcestershire Acute Hospitals NHST,2017-01-31,Med & Surg Equip Disp,Endoscopy,CANTEL UK LTD,20695298,1398,,OPI013647
Department of Health,Worcestershire Acute Hospitals NHST,2017-01-31,Med Equip Additions,Balance Sheet,COMPUTACENTER (UK) LTD,20729825,3000,490334648,3880984858
Department of Health,Worcestershire Acute Hospitals NHST,2017-01-31,Printing Costs,Porters- No Spec,COLOUR CONNECTION,20784613,64.68,,1008840
Department of Health,Worcestershire Acute Hospitals NHST,2017-01-31,Med Equip Additions,Balance Sheet,COMPUTACENTER (UK) LTD,20893906,327.48,490334648,3880999603
Department of Health,Worcestershire Acute Hospitals NHST,2017-01-31,Med Equip Additions,Balance Sheet,COMPUTACENTER (UK) LTD,20893909,889.06,490334648,3880999601
Department of Health,Worcestershire Acute Hospitals NHST,2017-01-31,Med Equip Additions,Balance Sheet,COMPUTACENTER (UK) LTD,20893910,138.63,490334648,3880999602
Department of Health,Worcestershire Acute Hospitals NHST,2017-01-31,Bldg/Eng Equip Maint/Rep,Estates Bewdley Road,NEWEY & EYRE,20898041,501.82,614213680,430858200
Department of Health,Worcestershire Acute Hospitals NHST,2017-01-31,Hearing Aids: Repairs,Audiology- Alex,PHONAK UK LTD,20898245,84,704007779,2591590021
Department of Health,Worcestershire Acute Hospitals NHST,2017-01-31,Prostheses,T&O Medical,JOHNSON & JOHNSON MEDICAL LTD,20906195,4548.99,592926302,16261883
Department of Health,Worcestershire Acute Hospitals NHST,2017-01-31,Med & Surg Equip General,Cardiac Cath Lab,VASCULAR PERSPECTIVES LTD,20959824,570,817304152,35839
Department of Health,Worcestershire Acute Hospitals NHST,2017-01-31,Laboratory External Tests,Radiology Med Staff WRH,MEDICA REPORTING LTD,20984975,-94,858701107,9248
Department of Health,Worcestershire Acute Hospitals NHST,2017-01-31,Provisions,Catering Dept-No Spec,WORCESTER PRODUCE,21002899,99.01,,W157685
Department of Health,Worcestershire Acute Hospitals NHST,2017-01-31,Provisions,Catering Dept-No Spec,WORCESTER PRODUCE,21002930,167,,W155776
Department of Health,Worcestershire Acute Hospitals NHST,2017-01-31,Provisions,Catering Dept-No Spec,WORCESTER PRODUCE,21006933,99.65,,W154838
Department of Health,Worcestershire Acute Hospitals NHST,2017-01-31,Provisions,Catering Dept-No Spec,WORCESTER PRODUCE,21006937,104.91,,W154837
Department of Health,Worcestershire Acute Hospitals NHST,2017-01-31,Provisions,Catering Dept-No Spec,WORCESTER PRODUCE,21006938,171.22,,W162127
Department of Health,Worcestershire Acute Hospitals NHST,2017-01-31,Provisions,Catering Dept-No Spec,WORCESTER PRODUCE,21006940,142.01,,W162126
Department of Health,Worcestershire Acute Hospitals NHST,2017-01-31,Provisions,Catering Dept-No Spec,WORCESTER PRODUCE,21024201,235.11,,W162896
Department of Health,Worcestershire Acute Hospitals NHST,2017-01-31,Laboratory Reagents,Haematology Blood Bank,ORTHO CLINICAL DIAGNOSTICS,21024221,903,538056733,16017382
Department of Health,Worcestershire Acute Hospitals NHST,2017-01-31,Laboratory Reagents,Haematology Blood Bank,ORTHO CLINICAL DIAGNOSTICS,21024277,240.8,538056733,16017824
Department of Health,Worcestershire Acute Hospitals NHST,2017-01-31,Laboratory Reagents,Haematology Blood Bank,ORTHO CLINICAL DIAGNOSTICS,21024281,240.8,538056733,16018379
Department of Health,Worcestershire Acute Hospitals NHST,2017-01-31,Laboratory Reagents,Haematology Blood Bank,ORTHO CLINICAL DIAGNOSTICS,21024387,1384.6,538056733,16018770
Department of Health,Worcestershire Acute Hospitals NHST,2017-01-31,Furniture & Fittings,Physiotherapy,ARGOS BUSINESS SOLUTIONS,21025267,-202.74,145899025,01474402
Department of Health,Worcestershire Acute Hospitals NHST,2017-01-31,Laboratory Reagents,Haematology Blood Bank,ORTHO CLINICAL DIAGNOSTICS,21025319,423.92,538056733,16018005
Department of Health,Worcestershire Acute Hospitals NHST,2017-01-31,Laboratory Reagents,Haematology Blood Bank,ORTHO CLINICAL DIAGNOSTICS,21025323,206.46,538056733,16016183
Department of Health,Worcestershire Acute Hospitals NHST,2017-01-31,Laboratory Reagents,Haematology Blood Bank,ORTHO CLINICAL DIAGNOSTICS,21025358,836.84,538056733,16019665
Department of Health,Worcestershire Acute Hospitals NHST,2017-01-31,Laboratory Reagents,Haematology Blood Bank,ORTHO CLINICAL DIAGNOSTICS,21025365,206.46,538056733,16018443
Department of Health,Worcestershire Acute Hospitals NHST,2017-01-31,Stationery,Pharmacy - No Spec,MIDCO PRINT & PACKAGING LTD,21074069,730,113767669,S083622
Department of Health,Worcestershire Acute Hospitals NHST,2017-01-31,Stationery,TACO DMT,LYRECO UK LTD,21077984,-67.93,594371315,6901019118
Department of Health,Worcestershire Acute Hospitals NHST,2017-01-31,Engineering Contracts,Engineering- No Special,APPROVED AIR LTD,21108675,1250,,844
Department of Health,Worcestershire Acute Hospitals NHST,2017-01-31,Materials - Building,Engineering- No Special,APPROVED AIR LTD,21108675,1250,,844
Department of Health,Worcestershire Acute Hospitals NHST,2017-01-31,Provisions,Catering Dept-No Spec,WORCESTER PRODUCE,21109491,177.92,,W163980
Department of Health,Worcestershire Acute Hospitals NHST,2017-01-31,Patients Appl: Purchase,General Medicine KGH,WILLS WIGS LTD,21109784,-20,946433801,22556
Department of Health,Worcestershire Acute Hospitals NHST,2017-01-31,Patients Appl: Purchase,General Medicine Worcs,WILLS WIGS LTD,21109784,120,946433801,22556
Department of Health,Worcestershire Acute Hospitals NHST,2017-01-31,Med & Surg Equip Disp,Beech B,WARWICK SASCO LTD,21135573,-98.88,307568447,0000003744
Department of Health,Worcestershire Acute Hospitals NHST,2017-01-31,Patients Appl: Purchase,GP Direct Access Worcs,HUGH STEEPER LTD,21135781,1313.34,662075931,SIN1611OT029323
Department of Health,Worcestershire Acute Hospitals NHST,2017-01-31,Patients Appl: Repairs,GP Direct Access Worcs,HUGH STEEPER LTD,21135781,100,662075931,SIN1611OT029323
Department of Health,Worcestershire Acute Hospitals NHST,2017-01-31,Computer Maintenance,Computacenter,COMPUTACENTER (UK) LTD,21158686,119513,490334648,3780048152
Department of Health,Worcestershire Acute Hospitals NHST,2017-01-31,Ext Contr Laundry,Pharmacy - No Spec,BERENDSEN CLEANROOM SERVICES LTD,21173332,716.96,GB107232747,10003759
Department of Health,Worcestershire Acute Hospitals NHST,2017-01-31,Med & Surg Equip General,Ophthalmology,GRAFTON OPTICAL CO LTD,21174983,1626,490400177,76309
Department of Health,Worcestershire Acute Hospitals NHST,2017-01-31,Breast Care Prosthesis,Main Theatre,NAGOR LTD,21191940,-2138.4,942111756,0010001227
Department of Health,Worcestershire Acute Hospitals NHST,2017-01-31,Breast Care Prosthesis,Main Theatre,NAGOR LTD,21191941,-1140.48,942111756,0010001226
Department of Health,Worcestershire Acute Hospitals NHST,2017-01-31,Med & Surg Equip Disp,Radiology Dept WRH,COOK (UK) LTD,21192261,105.5,,16071895
Department of Health,Worcestershire Acute Hospitals NHST,2017-01-31,NonRes Bldg Additions,Balance Sheet,HARROLD JONES SERVICES,21201909,300,,31919
Department of Health,Worcestershire Acute Hospitals NHST,2017-01-31,Breast Care Prosthesis,Alex Theatre - Scrub,NAGOR LTD,21210807,-9.8,942111756,0010012925
Department of Health,Worcestershire Acute Hospitals NHST,2017-01-31,Med & Surg Equip General,Alex Theatre - Scrub,NAGOR LTD,21210807,58.8,942111756,0010012925
Department of Health,Worcestershire Acute Hospitals NHST,2017-01-31,Dressings,Alex Theatre - Scrub,BUNZL HEALTHCARE,21230901,-7.04,286014266,OPI017276Y16
Department of Health,Worcestershire Acute Hospitals NHST,2017-01-31,Med & Surg Equip General,Alex Theatre - Scrub,BUNZL HEALTHCARE,21230901,42.23,286014266,OPI017276Y16
Department of Health,Worcestershire Acute Hospitals NHST,2017-01-31,NonRes Bldg Additions,Balance Sheet,DAKRO ENVIRONMENTAL LTD,21235922,30,729385106,0000066463
Department of Health,Worcestershire Acute Hospitals NHST,2017-01-31,Printing Costs,TB Nursing TCS,TB ALERT,21236974,134.4,,629
Department of Health,Worcestershire Acute Hospitals NHST,2017-01-31,Patients Appl: Purchase,GP Direct Access KGH,DJO UK LTD,21241937,153.6,785086883,406369
Department of Health,Worcestershire Acute Hospitals NHST,2017-01-31,Patients Appl: Purchase,Trauma + Orthopaed KGH,DJO UK LTD,21241937,-25.6,785086883,406369
Department of Health,Worcestershire Acute Hospitals NHST,2017-01-31,Medical Gases,Estates-No Spec,BOC LTD,21242171,682.47,226556555,3039090900
Department of Health,Worcestershire Acute Hospitals NHST,2017-01-31,Staff Uniforms & Clothing,Ophthalmology,MELTEMI LTD,21263686,-68.4,,INV1710173
Department of Health,Worcestershire Acute Hospitals NHST,2017-01-31,Laboratory Quality Ctrl,Biochemistry,RANDOX LABORATORIES LTD,21272218,4881.96,353030400,OPI353300
Department of Health,Worcestershire Acute Hospitals NHST,2017-01-31,Laboratory Reagents,Haematology Blood Bank,ORTHO CLINICAL DIAGNOSTICS,21289863,1395.6,538056733,16020631
Department of Health,Worcestershire Acute Hospitals NHST,2017-01-31,Lab Equip Maint / Repairs,Haematology Blood Bank,ORTHO CLINICAL DIAGNOSTICS,21289865,876.48,538056733,16020463
Department of Health,Worcestershire Acute Hospitals NHST,2017-01-31,Laboratory Reagents,Haematology Blood Bank,ORTHO CLINICAL DIAGNOSTICS,21290371,836.84,538056733,16021749
Department of Health,Worcestershire Acute Hospitals NHST,2017-01-31,Stationery,Ward 1 KTC,LYRECO UK LTD,21307547,-57.89,594371315,6901028118
Department of Health,Worcestershire Acute Hospitals NHST,2017-01-31,Breast Care Prosthesis,Main Theatre,NAGOR LTD,21307564,-712.8,942111756,0010001242
Department of Health,Worcestershire Acute Hospitals NHST,2017-01-31,X-Ray Equipment Purchase,Radiology Countwide,DE LAGE LANDEN LEASING LTD,21307602,6245.8,621784929,95611600004283
Department of Health,Worcestershire Acute Hospitals NHST,2017-01-31,Stationery,HSDU- Multi-Specialty,LYRECO UK LTD,21320759,-43.42,594371315,6901028277
Department of Health,Worcestershire Acute Hospitals NHST,2017-01-31,Med & Surg Equip General,Other Pass Throughs,SYNERGY HEALTH (UK) LTD,21341698,490.16,706163456,OPI778951
Department of Health,Worcestershire Acute Hospitals NHST,2017-01-31,Breast Care Prosthesis,Main Theatre,NAGOR LTD,21343351,-318,942111756,0010001262
Department of Health,Worcestershire Acute Hospitals NHST,2017-01-31,Med & Surg Equip General,Theatre,PNN MEDICAL,21343788,2835,,DKSI1004497
Department of Health,Worcestershire Acute Hospitals NHST,2017-01-31,Med & Surg Equip General,Theatre,PNN MEDICAL,21343789,2835,,DKS11004497
Department of Health,Worcestershire Acute Hospitals NHST,2017-01-31,Bldg/Eng Equip Maint/Rep,Estates Bewdley Road,SCREWFIX DIRECT,21349664,216.6,232555575,0759488282
Department of Health,Worcestershire Acute Hospitals NHST,2017-01-31,Dressings,Other Pass Throughs,SYNERGY HEALTH (UK) LTD,21349674,215.1,706163456,OPI778952
Department of Health,Worcestershire Acute Hospitals NHST,2017-01-31,Laboratory External Tests,Radiology Med Staff WRH,MEDICA REPORTING LTD,21349775,21720.06,858701107,9238
Department of Health,Worcestershire Acute Hospitals NHST,2017-01-31,Staff Uniforms & Clothing,Internal Recharges,MELTEMI LTD,21349782,669.75,,INV1713680
Department of Health,Worcestershire Acute Hospitals NHST,2017-01-31,Patients Appl: Purchase,Rheumatology Worc,DACEY LTD,21351060,75.1,433460177,884400
Department of Health,Worcestershire Acute Hospitals NHST,2017-01-31,Med & Surg Equip General,T&O Medical,NHS BLOOD & TRANSPLANT,21371490,2250,654961603,611918
Department of Health,Worcestershire Acute Hospitals NHST,2017-01-31,Staff Uniforms & Clothing,Internal Recharges,MWUK ACQUISITION CO LTD T/A ALEXANDRA,21380101,15.9,927156121,OLSINV03902296
Department of Health,Worcestershire Acute Hospitals NHST,2017-01-31,Med & Surg Equip General,Antenatal clinic,DE LAGE LANDEN LEASING LTD,21396466,8118.08,621784929,95611600004444
Department of Health,Worcestershire Acute Hospitals NHST,2017-01-31,Bldg/Eng Equip Maint/Rep,Estates Bewdley Road,CITY ELECTRICAL FACTORS LTD,21398077,28.08,243901868,KID267171
Department of Health,Worcestershire Acute Hospitals NHST,2017-01-31,Bldg/Eng Equip Maint/Rep,Estates Bewdley Road,CITY ELECTRICAL FACTORS LTD,21398079,42.11,243901868,KID267237
Department of Health,Worcestershire Acute Hospitals NHST,2017-01-31,Bldg/Eng Equip Maint/Rep,Estates Bewdley Road,CITY ELECTRICAL FACTORS LTD,21398080,127.5,243901868,KID267157
Department of Health,Worcestershire Acute Hospitals NHST,2017-01-31,Bldg/Eng Equip Maint/Rep,Estates Bewdley Road,CITY ELECTRICAL FACTORS LTD,21398094,162.23,243901868,KID267878
Department of Health,Worcestershire Acute Hospitals NHST,2017-01-31,Bldg/Eng Equip Maint/Rep,Estates Bewdley Road,CITY ELECTRICAL FACTORS LTD,21398095,81,243901868,KID267933
Department of Health,Worcestershire Acute Hospitals NHST,2017-01-31,Bldg/Eng Equip Maint/Rep,Estates Bewdley Road,CITY ELECTRICAL FACTORS LTD,21398096,48.32,243901868,KID267821
Department of Health,Worcestershire Acute Hospitals NHST,2017-01-31,Surg Instruments General,T&O Medical,TJ SMITH AND NEPHEW,21398108,1310.11,,0915569215
Department of Health,Worcestershire Acute Hospitals NHST,2017-01-31,Med & Surg Equip General,T&O Medical,TJ SMITH AND NEPHEW,21398110,1634.04,,0915571253
Department of Health,Worcestershire Acute Hospitals NHST,2017-01-31,Disabled Living Aid,Occupational Therapy,OTS LTD,21398119,152.4,687321904,0000017107
Department of Health,Worcestershire Acute Hospitals NHST,2017-01-31,Med & Surg Equip Disp,Alex Theatre - Scrub,JOHNSON & JOHNSON MEDICAL LTD,21398124,254.86,592926302,16298545
Department of Health,Worcestershire Acute Hospitals NHST,2017-01-31,Materials - Building,Engineering- No Special,SCREWFIX DIRECT,21398129,187.31,232555575,0761685677
Department of Health,Worcestershire Acute Hospitals NHST,2017-01-31,Med & Surg Equip Disp,Ophthalmic Nursing,DORC LTD,21398132,279.6,,IN64443
Department of Health,Worcestershire Acute Hospitals NHST,2017-01-31,Stents,Cardiac Cath Lab,TERUMO UK LTD,21398138,360,804941042,3876022854
Department of Health,Worcestershire Acute Hospitals NHST,2017-01-31,Stents,Cardiac Cath Lab,TERUMO UK LTD,21398141,360,804941042,3876020954
Department of Health,Worcestershire Acute Hospitals NHST,2017-01-31,Bldg/Eng Equip Maint/Rep,Estates Bewdley Road,SCREWFIX DIRECT,21398147,96.75,232555575,0761685685
Department of Health,Worcestershire Acute Hospitals NHST,2017-01-31,Med & Surg Equip General,Rheumatology Worc,PATTERSON MEDICAL LTD,21398150,56.14,945765283,5144238713
Department of Health,Worcestershire Acute Hospitals NHST,2017-01-31,Surg Instruments General,Dental Surg,FORESTADENT LTD,21398153,766.62,322362100,SIN039715
Department of Health,Worcestershire Acute Hospitals NHST,2017-01-31,Prostheses,T&O Medical,WRIGHT MEDICAL UK LTD,21398167,474.72,677219993,162776RI
Department of Health,Worcestershire Acute Hospitals NHST,2017-01-31,Bldg/Eng Equip Maint/Rep,Estates Bewdley Road,B & Q FINANCIAL SERVICES LTD,21398171,123.74,,0761163239
Department of Health,Worcestershire Acute Hospitals NHST,2017-01-31,Bldg/Eng Equip Maint/Rep,Estates Bewdley Road,SCREWFIX DIRECT,21398175,60.36,232555575,0760592330
Department of Health,Worcestershire Acute Hospitals NHST,2017-01-31,Bldg/Eng Equip Maint/Rep,Estates Bewdley Road,SCREWFIX DIRECT,21398179,48.34,232555575,0760086982
Department of Health,Worcestershire Acute Hospitals NHST,2017-01-31,Med & Surg Equip General,HSDU- Multi-Specialty,RB MEDICAL ENGINEERING LTD,21398182,1247.52,763025545,56034
Department of Health,Worcestershire Acute Hospitals NHST,2017-01-31,Computer Maintenance,Computacenter,COMPUTACENTER (UK) LTD,21398188,18953,490334648,3780049305
Department of Health,Worcestershire Acute Hospitals NHST,2017-01-31,Computer Maintenance,Computacenter,COMPUTACENTER (UK) LTD,21398193,8151,490334648,3780049307
Department of Health,Worcestershire Acute Hospitals NHST,2017-01-31,Catering Equip Disposable,Catering Dept-No Spec,NOBISCO LTD,21398197,119.52,,463519
Department of Health,Worcestershire Acute Hospitals NHST,2017-01-31,Cleaning Materials,Catering Dept-No Spec,NOBISCO LTD,21398197,57.59,,463519
Department of Health,Worcestershire Acute Hospitals NHST,2017-01-31,Hardware & Crockery,Catering Dept-No Spec,NOBISCO LTD,21398197,22.71,,463519
Department of Health,Worcestershire Acute Hospitals NHST,2017-01-31,Protective Clothing,Catering Dept-No Spec,NOBISCO LTD,21398197,4.32,,463519
Department of Health,Worcestershire Acute Hospitals NHST,2017-01-31,Medical Gases,Estates-No Spec,BOC LTD,21398200,572.34,226556555,3039163012
Department of Health,Worcestershire Acute Hospitals NHST,2017-01-31,Catering Equip Disposable,Catering Dept-No Spec,FOODCARE SYSTEMS LTD,21398208,422.4,599300708,INV03732D
Department of Health,Worcestershire Acute Hospitals NHST,2017-01-31,Prostheses,T&O Medical,WRIGHT MEDICAL UK LTD,21398215,358.8,677219993,163104RI
Department of Health,Worcestershire Acute Hospitals NHST,2017-01-31,Cleaning Materials,Domestic Serv,NOBISCO LTD,21398220,7344.68,,463671
Department of Health,Worcestershire Acute Hospitals NHST,2017-01-31,Cleaning Materials,Domestics-No Spec,NOBISCO LTD,21398224,745.92,,463233
Department of Health,Worcestershire Acute Hospitals NHST,2017-01-31,Med & Surg Equip Disp,Dental Laboratory,TECHNOVENT LTD,21398232,337.28,545583716,110105
Department of Health,Worcestershire Acute Hospitals NHST,2017-01-31,Med & Surg Equip General,Ward 18- Urology,SYNERGY HEALTH (UK) LTD,21398233,107.42,706163456,OPI779035
Department of Health,Worcestershire Acute Hospitals NHST,2017-01-31,Med & Surg Equip Disp,Beech 1 - SCDU & SHDU,U GROUP LTD,21398235,456,113209125,10250873
Department of Health,Worcestershire Acute Hospitals NHST,2017-01-31,Computer Maintenance,Computacenter,COMPUTACENTER (UK) LTD,21398238,125424,490334648,3780049290
Department of Health,Worcestershire Acute Hospitals NHST,2017-01-31,Med & Surg Equip Disp,Accident + Emergency,COLOPLAST LTD,21398244,552,781498779,16025903
Department of Health,Worcestershire Acute Hospitals NHST,2017-01-31,Materials - Building,Building- No Spec,PPG ARCHITECTURAL COATINGS UK LTD,21398247,76.99,567166219,4469379165
Department of Health,Worcestershire Acute Hospitals NHST,2017-01-31,"Books, Journals & Subscr",Knowledge Mgt,WOLTERS KLUWER (UK) LTD,21402826,13148.4,710935745,OL41776
Department of Health,Worcestershire Acute Hospitals NHST,2017-01-31,Disabled Living Aid,Occupational Therapy,OTS LTD,21402828,95.39,687321904,0000017185
Department of Health,Worcestershire Acute Hospitals NHST,2017-01-31,Med & Surg Equip Disp,Beech 1 - SCDU & SHDU,EMERGENT CROWN,21402830,680.4,516163955,114625
Department of Health,Worcestershire Acute Hospitals NHST,2017-01-31,Patients Appl: Purchase,GP Direct Access Worcs,CHANECO,21402833,209.7,294088133,1557601
Department of Health,Worcestershire Acute Hospitals NHST,2017-01-31,Patients Appl: Purchase,Dental Surg,FORESTADENT LTD,21402836,30.96,322362100,SIN039750
Department of Health,Worcestershire Acute Hospitals NHST,2017-01-31,Furniture & Fittings,Ward 6 & CCU,EMERGENT CROWN CONTRACT OFFICE FURNISHING LTD,21402839,147.47,516163955,127069
Department of Health,Worcestershire Acute Hospitals NHST,2017-01-31,Dressings,Oral MaxFac-MedStaff Alex,ASPEN MEDICAL EUROPE LTD,21402842,28.63,111150247,218123
Department of Health,Worcestershire Acute Hospitals NHST,2017-01-31,Stents,Cardiac Cath Lab,TERUMO UK LTD,21402844,780,804941042,3876029903
Department of Health,Worcestershire Acute Hospitals NHST,2017-01-31,Med & Surg Equip General,Ophthalmology,AMO UK LTD,21402845,78,795110036,1057971763
Department of Health,Worcestershire Acute Hospitals NHST,2017-01-31,Med & Surg Equip Disp,Accident + Emergency,COLOPLAST LTD,21402847,138,781498779,16027501
Department of Health,Worcestershire Acute Hospitals NHST,2017-01-31,Med & Surg Equip Disp,Accident + Emergency,COLOPLAST LTD,21402849,138,781498779,16025904
Department of Health,Worcestershire Acute Hospitals NHST,2017-01-31,Med & Surg Equip Disp,Alex Theatre - Scrub,COLOPLAST LTD,21402852,414,781498779,16028118
Department of Health,Worcestershire Acute Hospitals NHST,2017-01-31,Sterile Products,Ophthalmology,BEAVER-VISITEC INTERNATIONAL SALES LTD,21402855,338.28,,CD16039391
Department of Health,Worcestershire Acute Hospitals NHST,2017-01-31,Med & Surg Maint Contract,Engineering- No Special,LABCOLD LTD,21402860,416,205312124,382471
Department of Health,Worcestershire Acute Hospitals NHST,2017-01-31,Laboratory Chemicals,Histology,ROCHE DIAGNOSTICS LTD,21402861,146.5,684424418,6570690356
Department of Health,Worcestershire Acute Hospitals NHST,2017-01-31,Surg Instruments General,Main Theatre,MEDTRONIC LTD,21402865,837.6,467254526,1051620276
Department of Health,Worcestershire Acute Hospitals NHST,2017-01-31,Med & Surg Equip General,Accident + Emergency,SP SERVICES (UK) LTD,21402870,33.48,682617905,837877
Department of Health,Worcestershire Acute Hospitals NHST,2017-01-31,Med & Surg Equip Disp,Theatre,JOHNSON & JOHNSON MEDICAL LTD,21402875,1613.23,592926302,16300604
Department of Health,Worcestershire Acute Hospitals NHST,2017-01-31,Prostheses,T&O Medical,SOVEREIGN MEDICAL LTD,21402880,2186.4,759665175,INV12835
Department of Health,Worcestershire Acute Hospitals NHST,2017-01-31,Med & Surg Equip Disp,HSDU- Multi-Specialty,WARWICK SASCO LTD,21402885,192.3,307568447,0000089521
Department of Health,Worcestershire Acute Hospitals NHST,2017-01-31,Prostheses,T&O Medical,ORTHO SOLUTIONS LTD,21402891,274.8,794553192,0000164315
Department of Health,Worcestershire Acute Hospitals NHST,2017-01-31,Protective Clothing,Ophthalmic Nursing,TOFFELN LTD,21402895,153.89,,388604
Department of Health,Worcestershire Acute Hospitals NHST,2017-01-31,Provisions,Catering Dept-No Spec,WORCESTER PRODUCE,21402903,159.85,,W166673
Department of Health,Worcestershire Acute Hospitals NHST,2017-01-31,Provisions,Catering Dept-No Spec,WORCESTER PRODUCE,21402909,149.59,,W166675
Department of Health,Worcestershire Acute Hospitals NHST,2017-01-31,Provisions,Catering Dept-No Spec,WORCESTER PRODUCE,21402917,212.27,,W167623
Department of Health,Worcestershire Acute Hospitals NHST,2017-01-31,NonRes Bldg Additions,Balance Sheet,DAKRO ENVIRONMENTAL LTD,21402922,216,729385106,0000066686
Department of Health,Worcestershire Acute Hospitals NHST,2017-01-31,Bldg/Eng Equip Maint Cont,Estates Bewdley Road,TARPLETT GENERATOR SERVICES LTD,21402923,942,,37959
Department of Health,Worcestershire Acute Hospitals NHST,2017-01-31,NonRes Bldg Additions,Balance Sheet,DAKRO ENVIRONMENTAL LTD,21402928,402,729385106,0000066685
Department of Health,Worcestershire Acute Hospitals NHST,2017-01-31,NonRes Bldg Additions,Balance Sheet,DAKRO ENVIRONMENTAL LTD,21402930,64,729385106,0000066684
Department of Health,Worcestershire Acute Hospitals NHST,2017-01-31,NonRes Bldg Additions,Balance Sheet,DAKRO ENVIRONMENTAL LTD,21406931,30,729385106,0000066689
Department of Health,Worcestershire Acute Hospitals NHST,2017-01-31,Lab Equip Maint / Repairs,Haematology,SARTORIUS UK LTD,21406932,468.8,,3106038880
Department of Health,Worcestershire Acute Hospitals NHST,2017-01-31,Med & Surg Equip General,Ophthalmic Nursing,MISS OPHTHALMICS LTD,21406943,337.1,486203149,39302
Department of Health,Worcestershire Acute Hospitals NHST,2017-01-31,Prostheses,T&O Medical,JOHNSON & JOHNSON MEDICAL LTD,21406952,399.31,592926302,0091415307
Department of Health,Worcestershire Acute Hospitals NHST,2017-01-31,Staff Uniforms & Clothing,Internal Recharges,MWUK ACQUISITION CO LTD T/A ALEXANDRA,21406957,35.88,927156121,OLSINV03905650
Department of Health,Worcestershire Acute Hospitals NHST,2017-01-31,Staff Uniforms & Clothing,Occupational Therapy,MWUK ACQUISITION CO LTD T/A ALEXANDRA,21406962,39.12,927156121,OLSINV03905601
Department of Health,Worcestershire Acute Hospitals NHST,2017-01-31,Protective Clothing,Occupational Therapy,MWUK ACQUISITION CO LTD T/A ALEXANDRA,21406966,47.64,927156121,OLSINV03905554
Department of Health,Worcestershire Acute Hospitals NHST,2017-01-31,Staff Uniforms & Clothing,Physiotherapy,MWUK ACQUISITION CO LTD T/A ALEXANDRA,21406972,31.3,927156121,OLSINV03905555
Department of Health,Worcestershire Acute Hospitals NHST,2017-01-31,Staff Uniforms & Clothing,Linen Serv- No Spec,MWUK ACQUISITION CO LTD T/A ALEXANDRA,21406974,74.04,927156121,OLSINV03905510
Department of Health,Worcestershire Acute Hospitals NHST,2017-01-31,Staff Uniforms & Clothing,Linen Serv- No Spec,MWUK ACQUISITION CO LTD T/A ALEXANDRA,21406979,165.54,927156121,OLSINV03905515
Department of Health,Worcestershire Acute Hospitals NHST,2017-01-31,Staff Uniforms & Clothing,Linen Serv- No Spec,MWUK ACQUISITION CO LTD T/A ALEXANDRA,21406982,87.54,927156121,OLSINV03905502
Department of Health,Worcestershire Acute Hospitals NHST,2017-01-31,Staff Uniforms & Clothing,Linen Serv- No Spec,MWUK ACQUISITION CO LTD T/A ALEXANDRA,21406986,85.86,927156121,OLSINV03905482
Department of Health,Worcestershire Acute Hospitals NHST,2017-01-31,Staff Uniforms & Clothing,Linen Serv- No Spec,MWUK ACQUISITION CO LTD T/A ALEXANDRA,21406990,133.68,927156121,OLSINV03905491
Department of Health,Worcestershire Acute Hospitals NHST,2017-01-31,Staff Uniforms & Clothing,Linen Serv- No Spec,MWUK ACQUISITION CO LTD T/A ALEXANDRA,21406993,82.38,927156121,OLSINV03905485
Department of Health,Worcestershire Acute Hospitals NHST,2017-01-31,Staff Uniforms & Clothing,Pharmacy,MWUK ACQUISITION CO LTD T/A ALEXANDRA,21406997,148.5,927156121,OLSINV03905431
Department of Health,Worcestershire Acute Hospitals NHST,2017-01-31,Staff Uniforms & Clothing,A+E Nursing WRH,MWUK ACQUISITION CO LTD T/A ALEXANDRA,21407000,314.77,927156121,OLSINV03905420
Department of Health,Worcestershire Acute Hospitals NHST,2017-01-31,Staff Uniforms & Clothing,Linen Serv- No Spec,MWUK ACQUISITION CO LTD T/A ALEXANDRA,21407001,74.58,927156121,OLSINV03905405
Department of Health,Worcestershire Acute Hospitals NHST,2017-01-31,Staff Uniforms & Clothing,Linen Serv- No Spec,MWUK ACQUISITION CO LTD T/A ALEXANDRA,21407004,156.9,927156121,OLSINV03905413
Department of Health,Worcestershire Acute Hospitals NHST,2017-01-31,Staff Uniforms & Clothing,Linen Serv- No Spec,MWUK ACQUISITION CO LTD T/A ALEXANDRA,21407007,69.3,927156121,OLSINV03905403
Department of Health,Worcestershire Acute Hospitals NHST,2017-01-31,Staff Uniforms & Clothing,Occupational Therapy,MWUK ACQUISITION CO LTD T/A ALEXANDRA,21407010,80.69,927156121,OLSINV03905395
Department of Health,Worcestershire Acute Hospitals NHST,2017-01-31,Staff Uniforms & Clothing,Catering Dept-No Spec,MWUK ACQUISITION CO LTD T/A ALEXANDRA,21407012,35.65,927156121,OLSINV03905404
Department of Health,Worcestershire Acute Hospitals NHST,2017-01-31,Staff Uniforms & Clothing,Internal Recharges,MWUK ACQUISITION CO LTD T/A ALEXANDRA,21407015,315.16,927156121,OLSINV03905400
Department of Health,Worcestershire Acute Hospitals NHST,2017-01-31,Staff Uniforms & Clothing,Physiotherapy,MWUK ACQUISITION CO LTD T/A ALEXANDRA,21407018,196.1,927156121,OLSINV03905383
Department of Health,Worcestershire Acute Hospitals NHST,2017-01-31,Staff Uniforms & Clothing,Physiotherapy,MWUK ACQUISITION CO LTD T/A ALEXANDRA,21407024,255.68,927156121,OLSINV03905392
Department of Health,Worcestershire Acute Hospitals NHST,2017-01-31,Staff Uniforms & Clothing,Outpatients Dept- E Block,MWUK ACQUISITION CO LTD T/A ALEXANDRA,21407030,30.08,927156121,OLSINV03905242
Department of Health,Worcestershire Acute Hospitals NHST,2017-01-31,Staff Uniforms & Clothing,Internal Recharges,MWUK ACQUISITION CO LTD T/A ALEXANDRA,21407032,291.47,927156121,OLSINV03905168
Department of Health,Worcestershire Acute Hospitals NHST,2017-01-31,Staff Uniforms & Clothing,Internal Recharges,MWUK ACQUISITION CO LTD T/A ALEXANDRA,21407034,317.76,927156121,OLSINV03905195
Department of Health,Worcestershire Acute Hospitals NHST,2017-01-31,Staff Uniforms & Clothing,Internal Recharges,MWUK ACQUISITION CO LTD T/A ALEXANDRA,21407036,227.26,927156121,OLSINV03905141
Department of Health,Worcestershire Acute Hospitals NHST,2017-01-31,Prostheses,T&O Medical,JOHNSON & JOHNSON MEDICAL LTD,21407038,141.64,592926302,0091415311
Department of Health,Worcestershire Acute Hospitals NHST,2017-01-31,Prostheses,T&O Medical,JOHNSON & JOHNSON MEDICAL LTD,21407040,968.04,592926302,0091415309
Department of Health,Worcestershire Acute Hospitals NHST,2017-01-31,Office Equipment,Paeds Medics WRH,BUSINESS DICTATION LTD,21407042,52.13,425147370,230480
Department of Health,Worcestershire Acute Hospitals NHST,2017-01-31,X-Ray Equip Maint/Repair,Breast Screening TCS,LYNTON TRAILERS (UK) LTD,21407044,490.19,,43699
Department of Health,Worcestershire Acute Hospitals NHST,2017-01-31,Staff Uniforms & Clothing,Occupational Therapy,MWUK ACQUISITION CO LTD T/A ALEXANDRA,21407951,34.3,927156121,OLSINV03905432
Department of Health,Worcestershire Acute Hospitals NHST,2017-01-31,Sterile Products,TSSU,CLINIPAK LTD,21410822,639.94,385729895,SIN171193
Department of Health,Worcestershire Acute Hospitals NHST,2017-01-31,Breast Care Prosthesis,Gen Surg-Med,AMOENA UK LTD,21413048,-306,522312593,CN9968228
Department of Health,Worcestershire Acute Hospitals NHST,2017-01-31,Med & Surg Equip General,Day Unit Colposcopy Gynae,DTR MEDICAL LTD,21413051,878.4,800410205,182876
Department of Health,Worcestershire Acute Hospitals NHST,2017-01-31,Provisions,Catering Dept-No Spec,BRAKE BROS LTD,21413058,760.8,202935388,796193000
Department of Health,Worcestershire Acute Hospitals NHST,2017-01-31,NonRes Bldg Additions,Balance Sheet,DAKRO ENVIRONMENTAL LTD,21413063,158,729385106,0000066687
Department of Health,Worcestershire Acute Hospitals NHST,2017-01-31,Bldg/Eng Equip Maint Cont,Estates Bewdley Road,ATLAS COPCO MEDICAL LTD T/A BEACONMEDAES,21413066,757.22,,401022
Department of Health,Worcestershire Acute Hospitals NHST,2017-01-31,Med & Surg Equip General,Alex Theatre - Scrub,PURPLE SURGICAL UK LTD,21413075,158.7,229120979,655920
Department of Health,Worcestershire Acute Hospitals NHST,2017-01-31,Med & Surg Equip General,Alex Theatre - Scrub,PURPLE SURGICAL UK LTD,21413081,158.7,229120979,656560
Department of Health,Worcestershire Acute Hospitals NHST,2017-01-31,"Books, Journals & Subscr",Estates-No Spec,STATIONERY OFFICE,21413087,101.25,,26012472
Department of Health,Worcestershire Acute Hospitals NHST,2017-01-31,"Books, Journals & Subscr",Estates-No Spec,STATIONERY OFFICE,21413091,112.5,,26010712
Department of Health,Worcestershire Acute Hospitals NHST,2017-01-31,Sterile Products,Alex Theatre - Scrub,SQUADRON MEDICAL LTD,21413100,774.46,398925088,9701698979
Department of Health,Worcestershire Acute Hospitals NHST,2017-01-31,Sterile Products,Theatre,SQUADRON MEDICAL LTD,21413104,1053.36,398925088,9701698977
Department of Health,Worcestershire Acute Hospitals NHST,2017-01-31,Prostheses,T&O Medical,WRIGHT MEDICAL UK LTD,21413107,194.4,677219993,163179RI
Department of Health,Worcestershire Acute Hospitals NHST,2017-01-31,Med & Surg Equip General,Laurel 1 Cardiology-CCU,WELCH ALLYN UK LTD,21413109,192,533124384,9000276603
Department of Health,Worcestershire Acute Hospitals NHST,2017-01-31,X-Ray Equip Maint/Repair,Breast Screening TCS,LYNTON TRAILERS (UK) LTD,21413110,475,,30948009087
Department of Health,Worcestershire Acute Hospitals NHST,2017-01-31,Prostheses - Hips,T&O Medical,STRYKER UK LTD,21413111,1115.66,787438865,27919171
Department of Health,Worcestershire Acute Hospitals NHST,2017-01-31,Prostheses - Knees,T&O Medical,STRYKER UK LTD,21413112,1434.24,787438865,27919187
Department of Health,Worcestershire Acute Hospitals NHST,2017-01-31,Prostheses - Knees,T&O Medical,STRYKER UK LTD,21413113,1437.6,787438865,27919188
Department of Health,Worcestershire Acute Hospitals NHST,2017-01-31,Pacemakers,Cardiopulmonary,ST JUDE MEDICAL UK LTD,21413114,67680,536433154,7500250761
Department of Health,Worcestershire Acute Hospitals NHST,2017-01-31,Pacemakers,Cardiopulmonary,ST JUDE MEDICAL UK LTD,21413115,33840,536433154,7500250703
Department of Health,Worcestershire Acute Hospitals NHST,2017-01-31,Surg Instruments Disp,WRH Dermatology,BRYMILL CRYOGENIC SYSTEMS UK LTD,21413116,480,718104752,916806
Department of Health,Worcestershire Acute Hospitals NHST,2017-01-31,Dressings,MAU Silver Assessment Unit,ASPEN MEDICAL EUROPE LTD,21413117,156.55,111150247,218286
Department of Health,Worcestershire Acute Hospitals NHST,2017-01-31,Laboratory Chemicals,Histology,ROCHE DIAGNOSTICS LTD,21413118,292.99,684424418,6570690925
Department of Health,Worcestershire Acute Hospitals NHST,2017-01-31,AUC Additions,Balance Sheet,PORTAKABIN LTD,21413119,22428.85,551855234,900764564
Department of Health,Worcestershire Acute Hospitals NHST,2017-01-31,Surg Instruments Disp,Minor Injuries Unit,365 HEALTHCARE LTD,21413120,64.8,844466408,6012169
Department of Health,Worcestershire Acute Hospitals NHST,2017-01-31,Med & Surg Equip General,T&O Medical,ARTHREX LTD,21413121,556.5,679036503,INV16122081
Department of Health,Worcestershire Acute Hospitals NHST,2017-01-31,Med & Surg Equip General,T&O Medical,ARTHREX LTD,21413122,1393.92,679036503,INV16122162
Department of Health,Worcestershire Acute Hospitals NHST,2017-01-31,Lab Equip Maint / Repairs,Haematology,SARTORIUS UK LTD,21413123,701,,3106038879
Department of Health,Worcestershire Acute Hospitals NHST,2017-01-31,Stationery,Pharmacy - No Spec,MIDCO PRINT & PACKAGING LTD,21413124,346.25,113767669,S084795
Department of Health,Worcestershire Acute Hospitals NHST,2017-01-31,Stationery,Pharmacy - No Spec,MIDCO PRINT & PACKAGING LTD,21413125,346.25,113767669,S084796
Department of Health,Worcestershire Acute Hospitals NHST,2017-01-31,Med & Surg Equip General,T&O Medical,ORTHO SOLUTIONS LTD,21413126,2438.64,794553192,0000164152
Department of Health,Worcestershire Acute Hospitals NHST,2017-01-31,Med & Surg Equip General,Avon 3 Infectious Diseases,GAMA HEALTHCARE LTD,21413127,338.4,867572574,20181
Department of Health,Worcestershire Acute Hospitals NHST,2017-01-31,NonRes Bldg Additions,Balance Sheet,DAKRO ENVIRONMENTAL LTD,21413128,976,729385106,0000066722
Department of Health,Worcestershire Acute Hospitals NHST,2017-01-31,Med & Surg Equip General,Alex Theatre - Scrub,BUNZL HEALTHCARE,21413129,228,286014266,OPI037540Y16
Department of Health,Worcestershire Acute Hospitals NHST,2017-01-31,Prostheses - Hips,T&O Medical,STRYKER UK LTD,21414100,426,787438865,27919191
Department of Health,Worcestershire Acute Hospitals NHST,2017-01-31,Stationery,Outpats- Multi-Spec Alex,LYRECO UK LTD,21414133,205.99,594371315,6901029957
Department of Health,Worcestershire Acute Hospitals NHST,2017-01-31,Med & Surg Equip General,WRH Intra Op Fluid Mgt Consumables,EDWARDS LIFESCIENCES LTD,21414140,1939.2,724574035,21627615
Department of Health,Worcestershire Acute Hospitals NHST,2017-01-31,Med & Surg Equip General,T&O Medical,STRYKER UK LTD,21414161,285,787438865,27919119
Department of Health,Worcestershire Acute Hospitals NHST,2017-01-31,Med & Surg Equip General,Theatre,VIAMED LTD,21414168,65,287389593,IN148420
Department of Health,Worcestershire Acute Hospitals NHST,2017-01-31,Med & Surg Equip General,T&O Medical,ZIMMER BIOMET UK LTD,21414174,3614.32,,2011637322
Department of Health,Worcestershire Acute Hospitals NHST,2017-01-31,Med & Surg Equip General,KTC Endoscopy,MEDIPLUS LTD,21414184,584,442476056,SIN183856
Department of Health,Worcestershire Acute Hospitals NHST,2017-01-31,Laboratory Chemicals,Histology,SARTORIUS UK LTD,21414204,1092.39,,3106038876
Department of Health,Worcestershire Acute Hospitals NHST,2017-01-31,Printing Costs,Car Parking,TOUCHSTAR ATC LTD,21414208,479,,TSI000120
Department of Health,Worcestershire Acute Hospitals NHST,2017-01-31,Med & Surg Equip General,Ophthalmic Nursing,ALTOMED LTD,21414224,645.5,178872994,322359
Department of Health,Worcestershire Acute Hospitals NHST,2017-01-31,Materials - Electrical,Technical Serv- No Spec,DELTEX MEDICAL LTD,21414231,177.5,615400089,0000055993
Department of Health,Worcestershire Acute Hospitals NHST,2017-01-31,Med & Surg Equip Disp,Radiology Dept WRH,BARD LTD,21414235,837.5,369076714,1515259RT
Department of Health,Worcestershire Acute Hospitals NHST,2017-01-31,Med & Surg Equip Disp,ICCU - Worcs,ARMSTRONG MEDICAL LTD,21414238,281,432578934,SI1S4043
Department of Health,Worcestershire Acute Hospitals NHST,2017-01-31,Laboratory External Tests,Clinical Haematology- Med,HEART OF ENGLAND NHS FOUNDATION TRUST,21417936,454.16,654912816,948723
Department of Health,Worcestershire Acute Hospitals NHST,2017-01-31,Anaesthetics Accessories,Respiratory Support,PHILIPS RESPIRONICS UK,21418183,490.2,407850060-1,933566202
Department of Health,Worcestershire Acute Hospitals NHST,2017-01-31,Med & Surg Equip Disp,Radiology Dept WRH,MERIT MEDICAL UK LTD,21418186,120,645811531,637954
Department of Health,Worcestershire Acute Hospitals NHST,2017-01-31,Provisions,Catering Dept-No Spec,MIDLAND FOODS LTD,21418192,272.67,,1085483
Department of Health,Worcestershire Acute Hospitals NHST,2017-01-31,Med & Surg Equip General,Theatre,MEDTRONIC LTD,21418194,643.2,467254526,1051622278
Department of Health,Worcestershire Acute Hospitals NHST,2017-01-31,Surg Instruments General,Theatre,MEDTRONIC LTD,21418194,160.8,467254526,1051622278
Department of Health,Worcestershire Acute Hospitals NHST,2017-01-31,Furniture & Fittings,Diabetic Nursing TCS,MEDTRONIC LTD,21418196,394.39,467254526,1051622275
Department of Health,Worcestershire Acute Hospitals NHST,2017-01-31,Med & Surg Equip General,Radiology Dept Alex,BARD LTD,21418198,345,369076714,1515515RT
Department of Health,Worcestershire Acute Hospitals NHST,2017-01-31,Provisions,Catering Dept-No Spec,BRAKE BROS LTD,21418200,121.69,202935388,9255237836
Department of Health,Worcestershire Acute Hospitals NHST,2017-01-31,Provisions,Catering Dept-No Spec,BRAKE BROS LTD,21418203,145.84,202935388,9255246844
Department of Health,Worcestershire Acute Hospitals NHST,2017-01-31,Patients Appl: Purchase,General Medicine KGH,EMBRACE,21418204,120,,NHS183
Department of Health,Worcestershire Acute Hospitals NHST,2017-01-31,Staff Uniforms & Clothing,Physiotherapy,MWUK ACQUISITION CO LTD T/A ALEXANDRA,21418934,38.11,927156121,OLSINV03905972
Department of Health,Worcestershire Acute Hospitals NHST,2017-01-31,Staff Uniforms & Clothing,Internal Recharges,MWUK ACQUISITION CO LTD T/A ALEXANDRA,21418937,-48,927156121,OLCRED00766906
Department of Health,Worcestershire Acute Hospitals NHST,2017-01-31,Staff Uniforms & Clothing,Internal Recharges,MWUK ACQUISITION CO LTD T/A ALEXANDRA,21418939,33.42,927156121,OLSINV03905711
Department of Health,Worcestershire Acute Hospitals NHST,2017-01-31,Sterile Products,Theatre,SQUADRON MEDICAL LTD,21418941,547.2,398925088,9701699461
Department of Health,Worcestershire Acute Hospitals NHST,2017-01-31,Stationery,Med Recs- Non Pay,LYRECO UK LTD,21418946,33.85,594371315,6901030036
Department of Health,Worcestershire Acute Hospitals NHST,2017-01-31,Prostheses,T&O Medical,JOHNSON & JOHNSON MEDICAL LTD,21418949,1304.21,592926302,0091415695
Department of Health,Worcestershire Acute Hospitals NHST,2017-01-31,Prostheses,T&O Medical,JOHNSON & JOHNSON MEDICAL LTD,21418952,26.5,592926302,0091415692
Department of Health,Worcestershire Acute Hospitals NHST,2017-01-31,Prostheses,T&O Medical,JOHNSON & JOHNSON MEDICAL LTD,21418954,61.1,592926302,0091415694
Department of Health,Worcestershire Acute Hospitals NHST,2017-01-31,Prostheses,T&O Medical,JOHNSON & JOHNSON MEDICAL LTD,21418955,394.4,592926302,0091415693
Department of Health,Worcestershire Acute Hospitals NHST,2017-01-31,Med & Surg Equip General,WRH ENT Theatre Non-Pay,JOHNSON & JOHNSON MEDICAL LTD,21418956,2155.04,592926302,0091415697
Department of Health,Worcestershire Acute Hospitals NHST,2017-01-31,Med & Surg Equip General,T&O Medical,JOHNSON & JOHNSON MEDICAL LTD,21418957,738.97,592926302,0091415696
Department of Health,Worcestershire Acute Hospitals NHST,2017-01-31,Staff Uniforms & Clothing,Linen Serv- No Spec,MWUK ACQUISITION CO LTD T/A ALEXANDRA,21424066,47.76,927156121,OLSINV03908416
Department of Health,Worcestershire Acute Hospitals NHST,2017-01-31,Med & Surg Equip General,Radiology Dept Alex,BARD LTD,21426040,345,369076714,1515744RT
Department of Health,Worcestershire Acute Hospitals NHST,2017-01-31,Laboratory Bottles & Cont,Radiology Dept WRH,B BRAUN MEDICAL LTD,21426041,109.54,,0328365099
Department of Health,Worcestershire Acute Hospitals NHST,2017-01-31,Med & Surg Equip General,Satellite RenalDialy Unit,FRESENIUS MEDICAL CARE UK LTD,21434466,231.6,674637108,1050517852
Department of Health,Worcestershire Acute Hospitals NHST,2017-01-31,Postage & Carriage,Biochemistry,TNT INTERNATIONAL,21434469,67.21,354715057,08337302
Department of Health,Worcestershire Acute Hospitals NHST,2017-01-31,Agency Admin & Clerical,Radiotherapy WRH,PEACH RECRUITMENT,21434471,623.7,793238990,28288
Department of Health,Worcestershire Acute Hospitals NHST,2017-01-31,Agency Admin & Clerical,Radiotherapy WRH,PEACH RECRUITMENT,21434473,249.48,793238990,28310
Department of Health,Worcestershire Acute Hospitals NHST,2017-01-31,External Consultancy Fees,Urology,RM MEDICS LTD,21434475,912.59,,117838
Department of Health,Worcestershire Acute Hospitals NHST,2017-01-31,Packing & Storage,Day Unit Colposcopy Gynae,IRON MOUNTAIN (UK) LTD,21434477,302.47,607937516,TA60241
Department of Health,Worcestershire Acute Hospitals NHST,2017-01-31,External Consultancy Fees,Obs + Gynae WLI Exp WRH,SPIRE HEALTHCARE LTD,21434479,7289.21,915970991,704173301116
Department of Health,Worcestershire Acute Hospitals NHST,2017-01-31,Agency Admin & Clerical,Radiotherapy WRH,PEACH RECRUITMENT,21434482,623.7,793238990,28333
Department of Health,Worcestershire Acute Hospitals NHST,2017-01-31,Other Agency Staff,Clinical Coding,REAL STAFFING GROUP LTD,21434484,1679.86,743795691,01008000620914
Department of Health,Worcestershire Acute Hospitals NHST,2017-01-31,Meeting expense/Room Hire,Diabetic Nursing TCS,MALVERN CUBE,21434486,64,,VGQC011222
Department of Health,Worcestershire Acute Hospitals NHST,2017-01-31,Secndd staff frm othr org,Plastic Surg-Med,UNIVERSITY HOSPITAL BIRMINGHAM NHS FOUNDATION TRUST,21434487,14262.25,654965101,OPT035364
Department of Health,Worcestershire Acute Hospitals NHST,2017-01-31,Furniture & Fittings,Avon 3 Infectious Diseases,1ST CALL MOBILITY,21434489,462,802644060,BR48459
Department of Health,Worcestershire Acute Hospitals NHST,2017-01-31,Agency Admin & Clerical,Clinical Coding,GSA TECHSOURCE LTD,21434491,1980,580425153,00954176
Department of Health,Worcestershire Acute Hospitals NHST,2017-01-31,Staff Recruitment Advert,Medicine DMT,BMJ PUBLISHING GROUP LTD,21434493,7884,674738491,52222796
Department of Health,Worcestershire Acute Hospitals NHST,2017-01-31,Consultant,Women & Children DMT,BIRMINGHAM WOMENS NHS FOUNDATION TRUST,21434495,10710,654912914,OPI144431
Department of Health,Worcestershire Acute Hospitals NHST,2017-01-31,Consultant,Women & Children DMT,BIRMINGHAM WOMENS NHS FOUNDATION TRUST,21434498,5355,654912914,OPI143553
Department of Health,Worcestershire Acute Hospitals NHST,2017-01-31,Consultant,Women & Children DMT,BIRMINGHAM WOMENS NHS FOUNDATION TRUST,21434501,15028.55,654912914,OPI143220
Department of Health,Worcestershire Acute Hospitals NHST,2017-01-31,Legal / Prof Fees,Trust Litigation,DAC BEACHCROFT LLP,21434505,22110.91,,1343177
Department of Health,Worcestershire Acute Hospitals NHST,2017-01-31,External Consultancy Fees,Trust Communications,NHS MIDLANDS AND LANCASHIRE CSU,21434507,9750,,7312305057
Department of Health,Worcestershire Acute Hospitals NHST,2017-01-31,Foundation Programme - F2,Madel Acute,ST HELENS & KNOWSLEY HOSPITALS NHS TRUST,21434509,100000,654943996,16764137
Department of Health,Worcestershire Acute Hospitals NHST,2017-01-31,Other Agency Staff,Supplies Dept Alex,PROCUREWISE LTD,21434511,2427.84,197380076,86
Department of Health,Worcestershire Acute Hospitals NHST,2017-01-31,Dietetic Products,MAU High Care and Short Stay,AAH PHARMACEUTICALS LTD,21434513,42.48,546573322,84079169U
Department of Health,Worcestershire Acute Hospitals NHST,2017-01-31,Anaesthetics Accessories,Respiratory Alex,BOC LTD,21434515,469.93,226556555,3038183182
Department of Health,Worcestershire Acute Hospitals NHST,2017-01-31,Laboratory Equipment,Histology,CELLPATH LTD,21434521,69.84,208646458,16110079
Department of Health,Worcestershire Acute Hospitals NHST,2017-01-31,Patients Appl: Purchase,GP Direct Access Worcs,KINETEC MEDICAL PRODUCTS UK LTD,21434525,83.16,,UKSI0000098
Department of Health,Worcestershire Acute Hospitals NHST,2017-01-31,Printing Costs,Knowledge Mgt,BRITISH LIBRARY,21434528,58.1,240692764,139779660
Department of Health,Worcestershire Acute Hospitals NHST,2017-01-31,Staff Uniforms & Clothing,Internal Recharges,SIMON JERSEY LTD,21434531,79.25,732361553,7967860
Department of Health,Worcestershire Acute Hospitals NHST,2017-01-31,Staff Uniforms & Clothing,Internal Recharges,SIMON JERSEY LTD,21434541,47.74,732361553,7988300
Department of Health,Worcestershire Acute Hospitals NHST,2017-01-31,Provisions,Catering (Patients),BRAKE BROS LTD,21434545,106.37,202935388,9255231152
Department of Health,Worcestershire Acute Hospitals NHST,2017-01-31,Provisions,Catering Dept-No Spec,HARRY YEARSLEY LTD,21434548,412.82,876337878,905313548
Department of Health,Worcestershire Acute Hospitals NHST,2017-01-31,Materials - Electrical,Labour + Delivery,RELIANCE HIGH-TECH LTD,21434552,522.72,340833571,SLINV00045542
Department of Health,Worcestershire Acute Hospitals NHST,2017-01-31,Materials - Electrical,Labour + Delivery,RELIANCE HIGH-TECH LTD,21434557,116.12,340833571,SLINV00046815
Department of Health,Worcestershire Acute Hospitals NHST,2017-01-31,Materials - Electrical,Labour + Delivery,RELIANCE HIGH-TECH LTD,21434561,522.72,340833571,SLINV00042687
Department of Health,Worcestershire Acute Hospitals NHST,2017-01-31,Materials - Electrical,Labour + Delivery,RELIANCE HIGH-TECH LTD,21434565,522.72,340833571,SLINV00044012
Department of Health,Worcestershire Acute Hospitals NHST,2017-01-31,Materials - Electrical,Labour + Delivery,RELIANCE HIGH-TECH LTD,21434569,116.1,340833571,SLINV00045505
Department of Health,Worcestershire Acute Hospitals NHST,2017-01-31,Other Agency Staff,SLA Split of income,NHS PROFESSIONALS LTD,21434572,57561.29,654434043,I000000330P
Department of Health,Worcestershire Acute Hospitals NHST,2017-01-31,Other Agency Staff,SLA Split of income,NHS PROFESSIONALS LTD,21434574,211701.99,654434043,I000000375P
Department of Health,Worcestershire Acute Hospitals NHST,2017-01-31,Laboratory External Tests,Neurology-Med,CMC IMAGING SERVICES,21434577,250,,032101
Department of Health,Worcestershire Acute Hospitals NHST,2017-01-31,Postage & Carriage,Biochemistry,TNT INTERNATIONAL,21434579,-67.21,354715057,08427276
Department of Health,Worcestershire Acute Hospitals NHST,2017-01-31,Med & Surg Equip General,Satellite RenalDialy Unit,ALS LIFE SCIENCES LTD,21434583,32.54,,161814
Department of Health,Worcestershire Acute Hospitals NHST,2017-01-31,Furniture & Fittings,Med Assesment Unit,1ST CALL MOBILITY,21434586,324,802644060,S48573
Department of Health,Worcestershire Acute Hospitals NHST,2017-01-31,Contact lenses & glasses,Ophthalmic Nursing,VISION EXPRESS (UK) LTD,21434589,39.1,648031153,1600870232
Department of Health,Worcestershire Acute Hospitals NHST,2017-01-31,Other Agency Staff,Clinical Effectiveness,PEACH RECRUITMENT,21434592,634.5,793238990,28352
Department of Health,Worcestershire Acute Hospitals NHST,2017-01-31,Agency Admin & Clerical,Radiotherapy WRH,PEACH RECRUITMENT,21434595,320.17,793238990,28355
Department of Health,Worcestershire Acute Hospitals NHST,2017-01-31,Contact lenses & glasses,Ophthalmology,VISION EXPRESS (UK) LTD,21434599,39.1,648031153,1600922098
Department of Health,Worcestershire Acute Hospitals NHST,2017-01-31,Contact lenses & glasses,Ophthalmic Nursing,BLINK VISION CENTRE,21434601,59.3,,14802
Department of Health,Worcestershire Acute Hospitals NHST,2017-01-31,Contact lenses & glasses,Ophthalmology,SPECSAVERS OPTICIANS,21434604,39.1,609736419,0254732
Department of Health,Worcestershire Acute Hospitals NHST,2017-01-31,Contact lenses & glasses,Ophthalmic Nursing,BARNARDS GREEN OPTICIANS,21434607,204.8,,70
Department of Health,Worcestershire Acute Hospitals NHST,2017-01-31,Provisions,Catering Dept-No Spec,BRAKE BROS LTD,21434610,108,202935388,64853772
Department of Health,Worcestershire Acute Hospitals NHST,2017-01-31,Contact lenses & glasses,Ophthalmology,SPECS EXPRESS,21434613,39.1,,107
Department of Health,Worcestershire Acute Hospitals NHST,2017-01-31,Agency Admin & Clerical,Clinical Coding,GSA TECHSOURCE LTD,21434614,1980,580425153,00954299
Department of Health,Worcestershire Acute Hospitals NHST,2017-01-31,Other Agency Staff,SLA Split of income,NHS PROFESSIONALS LTD,21434617,65457.56,654434043,I000000241P
Department of Health,Worcestershire Acute Hospitals NHST,2017-01-31,Contact lenses & glasses,Ophthalmology,VISION EXPRESS (UK) LTD,21434620,39.1,648031153,1600913428
Department of Health,Worcestershire Acute Hospitals NHST,2017-01-31,Contact lenses & glasses,Ophthalmology,VISION EXPRESS (UK) LTD,21434623,59.3,648031153,1600913618
Department of Health,Worcestershire Acute Hospitals NHST,2017-01-31,External Consultancy Fees,Occupational Health,SUN REHABILITATION LTD,21434625,2425.5,,INV1942
Department of Health,Worcestershire Acute Hospitals NHST,2017-01-31,Patients Appl: Purchase,GP Direct Access Worcs,MEDI UK LTD,21434628,-422.4,394043646,71025
Department of Health,Worcestershire Acute Hospitals NHST,2017-01-31,Patients Appl: Purchase,Trauma + Orthopaed KGH,MEDI UK LTD,21434632,-228.48,394043646,81438
Department of Health,Worcestershire Acute Hospitals NHST,2017-01-31,Patients Appl: Purchase,GP Direct Access KGH,MEDI UK LTD,21434635,-43.34,394043646,75243
Department of Health,Worcestershire Acute Hospitals NHST,2017-01-31,Other Agency Staff,Cardiopulmonary,GLOBE LOCUMS LTD,21434638,1130.69,,72728
Department of Health,Worcestershire Acute Hospitals NHST,2017-01-31,Other Agency Staff,SLA Split of income,NHS PROFESSIONALS LTD,21434641,46897.79,654434043,I000000451P
Department of Health,Worcestershire Acute Hospitals NHST,2017-01-31,Recruitment Agency Fees,Chief Executive,HARVEY NASH PLC,21435850,3600,782524417,149580-23-DEC-2016
Department of Health,Worcestershire Acute Hospitals NHST,2017-01-31,Recruitment Agency Fees,Chief Executive,HARVEY NASH PLC,21435851,9600,782524417,149579-23-DEC-2016
Department of Health,Worcestershire Acute Hospitals NHST,2017-01-31,Phone Rental and Calls,Telephone Serv- Kidd,BT PLC,21435852,3131.26,245719348-1,149581-23-DEC-2016
Department of Health,Worcestershire Acute Hospitals NHST,2017-01-31,Patients Travel Expenses,Treasury Mgt + Debtors,TESCO OPTICIANS,21435853,39.1,,149582-03-JAN-2017
Department of Health,Worcestershire Acute Hospitals NHST,2017-01-31,Patients Travel Expenses,Treasury Mgt + Debtors,TESCO OPTICIANS,21435854,39.1,,149583-03-JAN-2017
Department of Health,Worcestershire Acute Hospitals NHST,2017-01-31,Patients Travel Expenses,Treasury Mgt + Debtors,TESCO OPTICIANS,21435855,39.1,,149584-03-JAN-2017
Department of Health,Worcestershire Acute Hospitals NHST,2017-01-31,Patients Travel Expenses,Treasury Mgt + Debtors,TESCO OPTICIANS,21435856,39.1,,149585-03-JAN-2017
Department of Health,Worcestershire Acute Hospitals NHST,2017-01-31,Patients Travel Expenses,Treasury Mgt + Debtors,TESCO OPTICIANS,21435857,39.1,,149586-03-JAN-2017
Department of Health,Worcestershire Acute Hospitals NHST,2017-01-31,External Consultancy Fees,General Training,ONE-OFF SUPPLIER,21435859,3020,,149588-03-JAN-2017
Department of Health,Worcestershire Acute Hospitals NHST,2017-01-31,Other Operatg Rev Non NHS,Audiology- Alex,ONE-OFF SUPPLIER,21435860,80,,149589-03-JAN-2017
Department of Health,Worcestershire Acute Hospitals NHST,2017-01-31,Other Agency Staff,Transformation,SABRINA BROWN CONSULTANCY LTD,21435861,2000,,149590-03-JAN-2017
Department of Health,Worcestershire Acute Hospitals NHST,2017-01-31,Postage & Carriage,Other Pass Throughs,ROYAL MAIL,21435862,5294.94,243170002,149595-03-JAN-2017
Department of Health,Worcestershire Acute Hospitals NHST,2017-01-31,VAT Cont Out Serv Inp Tax,Balance Sheet,ROYAL MAIL,21435862,1058.99,243170002,149595-03-JAN-2017
Department of Health,Worcestershire Acute Hospitals NHST,2017-01-31,Postage & Carriage,Other Pass Throughs,ROYAL MAIL,21435863,3035.15,243170002,149594-03-JAN-2017
Department of Health,Worcestershire Acute Hospitals NHST,2017-01-31,VAT Cont Out Serv Inp Tax,Balance Sheet,ROYAL MAIL,21435863,582.84,243170002,149594-03-JAN-2017
Department of Health,Worcestershire Acute Hospitals NHST,2017-01-31,Postage & Carriage,Other Pass Throughs,ROYAL MAIL,21435864,3276.68,243170002,149593-03-JAN-2017
Department of Health,Worcestershire Acute Hospitals NHST,2017-01-31,VAT Cont Out Serv Inp Tax,Balance Sheet,ROYAL MAIL,21435864,647.83,243170002,149593-03-JAN-2017
Department of Health,Worcestershire Acute Hospitals NHST,2017-01-31,Contact lenses & glasses,Ophthalmology,SPECSAVERS OPTICIANS,21435865,254.8,609736419,149598-03-JAN-2017
Department of Health,Worcestershire Acute Hospitals NHST,2017-01-31,Contact lenses & glasses,Ophthalmology,SPECSAVERS OPTICIANS,21435866,930.3,609736419,149597-03-JAN-2017
Department of Health,Worcestershire Acute Hospitals NHST,2017-01-31,Consultant,ECH Medical TCS,ADEL MAKAR,21435867,800,,149592-03-JAN-2017
Department of Health,Worcestershire Acute Hospitals NHST,2017-01-31,Contact lenses & glasses,Ophthalmic Nursing,ONE-OFF SUPPLIER,21435868,39.1,,149599-03-JAN-2017
Department of Health,Worcestershire Acute Hospitals NHST,2017-01-31,Consultant,ECH Medical TCS,ONE-OFF SUPPLIER,21435869,400,,149591-03-JAN-2017
Department of Health,Worcestershire Acute Hospitals NHST,2017-01-31,Contact lenses & glasses,Ophthalmology,SPECSAVERS OPTICIANS,21435870,235.9,609736419,149607-03-JAN-2017
Department of Health,Worcestershire Acute Hospitals NHST,2017-01-31,Contact lenses & glasses,Ophthalmology,SPECSAVERS OPTICIANS,21435871,39.1,609736419,149606-03-JAN-2017
Department of Health,Worcestershire Acute Hospitals NHST,2017-01-31,Contact lenses & glasses,Ophthalmology,SPECSAVERS OPTICIANS,21435872,39.1,609736419,149605-03-JAN-2017
Department of Health,Worcestershire Acute Hospitals NHST,2017-01-31,Contact lenses & glasses,Ophthalmic Nursing,CHAPMAN&MYERS,21435873,103.3,,149602-03-JAN-2017
Department of Health,Worcestershire Acute Hospitals NHST,2017-01-31,Contact lenses & glasses,Ophthalmic Nursing,UPTON OPTICIANS,21435874,39.1,,149604-03-JAN-2017
Department of Health,Worcestershire Acute Hospitals NHST,2017-01-31,External Consultancy Fees,Occupational Health,L WILLS,21435875,980,,149609-03-JAN-2017
Department of Health,Worcestershire Acute Hospitals NHST,2017-01-31,Course Fees,Post Reg Funding,ONE-OFF SUPPLIER,21435876,175,,149610-03-JAN-2017
Department of Health,Worcestershire Acute Hospitals NHST,2017-01-31,Contact lenses & glasses,Ophthalmic Nursing,ONE-OFF SUPPLIER,21435877,40,,149600-03-JAN-2017
Department of Health,Worcestershire Acute Hospitals NHST,2017-01-31,Contact lenses & glasses,Ophthalmic Nursing,ONE-OFF SUPPLIER,21435878,39.1,,149601-03-JAN-2017
Department of Health,Worcestershire Acute Hospitals NHST,2017-01-31,Contact lenses & glasses,Ophthalmology,ONE-OFF SUPPLIER,21435879,118.6,,149608-03-JAN-2017
Department of Health,Worcestershire Acute Hospitals NHST,2017-01-31,Contact lenses & glasses,Ophthalmology,ONE-OFF SUPPLIER,21435880,59.3,,149603-03-JAN-2017
Department of Health,Worcestershire Acute Hospitals NHST,2017-01-31,External Consultancy Fees,T&O Medical,ONE-OFF SUPPLIER,21435881,490,,149611-03-JAN-2017
Department of Health,Worcestershire Acute Hospitals NHST,2017-01-31,External Consultancy Fees,Post Reg Funding,ONE-OFF SUPPLIER,21435882,100,,149612-03-JAN-2017
Department of Health,Worcestershire Acute Hospitals NHST,2017-01-31,Rent,Car Park Schemes,LMS TRAVEL,21436674,23322.5,,3649
Department of Health,Worcestershire Acute Hospitals NHST,2017-01-31,Agency Junior Doctor FY2,MAU Medics,MALAIKA MEDICAL LTD,21437415,200,,SKWR004MAL3043
Department of Health,Worcestershire Acute Hospitals NHST,2017-01-31,Agency Junior Doctor ST3,A+E Med Staffing WRH,ORTHOSKY LTD,21437416,385,,SKWR001ORT3350
Department of Health,Worcestershire Acute Hospitals NHST,2017-01-31,Agency Junior Doctor ST3,A+E Med Staffing WRH,OWO-I HEALTHCARE SERVICES LTD,21437417,1642.5,,SKWR002OWO3237
Department of Health,Worcestershire Acute Hospitals NHST,2017-01-31,Agency Junior Doctor ST3,A+E Med Staffing WRH,TS MEDICAL LTD,21437419,766.96,,SKWR003TSM3258
Department of Health,Worcestershire Acute Hospitals NHST,2017-01-31,Agency Junior Doctor FY2,MAU Medics,JESPEARL SERVICES LTD,21437420,192,,SKWR002JES2397
Department of Health,Worcestershire Acute Hospitals NHST,2017-01-31,Agency Junior Doctor ST2,T&O Medical,SUPERMEDIX LTD,21437422,1040,,SKWR003SUP2377
Department of Health,Worcestershire Acute Hospitals NHST,2017-01-31,Agency Medical Consultant,MAU Medics,OLIVIER MEDICAL LTD,21437423,360,,SKWR005OLI3071
Department of Health,Worcestershire Acute Hospitals NHST,2017-01-31,Agency Medical Consultant,Older People Medics- Acon,SK PATANWALA & CO LTD,21437424,3800,,SKWR009SKP2063
Department of Health,Worcestershire Acute Hospitals NHST,2017-01-31,Agency Medical Consultant,Med Staff Alex,MSI GROUP LTD,21437425,328.86,933297604,SKWR015MSI132
Department of Health,Worcestershire Acute Hospitals NHST,2017-01-31,Agency Junior Doctor FY2,T&O Medical,J MEHET LTD,21437426,672,,SKWR011JME2767
Department of Health,Worcestershire Acute Hospitals NHST,2017-01-31,Agency Medical Consultant,A+E Medics- Alex,JITENDER MONGA MEDICAL SERVICES LTD,21437427,2350,,SKWR001JIT3025
Department of Health,Worcestershire Acute Hospitals NHST,2017-01-31,Agency Junior Doctor ST2,T&O Medical,EAG PARTNERSHIP LTD,21437428,7200,,SKWR012EAG2404
Department of Health,Worcestershire Acute Hospitals NHST,2017-01-31,Agency Med Otr Career Gd,T&O Medical,KJP MEDICAL LTD,21437429,1765,,SKWR017KJP2390
Department of Health,Worcestershire Acute Hospitals NHST,2017-01-31,Agency Medical Consultant,MAU Medics,NATIONAL LOCUMS,21437430,55.01,974608386,SKWR026NAT30
Department of Health,Worcestershire Acute Hospitals NHST,2017-01-31,Agency Medical Consultant,Respiratory Medics,NATIONAL LOCUMS,21437430,612.11,974608386,SKWR026NAT30
Department of Health,Worcestershire Acute Hospitals NHST,2017-01-31,Agency Junior Doctor ST3,Obs + Gynae-Med,SANGAR CONTINENTAL LTD,21437431,2880,,SKWR002SAN3148
Department of Health,Worcestershire Acute Hospitals NHST,2017-01-31,Agency Junior Doctor ST2,Older People Medics- Acon,DOC 1 LTD,21437432,377,,SKWR015DOC2210
Department of Health,Worcestershire Acute Hospitals NHST,2017-01-31,Agency Junior Doctor FY2,A+E Medics- Alex,ACCIDENT & EMERGENCY AGENCY LTD,21437433,93.14,902905932,SKWR016AEA41
Department of Health,Worcestershire Acute Hospitals NHST,2017-01-31,Agency Junior Doctor FY2,Gen Medicine-Med,ACCIDENT & EMERGENCY AGENCY LTD,21437433,429.72,902905932,SKWR016AEA41
Department of Health,Worcestershire Acute Hospitals NHST,2017-01-31,Agency Junior Doctor ST1,Countywide O&G Medics,ACCIDENT & EMERGENCY AGENCY LTD,21437433,914.94,902905932,SKWR016AEA41
Department of Health,Worcestershire Acute Hospitals NHST,2017-01-31,Agency Junior Doctor ST2,A+E Med Staffing WRH,ACCIDENT & EMERGENCY AGENCY LTD,21437433,1070.58,902905932,SKWR016AEA41
Department of Health,Worcestershire Acute Hospitals NHST,2017-01-31,Agency Junior Doctor ST2,Cardio Medics- Alex,ACCIDENT & EMERGENCY AGENCY LTD,21437433,667.93,902905932,SKWR016AEA41
Department of Health,Worcestershire Acute Hospitals NHST,2017-01-31,Agency Junior Doctor ST3,A+E Med Staffing WRH,ACCIDENT & EMERGENCY AGENCY LTD,21437433,8243.13,902905932,SKWR016AEA41
Department of Health,Worcestershire Acute Hospitals NHST,2017-01-31,Agency Junior Doctor ST3,A+E Medics- Alex,ACCIDENT & EMERGENCY AGENCY LTD,21437433,492,902905932,SKWR016AEA41
Department of Health,Worcestershire Acute Hospitals NHST,2017-01-31,Agency Junior Doctor ST3,Cardio Medics- Alex,ACCIDENT & EMERGENCY AGENCY LTD,21437433,568.14,902905932,SKWR016AEA41
Department of Health,Worcestershire Acute Hospitals NHST,2017-01-31,Agency Junior Doctor ST3,Gastro Medics Alex,ACCIDENT & EMERGENCY AGENCY LTD,21437433,465.38,902905932,SKWR016AEA41
Department of Health,Worcestershire Acute Hospitals NHST,2017-01-31,Agency Junior Doctor ST3,Obs + Gynae-Med,ACCIDENT & EMERGENCY AGENCY LTD,21437433,10743.01,902905932,SKWR016AEA41
Department of Health,Worcestershire Acute Hospitals NHST,2017-01-31,Agency Junior Doctor ST3,Older People Medics Alex,ACCIDENT & EMERGENCY AGENCY LTD,21437433,1133.19,902905932,SKWR016AEA41
Department of Health,Worcestershire Acute Hospitals NHST,2017-01-31,Agency Junior Doctor ST3,Older People Medics- Acon,ACCIDENT & EMERGENCY AGENCY LTD,21437433,147.45,902905932,SKWR016AEA41
Department of Health,Worcestershire Acute Hospitals NHST,2017-01-31,Agency Junior Doctor ST3,Stroke Medics,ACCIDENT & EMERGENCY AGENCY LTD,21437433,791,902905932,SKWR016AEA41
Department of Health,Worcestershire Acute Hospitals NHST,2017-01-31,Agency Med Otr Career Gd,A+E Medics- Alex,ACCIDENT & EMERGENCY AGENCY LTD,21437433,47.98,902905932,SKWR016AEA41
Department of Health,Worcestershire Acute Hospitals NHST,2017-01-31,Agency Medical Consultant,A+E Medics- Alex,ACCIDENT & EMERGENCY AGENCY LTD,21437433,701.7,902905932,SKWR016AEA41
Department of Health,Worcestershire Acute Hospitals NHST,2017-01-31,Agency Medical Consultant,Diabetic Medicine Alex,ACCIDENT & EMERGENCY AGENCY LTD,21437433,2065.49,902905932,SKWR016AEA41
Department of Health,Worcestershire Acute Hospitals NHST,2017-01-31,Agency Medical Consultant,Gen Medicine-Med,ACCIDENT & EMERGENCY AGENCY LTD,21437433,548.78,902905932,SKWR016AEA41
Department of Health,Worcestershire Acute Hospitals NHST,2017-01-31,Agency Medical Consultant,Obs + Gynae-Med,ACCIDENT & EMERGENCY AGENCY LTD,21437433,679.04,902905932,SKWR016AEA41
Department of Health,Worcestershire Acute Hospitals NHST,2017-01-31,Agency Medical Consultant,Older People Medics- Acon,ACCIDENT & EMERGENCY AGENCY LTD,21437433,384,902905932,SKWR016AEA41
Department of Health,Worcestershire Acute Hospitals NHST,2017-01-31,Agency Medical Consultant,Respiratory Medics Alex,ACCIDENT & EMERGENCY AGENCY LTD,21437433,1632.08,902905932,SKWR016AEA41
Department of Health,Worcestershire Acute Hospitals NHST,2017-01-31,Agency Medical Consultant,Stroke Medics,ACCIDENT & EMERGENCY AGENCY LTD,21437433,242.26,902905932,SKWR016AEA41
Department of Health,Worcestershire Acute Hospitals NHST,2017-01-31,Agency Medical Consultant,Stroke Medics,OXFORD MEDICAL SERVICES LTD,21437434,2695,,SKWR001OXF3330
Department of Health,Worcestershire Acute Hospitals NHST,2017-01-31,Agency Junior Doctor ST2,Stroke Medics,BADEN MEDICAL LTD,21437435,2121.77,,SKWR018BAD1081
Department of Health,Worcestershire Acute Hospitals NHST,2017-01-31,Agency Med Otr Career Gd,T&O Medical,MIDLANDS MEDICARE SERVICES LTD,21437436,2021.88,,SKWR005MID508
Department of Health,Worcestershire Acute Hospitals NHST,2017-01-31,Agency Medical Consultant,A+E Medics- Alex,ANGELIQUE MEDICAL SERVICES LTD,21437437,1350,,SKWR027ANG1087
Department of Health,Worcestershire Acute Hospitals NHST,2017-01-31,Agency Junior Doctor ST3,Alex Medicine Medics,CHANSTON HEALTH LTD,21437438,2282.5,,SKWR023CHA1019
Department of Health,Worcestershire Acute Hospitals NHST,2017-01-31,Agency Junior Doctor ST3,Obs + Gynae-Med,SY BOAKYE LTD,21437439,2160,,SKWR001SYB1774
Department of Health,Worcestershire Acute Hospitals NHST,2017-01-31,Agency Junior Doctor ST3,Alex Medicine Medics,DJ COOPER LOCUMS LTD,21437440,2088,,SKWR001DJC3240
Department of Health,Worcestershire Acute Hospitals NHST,2017-01-31,Agency Medical Consultant,Respiratory Medics Alex,TAREEN MEDACS LTD,21437441,7040,,SKWR028TAR1578
Department of Health,Worcestershire Acute Hospitals NHST,2017-01-31,Agency Junior Doctor ST3,Obs + Gynae-Med,TLJCEOA MEDICARE LTD,21437442,2250,,SKWR001TLJ3349
Department of Health,Worcestershire Acute Hospitals NHST,2017-01-31,Agency Junior Doctor ST2,Older People Medics- Acon,INTERACT MEDICAL,21437443,30.89,650778024,SKWR042INT131
Department of Health,Worcestershire Acute Hospitals NHST,2017-01-31,Agency Medical Consultant,Alex Medicine Medics,INTERACT MEDICAL,21437443,955.72,650778024,SKWR042INT131
Department of Health,Worcestershire Acute Hospitals NHST,2017-01-31,Agency Medical Consultant,Dermatology,INTERACT MEDICAL,21437443,2085.57,650778024,SKWR042INT131
Department of Health,Worcestershire Acute Hospitals NHST,2017-01-31,Agency Medical Consultant,Gen Surg-Med,INTERACT MEDICAL,21437443,571.2,650778024,SKWR042INT131
Department of Health,Worcestershire Acute Hospitals NHST,2017-01-31,Agency Medical Consultant,Older People Medics Alex,INTERACT MEDICAL,21437443,902.4,650778024,SKWR042INT131
Department of Health,Worcestershire Acute Hospitals NHST,2017-01-31,Agency Medical Consultant,Radiology Med Staff WRH,INTERACT MEDICAL,21437443,5434.55,650778024,SKWR042INT131
Department of Health,Worcestershire Acute Hospitals NHST,2017-01-31,Agency Junior Doctor ST2,Gen Surg-Med,HCL DOCTORS LTD,21437444,446.4,839550010,SKWR044HCL6
Department of Health,Worcestershire Acute Hospitals NHST,2017-01-31,Agency Junior Doctor ST3,A+E Med Staffing WRH,HCL DOCTORS LTD,21437444,33,839550010,SKWR044HCL6
Department of Health,Worcestershire Acute Hospitals NHST,2017-01-31,Agency Medical Consultant,Med Staff Alex,REPORT MY SCAN LTD,21437445,2250,,SKWR007REP2709
Department of Health,Worcestershire Acute Hospitals NHST,2017-01-31,Agency Junior Doctor ST2,T&O Medical,GOMEZ MEDICAL SERVICES LTD,21437446,2250,,SKWR001GOM3355
Department of Health,Worcestershire Acute Hospitals NHST,2017-01-31,Agency Junior Doctor ST3,A+E Med Staffing WRH,DOCTORS ON CALL LTD,21437447,3556.8,108252831,SKWR029DOC129
Department of Health,Worcestershire Acute Hospitals NHST,2017-01-31,Agency Junior Doctor ST2,Gen Surg-Med,FIRST MEDICAL STAFFING SOLUTIONS LTD,21437448,225.14,868518280,SKWR043FIR14
Department of Health,Worcestershire Acute Hospitals NHST,2017-01-31,Agency Med Otr Career Gd,T&O Medical,FIRST MEDICAL STAFFING SOLUTIONS LTD,21437448,215.04,868518280,SKWR043FIR14
Department of Health,Worcestershire Acute Hospitals NHST,2017-01-31,Agency Medical Consultant,General Surg Medical,FIRST MEDICAL STAFFING SOLUTIONS LTD,21437448,8272.79,868518280,SKWR043FIR14
Department of Health,Worcestershire Acute Hospitals NHST,2017-01-31,Agency Medical Consultant,Radiology Med Staff WRH,SOFAL LTD,21437449,5310,,SKWR004SOF2884
Department of Health,Worcestershire Acute Hospitals NHST,2017-01-31,Agency Medical Consultant,A+E Medics- Alex,STEADFAST MEDICAL CONSULTANCY LTD,21437450,5580,,SKWR038STE306
Department of Health,Worcestershire Acute Hospitals NHST,2017-01-31,Agency Medical Consultant,A+E Med Staffing WRH,WAQAR MEDICAL SERVICES LTD,21437451,4539.5,,SKWR005WAQ2892
Department of Health,Worcestershire Acute Hospitals NHST,2017-01-31,Agency Junior Doctor ST2,Older People Medics- Acon,MEDICSPRO LTD,21437452,134.22,788189067,SKWR040MED23
Department of Health,Worcestershire Acute Hospitals NHST,2017-01-31,Agency Medical Consultant,Gen Medicine-Med,QURESHIZ LTD,21437453,5550,,SKWR009QUR2277
Department of Health,Worcestershire Acute Hospitals NHST,2017-01-31,Agency Medical Consultant,Gen Surg-Med,TABBAKH LTD,21437454,4536,,SKWR017TAB2287
Department of Health,Worcestershire Acute Hospitals NHST,2017-01-31,Agency Medical Consultant,Diabetic Medicine Alex,ABDUL WAJID SAFI LTD,21437455,11450,,SKWR006ABD2829
Department of Health,Worcestershire Acute Hospitals NHST,2017-01-31,Agency Junior Doctor ST1,Countywide O&G Medics,BAS MEDICAL SERVICES LTD,21437456,7250,,SKWR001BAS3348
Department of Health,Worcestershire Acute Hospitals NHST,2017-01-31,Agency Junior Doctor ST2,Gen Surg-Med,AH MEDICARE LTD,21437457,2129.85,,SKWR004AHM3194
Department of Health,Worcestershire Acute Hospitals NHST,2017-01-31,Agency Junior Doctor ST3,Alex Medicine Medics,NIRVAN MEDICAL,21437458,3000,,SKWR028NIR1783
Department of Health,Worcestershire Acute Hospitals NHST,2017-01-31,Agency Medical Consultant,A+E Medics- Alex,AMEER MEDICALS LTD,21437459,7000,,SKWR028AME1063
Department of Health,Worcestershire Acute Hospitals NHST,2017-01-31,Agency Medical Consultant,A+E Medics- Alex,WESTWING MEDICAL LTD,21437460,950,,SKWR011WES2030
Department of Health,Worcestershire Acute Hospitals NHST,2017-01-31,Agency Medical Consultant,Gen Medicine-Med,HINCKLEY LOCUM SERVICES LTD,21437461,7480,,SKWR002HIN3338
Department of Health,Worcestershire Acute Hospitals NHST,2017-01-31,Agency Medical Consultant,Dermatology,MEDPRACT LTD,21437462,14050,,SKWR009MED1407
Department of Health,Worcestershire Acute Hospitals NHST,2017-01-31,Agency Junior Doctor ST3,Diabetic Medicine Alex,LARA MEDICS LTD,21437463,4437,,SKWR038LAR1608
Department of Health,Worcestershire Acute Hospitals NHST,2017-01-31,Agency Junior Doctor ST3,A+E Med Staffing WRH,MEDSOL HEALTHCARE SERVICES LTD,21437464,164.26,803216472,SKWR011MED26
Department of Health,Worcestershire Acute Hospitals NHST,2017-01-31,Agency Medical Consultant,A+E Med Staffing WRH,MEDSOL HEALTHCARE SERVICES LTD,21437464,301.46,803216472,SKWR011MED26
Department of Health,Worcestershire Acute Hospitals NHST,2017-01-31,Agency Medical Consultant,NTN Rheumatology Med,RHEUMEDIC LTD,21437467,8875,,SKWR019RHE1827
Department of Health,Worcestershire Acute Hospitals NHST,2017-01-31,Agency Medical Consultant,Older People Medics Alex,FS CLINICAL,21437468,9075,,SKWR010FSC1547
Department of Health,Worcestershire Acute Hospitals NHST,2017-01-31,Agency Junior Doctor FY2,Gen Medicine-Med,OMEREET MEDICAL LTD,21437469,4235,,SKWR012OME2754
Department of Health,Worcestershire Acute Hospitals NHST,2017-01-31,Agency Medical Consultant,Gen Surg-Med,DUAS CONSULTANCY LTD,21437470,7380,,SKWR003DUA3264
Department of Health,Worcestershire Acute Hospitals NHST,2017-01-31,Agency Junior Doctor ST2,Gen Surg-Med,MEDICAL CARE UK LTD,21437471,2542,,SKWR013MED74
Department of Health,Worcestershire Acute Hospitals NHST,2017-01-31,Agency Medical Consultant,Radiology Med Staff WRH,RGD1 LTD,21437472,6720,,SKWR011RGD2763
Department of Health,Worcestershire Acute Hospitals NHST,2017-01-31,Agency Junior Doctor ST2,Gen Surg-Med,PATECO MEDICAL SERVICES LTD,21437473,1250.38,,SKWR002PAT3056
Department of Health,Worcestershire Acute Hospitals NHST,2017-01-31,Agency Junior Doctor ST3,Gen Medicine-Med,RIG LOCUMS LTD,21437474,207.2,,SKWR030RIG133
Department of Health,Worcestershire Acute Hospitals NHST,2017-01-31,Agency Junior Doctor ST3,Stroke Medics,RIG LOCUMS LTD,21437474,518,,SKWR030RIG133
Department of Health,Worcestershire Acute Hospitals NHST,2017-01-31,Agency Medical Consultant,Ophthalmology-Med,SK ANWER & CO LTD,21437475,4387.5,,SKWR016SKA1230
Department of Health,Worcestershire Acute Hospitals NHST,2017-01-31,Agency Medical Consultant,Respiratory Medics,DR RENATE HOMEWOOD LTD,21437476,5005,,SKWR007DRR2973
Department of Health,Worcestershire Acute Hospitals NHST,2017-01-31,Agency Junior Doctor ST2,Gen Surg-Med,MEDACS HEALTHCARE SERVICES PLC,21437477,201.02,745731030,SKWR044MED7
Department of Health,Worcestershire Acute Hospitals NHST,2017-01-31,Agency Junior Doctor ST3,Alex Medicine Medics,MEDACS HEALTHCARE SERVICES PLC,21437477,267.47,745731030,SKWR044MED7
Department of Health,Worcestershire Acute Hospitals NHST,2017-01-31,Agency Junior Doctor ST3,Obs + Gynae-Med,MEDACS HEALTHCARE SERVICES PLC,21437477,339.12,745731030,SKWR044MED7
Department of Health,Worcestershire Acute Hospitals NHST,2017-01-31,Agency Med Otr Career Gd,T&O Medical,MEDACS HEALTHCARE SERVICES PLC,21437477,752.59,745731030,SKWR044MED7
Department of Health,Worcestershire Acute Hospitals NHST,2017-01-31,Agency Medical Consultant,General Surg Medical,MEDACS HEALTHCARE SERVICES PLC,21437477,2805.04,745731030,SKWR044MED7
Department of Health,Worcestershire Acute Hospitals NHST,2017-01-31,Agency Medical Consultant,Obs + Gynae-Med,MEDACS HEALTHCARE SERVICES PLC,21437477,938.53,745731030,SKWR044MED7
Department of Health,Worcestershire Acute Hospitals NHST,2017-01-31,Agency Junior Doctor ST3,T&O Medical,GAMAL LOTFI LTD,21437478,3509,,SKWR018GAM2209
Department of Health,Worcestershire Acute Hospitals NHST,2017-01-31,Agency Junior Doctor ST3,Stroke Medics,OLIGODENDROGLIOCYTE GENERAL BUSINESS SUPPORT LTD,21437479,7200,,SKWR015OLI2362
Department of Health,Worcestershire Acute Hospitals NHST,2017-01-31,Agency Medical Consultant,Diabetic Medicine Alex,KALAIVANI VIJAY LTD,21437480,10200,,SKWR032KAL316
Department of Health,Worcestershire Acute Hospitals NHST,2017-01-31,Agency Med Otr Career Gd,General Surg Medical,MCK MIDLANDS LTD,21437481,3000,,SKWR019MCK2173
Department of Health,Worcestershire Acute Hospitals NHST,2017-01-31,Agency Medical Consultant,Gastro Medics Alex,AHSAN CONSULTANTS LTD,21437482,11850,,SKWR007AHS2894
Department of Health,Worcestershire Acute Hospitals NHST,2017-01-31,Agency Med Otr Career Gd,Gen Surg-Med,NIKOETI LTD,21437483,7061.34,,SKWR017NIK213
Department of Health,Worcestershire Acute Hospitals NHST,2017-01-31,Agency Junior Doctor ST3,A+E Medics- Alex,SHEBAAN LTD,21437484,6420,,SKWR044SHE167
Department of Health,Worcestershire Acute Hospitals NHST,2017-01-31,Agency Junior Doctor ST3,A+E Med Staffing WRH,MEDIRANGE LTD,21437485,1117.5,,SKWR003MED602
Department of Health,Worcestershire Acute Hospitals NHST,2017-01-31,Agency Med Otr Career Gd,A+E Medics- Alex,MEDIRANGE LTD,21437485,558.75,,SKWR003MED602
Department of Health,Worcestershire Acute Hospitals NHST,2017-01-31,Agency Medical Consultant,Respiratory Medics,ALDOR MED LTD,21437486,3600,,SKWR002ALD3329
Department of Health,Worcestershire Acute Hospitals NHST,2017-01-31,Agency Junior Doctor ST3,T&O Medical,SURGI CALL LOCUMS LTD,21437487,6308.35,935463704,SKWR044SUR135
Department of Health,Worcestershire Acute Hospitals NHST,2017-01-31,Agency Med Otr Career Gd,A+E Medics- Alex,SURGI CALL LOCUMS LTD,21437487,260.75,935463704,SKWR044SUR135
Department of Health,Worcestershire Acute Hospitals NHST,2017-01-31,Agency Medical Consultant,Ophthalmology-Med,SURGI CALL LOCUMS LTD,21437487,899.1,935463704,SKWR044SUR135
Department of Health,Worcestershire Acute Hospitals NHST,2017-01-31,Agency Medical Consultant,Older People Medics- Acon,TXM HEALTHCARE LTD,21437488,900,865086008,SKWR022TXM46
Department of Health,Worcestershire Acute Hospitals NHST,2017-01-31,Agency Junior Doctor ST3,Obs + Gynae-Med,INOB LTD,21437489,4200,,SKWR016INO2089
Department of Health,Worcestershire Acute Hospitals NHST,2017-01-31,Agency Junior Doctor ST2,A+E Med Staffing WRH,KAI MEDICAL LTD,21437490,1222.5,,SKWR001KAI3345
Department of Health,Worcestershire Acute Hospitals NHST,2017-01-31,Agency Medical Consultant,Older People Medics- Acon,UDEGO MEDICAL LTD,21437491,5400,,SKWR011UDE2864
Department of Health,Worcestershire Acute Hospitals NHST,2017-01-31,Agency Medical Consultant,Respiratory Medics Alex,NIYAMATH MEMORIAL LTD,21437492,11385,,SKWR007NIY2725
Department of Health,Worcestershire Acute Hospitals NHST,2017-01-31,Agency Medical Consultant,Obs + Gynae-Med,LYM LTD,21437493,6981.23,,SKWR015LYM1095
Department of Health,Worcestershire Acute Hospitals NHST,2017-01-31,Agency Junior Doctor FY2,Gastroenterology Medics,DR MAB LTD,21437494,2091.84,,SKWR013DRM2095
Department of Health,Worcestershire Acute Hospitals NHST,2017-01-31,Agency Medical Consultant,T&O Medical,AMPARDI CO LTD,21437495,3645.6,,SKWR019AMP442
Department of Health,Worcestershire Acute Hospitals NHST,2017-01-31,Agency Junior Doctor ST2,Cardio Medics- Alex,DBAJWA  LTD,21437496,5921.1,,SKWR001DBA3343
Department of Health,Worcestershire Acute Hospitals NHST,2017-01-31,Agency Junior Doctor ST3,Cardio Medics- Alex,AGATHOS MED LTD,21437497,5580,,SKWR036AGA740
Department of Health,Worcestershire Acute Hospitals NHST,2017-01-31,Agency Junior Doctor ST3,Older People Medics- Acon,,21437498,1440,,SKWR002DOC3278
Department of Health,Worcestershire Acute Hospitals NHST,2017-01-31,Agency Junior Doctor ST1,Countywide O&G Medics,HEM HEIGHTS LTD,21437499,2400,,SKWR005HEM444
Department of Health,Worcestershire Acute Hospitals NHST,2017-01-31,Agency Junior Doctor ST2,General Surg Medical,KHALID MEDICAL SERVICES LTD,21437500,2950.5,,SKWR006KHA2766
Department of Health,Worcestershire Acute Hospitals NHST,2017-01-31,Agency Junior Doctor ST2,Older People Medics- Acon,WC MEDICAL LTD,21437501,855,,SKWR011WCM1620
Department of Health,Worcestershire Acute Hospitals NHST,2017-01-31,Agency Junior Doctor ST3,Older People Medics Alex,ISHANKAR MEDICALS LTD,21437502,2548.56,,SKWR037ISH1174
Department of Health,Worcestershire Acute Hospitals NHST,2017-01-31,Agency Junior Doctor FY2,A+E Medics- Alex,AS MEDICAL CONSULTANCY LTD,21437503,800,,SKWR013ASM163
Department of Health,Worcestershire Acute Hospitals NHST,2017-01-31,Agency Junior Doctor ST3,Older People Medics Alex,AS MEDICAL CONSULTANCY LTD,21437503,8505,,SKWR013ASM163
Department of Health,Worcestershire Acute Hospitals NHST,2017-01-31,Agency Junior Doctor ST3,Gastro Medics Alex,AREEB & CO LTD,21437504,4865,,SKWR006ARE2922
Department of Health,Worcestershire Acute Hospitals NHST,2017-01-31,Agency Medical Consultant,General Surg Medical,RILE UK LTD,21437505,28392.21,,SKWR003RIL263
Department of Health,Worcestershire Acute Hospitals NHST,2017-01-31,Agency Junior Doctor FY2,A+E Medics- Alex,SSSP LTD,21437506,360,,SKWR031SSS746
Department of Health,Worcestershire Acute Hospitals NHST,2017-01-31,Agency Junior Doctor ST2,General Surg Medical,SSSP LTD,21437506,2304,,SKWR031SSS746
Department of Health,Worcestershire Acute Hospitals NHST,2017-01-31,Agency Medical Consultant,MAU Medics,PAVANA LTD,21437507,5254.84,,SKWR028PAV1788
Department of Health,Worcestershire Acute Hospitals NHST,2017-01-31,Agency Junior Doctor FY1,Older People Medics- Acon,HOLT DOCTORS LTD,21437508,527.01,889174856,SKWR044HOL18
Department of Health,Worcestershire Acute Hospitals NHST,2017-01-31,Agency Junior Doctor ST2,Stroke Medics,HOLT DOCTORS LTD,21437508,547.64,889174856,SKWR044HOL18
Department of Health,Worcestershire Acute Hospitals NHST,2017-01-31,Agency Junior Doctor ST3,Alex Medicine Medics,HOLT DOCTORS LTD,21437508,322.56,889174856,SKWR044HOL18
Department of Health,Worcestershire Acute Hospitals NHST,2017-01-31,Agency Junior Doctor ST3,T&O Medical,HOLT DOCTORS LTD,21437508,2535.12,889174856,SKWR044HOL18
Department of Health,Worcestershire Acute Hospitals NHST,2017-01-31,Agency Medical Consultant,Respiratory Medics,HOLT DOCTORS LTD,21437508,600,889174856,SKWR044HOL18
Department of Health,Worcestershire Acute Hospitals NHST,2017-01-31,Agency Medical Consultant,T&O Medical,HOLT DOCTORS LTD,21437508,313.14,889174856,SKWR044HOL18
Department of Health,Worcestershire Acute Hospitals NHST,2017-01-31,Agency Medical Consultant,Alex Medicine Medics,ZEB MEDICS LTD,21437509,6105,,SKWR010ZEB2407
Department of Health,Worcestershire Acute Hospitals NHST,2017-01-31,Agency Medical Consultant,Older People Medics Alex,ZEB MEDICS LTD,21437509,8800,,SKWR010ZEB2407
Department of Health,Worcestershire Acute Hospitals NHST,2017-01-31,Agency Junior Doctor FY2,MAU Medics,DR J WRIGHT LTD,21437510,3240,,SKWR003DRJ3163
Department of Health,Worcestershire Acute Hospitals NHST,2017-01-31,Agency Junior Doctor FY2,MAU Medics,TOTAL ASSIST RECRUITMENT LTD,21437511,25.44,876809565,SKWR044TOT37
Department of Health,Worcestershire Acute Hospitals NHST,2017-01-31,Agency Junior Doctor ST1,Countywide O&G Medics,TOTAL ASSIST RECRUITMENT LTD,21437511,7166.88,876809565,SKWR044TOT37
Department of Health,Worcestershire Acute Hospitals NHST,2017-01-31,Agency Junior Doctor ST1,Countywide Paediatrics Medics,TOTAL ASSIST RECRUITMENT LTD,21437511,195.26,876809565,SKWR044TOT37
Department of Health,Worcestershire Acute Hospitals NHST,2017-01-31,Agency Junior Doctor ST2,Gen Surg-Med,TOTAL ASSIST RECRUITMENT LTD,21437511,283.98,876809565,SKWR044TOT37
Department of Health,Worcestershire Acute Hospitals NHST,2017-01-31,Agency Junior Doctor ST3,Obs + Gynae-Med,TOTAL ASSIST RECRUITMENT LTD,21437511,525.68,876809565,SKWR044TOT37
Department of Health,Worcestershire Acute Hospitals NHST,2017-01-31,Agency Med Otr Career Gd,A+E Medics- Alex,TOTAL ASSIST RECRUITMENT LTD,21437511,790.5,876809565,SKWR044TOT37
Department of Health,Worcestershire Acute Hospitals NHST,2017-01-31,Agency Medical Consultant,A+E Med Staffing WRH,TOTAL ASSIST RECRUITMENT LTD,21437511,1020.78,876809565,SKWR044TOT37
Department of Health,Worcestershire Acute Hospitals NHST,2017-01-31,Agency Medical Consultant,Gastro Medics Alex,TOTAL ASSIST RECRUITMENT LTD,21437511,1911.15,876809565,SKWR044TOT37
Department of Health,Worcestershire Acute Hospitals NHST,2017-01-31,Agency Medical Consultant,MAU Medics,TOTAL ASSIST RECRUITMENT LTD,21437511,726.59,876809565,SKWR044TOT37
Department of Health,Worcestershire Acute Hospitals NHST,2017-01-31,Agency Medical Consultant,Older People Medics Alex,TOTAL ASSIST RECRUITMENT LTD,21437511,1083.06,876809565,SKWR044TOT37
Department of Health,Worcestershire Acute Hospitals NHST,2017-01-31,Agency Medical Consultant,Obs + Gynae-Med,V & V MEDICAL LTD,21437512,13472.5,,SKWR001VVM3286
Department of Health,Worcestershire Acute Hospitals NHST,2017-01-31,Agency Junior Doctor ST3,General Surg Medical,ZAAR MEDICAL LTD,21437513,4573,,SKWR024ZAA2174
Department of Health,Worcestershire Acute Hospitals NHST,2017-01-31,Agency Junior Doctor ST2,T&O Medical,PROMEDICAL PERSONNEL LTD,21437514,1649.75,933386312,SKWR043PRO33
Department of Health,Worcestershire Acute Hospitals NHST,2017-01-31,Agency Junior Doctor ST3,Obs + Gynae-Med,PROMEDICAL PERSONNEL LTD,21437514,827.64,933386312,SKWR043PRO33
Department of Health,Worcestershire Acute Hospitals NHST,2017-01-31,Agency Med Otr Career Gd,Gen Surg-Med,PROMEDICAL PERSONNEL LTD,21437514,1146.41,933386312,SKWR043PRO33
Department of Health,Worcestershire Acute Hospitals NHST,2017-01-31,Agency Med Otr Career Gd,T&O Medical,PROMEDICAL PERSONNEL LTD,21437514,5231.2,933386312,SKWR043PRO33
Department of Health,Worcestershire Acute Hospitals NHST,2017-01-31,Agency Med Otr Career Gd,A+E Medics- Alex,ACCIDENT MEDICAL SERVICES LTD,21437515,3297.5,,SKWR038ACC708
Department of Health,Worcestershire Acute Hospitals NHST,2017-01-31,Agency Med Otr Career Gd,T&O Medical,DRC LOCUMS LTD,21437516,8139.6,755876182,SKWR042DRC12
Department of Health,Worcestershire Acute Hospitals NHST,2017-01-31,Agency Medical Consultant,Gen Surg-Med,DRC LOCUMS LTD,21437516,830.51,755876182,SKWR042DRC12
Department of Health,Worcestershire Acute Hospitals NHST,2017-01-31,Agency Med Otr Career Gd,T&O Medical,ST ANTHONY'S BREAD LTD,21437517,3653.75,,SKWR012STA732
Department of Health,Worcestershire Acute Hospitals NHST,2017-01-31,Agency Medical Consultant,Gen Medicine-Med,HINCKLEY LOCUM SERVICES LTD,21437518,16637.5,,SKWR001HIN3338
Department of Health,Worcestershire Acute Hospitals NHST,2017-01-31,Agency Junior Doctor ST2,T&O Medical,SUPERMEDIX LTD,21437519,1190,,SKWR002SUP2377
Department of Health,Worcestershire Acute Hospitals NHST,2017-01-31,Agency Medical Consultant,Gen Medicine-Med,HINCKLEY LOCUM SERVICES LTD,21437520,1624.49,,SKWR002FRE2197
Department of Health,Worcestershire Acute Hospitals NHST,2017-01-31,Agency Medical Consultant,Gen Medicine-Med,ELKHATIM LTD (BOLTON),21437521,9142.5,,SKWR001ELK3159
Department of Health,Worcestershire Acute Hospitals NHST,2017-01-31,Agency Medical Consultant,Gen Medicine-Med,ELKHATIM LTD (BOLTON),21437522,715.5,,SKWR001FRE2197
Department of Health,Worcestershire Acute Hospitals NHST,2017-01-31,Agency Junior Doctor ST2,T&O Medical,SUPERMEDIX LTD,21437523,1570,,SKWR001SUP2377
Department of Health,Worcestershire Acute Hospitals NHST,2017-01-31,Agency Med Otr Career Gd,Anaesthetics- Med Staff,MC DAY LTD,21437524,751,,SKWR001MCD3040
Department of Health,Worcestershire Acute Hospitals NHST,2017-01-31,Furniture & Fittings,Paediatric Clinic,WEST MERCIA SUPPLIES,21437934,164.4,,B473033
Department of Health,Worcestershire Acute Hospitals NHST,2017-01-31,Laboratory External Tests,Radiology Med Staff WRH,MEDICA REPORTING LTD,21437937,-139.86,858701107,9376
Department of Health,Worcestershire Acute Hospitals NHST,2017-01-31,Materials - Electrical,Pharmacy - No Spec,ADT FIRE & SECURITY PLC,21437940,459.17,413633086,3362180002
Department of Health,Worcestershire Acute Hospitals NHST,2017-01-31,NonRes Bldg Additions,Balance Sheet,PARALLEL LINES (MARKING) LTD,21437941,7358.4,,1281
Department of Health,Worcestershire Acute Hospitals NHST,2017-01-31,Sterile Products,Main Theatre,SQUADRON MEDICAL LTD,21437944,506.64,398925088,9701698978
Department of Health,Worcestershire Acute Hospitals NHST,2017-01-31,Stationery,HSDU- Multi-Specialty,LABELS PLUS LTD,21437947,215.04,616357929,347933
Department of Health,Worcestershire Acute Hospitals NHST,2017-01-31,AUC Additions,Balance Sheet,MTD SCAFFOLDING LTD,21437951,1512.3,,0115250
Department of Health,Worcestershire Acute Hospitals NHST,2017-01-31,AUC Additions,Balance Sheet,MTD SCAFFOLDING LTD,21437952,100.82,,0115276
Department of Health,Worcestershire Acute Hospitals NHST,2017-01-31,Prostheses - Hips,T&O Medical,STRYKER UK LTD,21437955,49.2,787438865,27919170
Department of Health,Worcestershire Acute Hospitals NHST,2017-01-31,Surg Instruments General,Alex Theatre - Scrub,KEBOMED (UK) LTD,21437957,462.6,,INV064590
Department of Health,Worcestershire Acute Hospitals NHST,2017-01-31,Med & Surg Equip Disp,Cardiac Cath Lab,TERUMO UK LTD,21437959,56.4,804941042,3876030392
Department of Health,Worcestershire Acute Hospitals NHST,2017-01-31,Med & Surg Equip General,T&O Medical,PURPLE SURGICAL UK LTD,21437962,441,229120979,656652
Department of Health,Worcestershire Acute Hospitals NHST,2017-01-31,Bedding & Linen: Disp,Theatre,365 HEALTHCARE LTD,21437965,280.08,844466408,6012177
Department of Health,Worcestershire Acute Hospitals NHST,2017-01-31,NonRes Bldg Additions,Balance Sheet,DAKRO ENVIRONMENTAL LTD,21437968,726,729385106,0000066721
Department of Health,Worcestershire Acute Hospitals NHST,2017-01-31,Sterile Products,Main Theatre,SQUADRON MEDICAL LTD,21437970,111.6,398925088,9701699460
Department of Health,Worcestershire Acute Hospitals NHST,2017-01-31,Staff Uniforms & Clothing,Internal Recharges,MWUK ACQUISITION CO LTD T/A ALEXANDRA,21437973,-28.8,927156121,OLCRED00766905
Department of Health,Worcestershire Acute Hospitals NHST,2017-01-31,Staff Uniforms & Clothing,Internal Recharges,MWUK ACQUISITION CO LTD T/A ALEXANDRA,21437976,-76.8,927156121,OLCRED00766903
Department of Health,Worcestershire Acute Hospitals NHST,2017-01-31,Med & Surg Equip Disp,Cardiac Cath Lab,TERUMO UK LTD,21437987,112.8,804941042,3876030097
Department of Health,Worcestershire Acute Hospitals NHST,2017-01-31,Stents,Cardiac Cath Lab,TERUMO UK LTD,21437987,240,804941042,3876030097
Department of Health,Worcestershire Acute Hospitals NHST,2017-01-31,Med & Surg Equip General,T&O Medical,DE SOUTTER MEDICAL LTD,21437989,357.32,541298344,0000413006
Department of Health,Worcestershire Acute Hospitals NHST,2017-01-31,Anaesthetics Accessories,Alex Theatre - Scrub,MAQUET LTD,21437993,326.4,468850893,3129034911
Department of Health,Worcestershire Acute Hospitals NHST,2017-01-31,Med & Surg Equip Disp,T&O Medical,CANONBURY PRODUCTS LTD,21437995,69,393786102,INV780965
Department of Health,Worcestershire Acute Hospitals NHST,2017-01-31,Laboratory Chemicals,Histology,ROCHE DIAGNOSTICS LTD,21437997,3077.63,684424418,6570690508
Department of Health,Worcestershire Acute Hospitals NHST,2017-01-31,Anaesthetics Accessories,Alex Theatre - Scrub,COOK (UK) LTD,21437999,252,,16098074
Department of Health,Worcestershire Acute Hospitals NHST,2017-01-31,Med & Surg Equip Disp,Endoscopy,COOK (UK) LTD,21438000,297.36,,16098052
Department of Health,Worcestershire Acute Hospitals NHST,2017-01-31,Med & Surg Equip General,WRH ENT Theatre Non-Pay,JOHNSON & JOHNSON MEDICAL LTD,21438005,128.05,592926302,0091416368
Department of Health,Worcestershire Acute Hospitals NHST,2017-01-31,Prostheses,T&O Medical,JOHNSON & JOHNSON MEDICAL LTD,21438007,49.87,592926302,0091416366
Department of Health,Worcestershire Acute Hospitals NHST,2017-01-31,Prostheses,T&O Medical,JOHNSON & JOHNSON MEDICAL LTD,21438009,59.5,592926302,0091417174
Department of Health,Worcestershire Acute Hospitals NHST,2017-01-31,Staff Uniforms & Clothing,Main Theatre,BUNZL HEALTHCARE,21438011,139.31,286014266,OPI036306Y16
Department of Health,Worcestershire Acute Hospitals NHST,2017-01-31,Patients Appl: Purchase,Trauma + Orthopaedics WRH,BEAGLE ORTHOPAEDICS,21438012,371.75,915387017,0000196590
Department of Health,Worcestershire Acute Hospitals NHST,2017-01-31,Prostheses,T&O Medical,JOHNSON & JOHNSON MEDICAL LTD,21438016,29.18,592926302,0091417173
Department of Health,Worcestershire Acute Hospitals NHST,2017-01-31,Med & Surg Equip Disp,Radiology Dept WRH,BOSTON SCIENTIFIC LTD,21438018,102,896105403,7161563247
Department of Health,Worcestershire Acute Hospitals NHST,2017-01-31,Med & Surg Equip General,Alex Theatre - Scrub,BOSTON SCIENTIFIC LTD,21438020,900,896105403,7161568233
Department of Health,Worcestershire Acute Hospitals NHST,2017-01-31,Stents,Cardiac Cath Lab,BOSTON SCIENTIFIC LTD,21438024,144,896105403,7161561565
Department of Health,Worcestershire Acute Hospitals NHST,2017-01-31,Med & Surg Equip Disp,Cardiac Cath Lab,BOSTON SCIENTIFIC LTD,21438026,100.8,896105403,7161502224
Department of Health,Worcestershire Acute Hospitals NHST,2017-01-31,Stents,Cardiac Cath Lab,BOSTON SCIENTIFIC LTD,21438028,168,896105403,7161585692
Department of Health,Worcestershire Acute Hospitals NHST,2017-01-31,Med & Surg Equip General,Alex Theatre - Scrub,BOSTON SCIENTIFIC LTD,21438030,900,896105403,7161585956
Department of Health,Worcestershire Acute Hospitals NHST,2017-01-31,Surg Instruments Disp,Alex Theatre - Scrub,BOSTON SCIENTIFIC LTD,21438030,1110,896105403,7161585956
Department of Health,Worcestershire Acute Hospitals NHST,2017-01-31,Med & Surg Equip General,Alex Theatre - Scrub,BOSTON SCIENTIFIC LTD,21438031,1290.24,896105403,7161585211
Department of Health,Worcestershire Acute Hospitals NHST,2017-01-31,Med & Surg Equip Disp,Cardiac Cath Lab,BOSTON SCIENTIFIC LTD,21438032,50.4,896105403,7161580475
Department of Health,Worcestershire Acute Hospitals NHST,2017-01-31,Stents,Cardiac Cath Lab,BOSTON SCIENTIFIC LTD,21438033,168,896105403,7161579148
Department of Health,Worcestershire Acute Hospitals NHST,2017-01-31,Stents,Cardiac Cath Lab,BOSTON SCIENTIFIC LTD,21438034,50.4,896105403,7161502227
Department of Health,Worcestershire Acute Hospitals NHST,2017-01-31,Surg Instruments Disp,Alex Theatre - Scrub,BOSTON SCIENTIFIC LTD,21438035,1110,896105403,7161558780
Department of Health,Worcestershire Acute Hospitals NHST,2017-01-31,Stents,Cardiac Cath Lab,BOSTON SCIENTIFIC LTD,21438036,192,896105403,7161557271
Department of Health,Worcestershire Acute Hospitals NHST,2017-01-31,Stents,Cardiac Cath Lab,BOSTON SCIENTIFIC LTD,21438037,144,896105403,7161565596
Department of Health,Worcestershire Acute Hospitals NHST,2017-01-31,Stents,Cardiac Cath Lab,BOSTON SCIENTIFIC LTD,21438039,151.2,896105403,7161564532
Department of Health,Worcestershire Acute Hospitals NHST,2017-01-31,Med & Surg Equip Disp,Cardiac Cath Lab,BOSTON SCIENTIFIC LTD,21438041,100.8,896105403,7161571475
Department of Health,Worcestershire Acute Hospitals NHST,2017-01-31,Stents,Cardiac Cath Lab,BOSTON SCIENTIFIC LTD,21438041,50.4,896105403,7161571475
Department of Health,Worcestershire Acute Hospitals NHST,2017-01-31,Med & Surg Equip General,Alex Theatre - Scrub,BOSTON SCIENTIFIC LTD,21438043,322.56,896105403,7161568234
Department of Health,Worcestershire Acute Hospitals NHST,2017-01-31,Surg Instruments Disp,Alex Theatre - Scrub,BOSTON SCIENTIFIC LTD,21438043,1110,896105403,7161568234
Department of Health,Worcestershire Acute Hospitals NHST,2017-01-31,Med & Surg Equip Disp,Cardiac Cath Lab,BOSTON SCIENTIFIC LTD,21438044,100.8,896105403,7161568598
Department of Health,Worcestershire Acute Hospitals NHST,2017-01-31,Stents,Cardiac Cath Lab,BOSTON SCIENTIFIC LTD,21438044,318,896105403,7161568598
Department of Health,Worcestershire Acute Hospitals NHST,2017-01-31,Stents,Cardiac Cath Lab,BOSTON SCIENTIFIC LTD,21438045,48,896105403,7161561567
Department of Health,Worcestershire Acute Hospitals NHST,2017-01-31,Med & Surg Equip Disp,Cardiac Cath Lab,BOSTON SCIENTIFIC LTD,21438046,50.4,896105403,7161569166
Department of Health,Worcestershire Acute Hospitals NHST,2017-01-31,Med & Surg Equip Disp,Cardiac Cath Lab,BOSTON SCIENTIFIC LTD,21438047,151.2,896105403,7161586977
Department of Health,Worcestershire Acute Hospitals NHST,2017-01-31,Med & Surg Equip Disp,Cardiac Cath Lab,BOSTON SCIENTIFIC LTD,21438048,50.4,896105403,7161585693
Department of Health,Worcestershire Acute Hospitals NHST,2017-01-31,Stents,Cardiac Cath Lab,BOSTON SCIENTIFIC LTD,21438049,636,896105403,7161585689
Department of Health,Worcestershire Acute Hospitals NHST,2017-01-31,Med & Surg Equip Disp,Cardiac Cath Lab,BOSTON SCIENTIFIC LTD,21438050,50.4,896105403,7161584941
Department of Health,Worcestershire Acute Hospitals NHST,2017-01-31,Stents,Cardiac Cath Lab,BOSTON SCIENTIFIC LTD,21438051,192,896105403,7161584942
Department of Health,Worcestershire Acute Hospitals NHST,2017-01-31,Stents,Cardiac Cath Lab,BOSTON SCIENTIFIC LTD,21438052,240,896105403,7161581650
Department of Health,Worcestershire Acute Hospitals NHST,2017-01-31,Med & Surg Equip Disp,Cardiac Cath Lab,BOSTON SCIENTIFIC LTD,21438053,50.4,896105403,7161557855
Department of Health,Worcestershire Acute Hospitals NHST,2017-01-31,Med & Surg Equip Disp,Cardiac Cath Lab,BOSTON SCIENTIFIC LTD,21438054,100.8,896105403,7161557269
Department of Health,Worcestershire Acute Hospitals NHST,2017-01-31,Stents,Cardiac Cath Lab,BOSTON SCIENTIFIC LTD,21438055,954,896105403,7161502229
Department of Health,Worcestershire Acute Hospitals NHST,2017-01-31,Stents,Cardiac Cath Lab,BOSTON SCIENTIFIC LTD,21438056,72,896105403,7161559742
Department of Health,Worcestershire Acute Hospitals NHST,2017-01-31,Med & Surg Equip Disp,Cardiac Cath Lab,BOSTON SCIENTIFIC LTD,21438057,100.8,896105403,7161579142
Department of Health,Worcestershire Acute Hospitals NHST,2017-01-31,Stents,Cardiac Cath Lab,BOSTON SCIENTIFIC LTD,21438057,50.4,896105403,7161579142
Department of Health,Worcestershire Acute Hospitals NHST,2017-01-31,Stents,Cardiac Cath Lab,BOSTON SCIENTIFIC LTD,21438058,151.2,896105403,7161579143
Department of Health,Worcestershire Acute Hospitals NHST,2017-01-31,Stents,Cardiac Cath Lab,BOSTON SCIENTIFIC LTD,21438059,120,896105403,7161579144
Department of Health,Worcestershire Acute Hospitals NHST,2017-01-31,Stents,Cardiac Cath Lab,BOSTON SCIENTIFIC LTD,21438060,240,896105403,7161573183
Department of Health,Worcestershire Acute Hospitals NHST,2017-01-31,Stents,Cardiac Cath Lab,BOSTON SCIENTIFIC LTD,21438061,72,896105403,7161572560
Department of Health,Worcestershire Acute Hospitals NHST,2017-01-31,Med & Surg Equip Disp,Cardiac Cath Lab,BOSTON SCIENTIFIC LTD,21438063,201.6,896105403,7161569167
Department of Health,Worcestershire Acute Hospitals NHST,2017-01-31,Stents,Cardiac Cath Lab,BOSTON SCIENTIFIC LTD,21438063,318,896105403,7161569167
Department of Health,Worcestershire Acute Hospitals NHST,2017-01-31,Med & Surg Equip Disp,Cardiac Cath Lab,BOSTON SCIENTIFIC LTD,21438065,554.4,896105403,7161576243
Department of Health,Worcestershire Acute Hospitals NHST,2017-01-31,Stents,Cardiac Cath Lab,BOSTON SCIENTIFIC LTD,21438065,50.4,896105403,7161576243
Department of Health,Worcestershire Acute Hospitals NHST,2017-01-31,Stents,Cardiac Cath Lab,BOSTON SCIENTIFIC LTD,21438066,318,896105403,7161567439
Department of Health,Worcestershire Acute Hospitals NHST,2017-01-31,Stents,Cardiac Cath Lab,BOSTON SCIENTIFIC LTD,21438067,120,896105403,7161568599
Department of Health,Worcestershire Acute Hospitals NHST,2017-01-31,Stents,Cardiac Cath Lab,BOSTON SCIENTIFIC LTD,21438068,192,896105403,7161567436
Department of Health,Worcestershire Acute Hospitals NHST,2017-01-31,Stents,Cardiac Cath Lab,BOSTON SCIENTIFIC LTD,21438069,48,896105403,7161586975
Department of Health,Worcestershire Acute Hospitals NHST,2017-01-31,Stents,Cardiac Cath Lab,BOSTON SCIENTIFIC LTD,21438070,240,896105403,7161585691
Department of Health,Worcestershire Acute Hospitals NHST,2017-01-31,Med & Surg Equip Disp,Cardiac Cath Lab,BOSTON SCIENTIFIC LTD,21438071,100.8,896105403,7161581649
Department of Health,Worcestershire Acute Hospitals NHST,2017-01-31,Med & Surg Equip General,Alex Theatre - Scrub,BOSTON SCIENTIFIC LTD,21438072,612,896105403,7161578154
Department of Health,Worcestershire Acute Hospitals NHST,2017-01-31,Surg Instruments Disp,Alex Theatre - Scrub,BOSTON SCIENTIFIC LTD,21438072,888,896105403,7161578154
Department of Health,Worcestershire Acute Hospitals NHST,2017-01-31,Med & Surg Equip General,Alex Theatre - Scrub,BOSTON SCIENTIFIC LTD,21438073,900,896105403,7161557484
Department of Health,Worcestershire Acute Hospitals NHST,2017-01-31,Med & Surg Equip Disp,Cardiac Cath Lab,BOSTON SCIENTIFIC LTD,21438074,50.4,896105403,7161557268
Department of Health,Worcestershire Acute Hospitals NHST,2017-01-31,Stents,Cardiac Cath Lab,BOSTON SCIENTIFIC LTD,21438075,288,896105403,7161502228
Department of Health,Worcestershire Acute Hospitals NHST,2017-01-31,Stents,Cardiac Cath Lab,BOSTON SCIENTIFIC LTD,21438077,48,896105403,7161559744
Department of Health,Worcestershire Acute Hospitals NHST,2017-01-31,Med & Surg Equip Disp,Cardiac Cath Lab,BOSTON SCIENTIFIC LTD,21438078,50.4,896105403,7161574358
Department of Health,Worcestershire Acute Hospitals NHST,2017-01-31,Stents,Cardiac Cath Lab,BOSTON SCIENTIFIC LTD,21438078,100.8,896105403,7161574358
Department of Health,Worcestershire Acute Hospitals NHST,2017-01-31,Stents,Cardiac Cath Lab,BOSTON SCIENTIFIC LTD,21438079,192,896105403,7161574360
Department of Health,Worcestershire Acute Hospitals NHST,2017-01-31,Stents,Cardiac Cath Lab,BOSTON SCIENTIFIC LTD,21438080,318,896105403,7161573187
Department of Health,Worcestershire Acute Hospitals NHST,2017-01-31,Med & Surg Equip Disp,Cardiac Cath Lab,BOSTON SCIENTIFIC LTD,21438081,151.2,896105403,7161573185
Department of Health,Worcestershire Acute Hospitals NHST,2017-01-31,Med & Surg Equip General,Alex Theatre - Scrub,BOSTON SCIENTIFIC LTD,21438082,990,896105403,7161569976
Department of Health,Worcestershire Acute Hospitals NHST,2017-01-31,Med & Surg Equip Disp,Cardiac Cath Lab,BOSTON SCIENTIFIC LTD,21438083,201.6,896105403,7161557266
Department of Health,Worcestershire Acute Hospitals NHST,2017-01-31,Med & Surg Equip Disp,Cardiac Cath Lab,BOSTON SCIENTIFIC LTD,21438084,352.8,896105403,7161557267
Department of Health,Worcestershire Acute Hospitals NHST,2017-01-31,Med & Surg Equip Disp,Cardiac Cath Lab,BOSTON SCIENTIFIC LTD,21438085,201.6,896105403,7161585690
Department of Health,Worcestershire Acute Hospitals NHST,2017-01-31,Stents,Cardiac Cath Lab,BOSTON SCIENTIFIC LTD,21438085,50.4,896105403,7161585690
Department of Health,Worcestershire Acute Hospitals NHST,2017-01-31,Med & Surg Equip Disp,Radiology Dept WRH,BOSTON SCIENTIFIC LTD,21438086,552,896105403,7161560942
Department of Health,Worcestershire Acute Hospitals NHST,2017-01-31,Med & Surg Equip General,Radiology Dept WRH,BOSTON SCIENTIFIC LTD,21438086,108,896105403,7161560942
Department of Health,Worcestershire Acute Hospitals NHST,2017-01-31,Stents,Radiology Dept WRH,BOSTON SCIENTIFIC LTD,21438086,840,896105403,7161560942
Department of Health,Worcestershire Acute Hospitals NHST,2017-01-31,Med & Surg Equip Disp,Cardiac Cath Lab,BOSTON SCIENTIFIC LTD,21438087,252,896105403,7161561564
Department of Health,Worcestershire Acute Hospitals NHST,2017-01-31,Stents,Cardiac Cath Lab,BOSTON SCIENTIFIC LTD,21438087,100.8,896105403,7161561564
Department of Health,Worcestershire Acute Hospitals NHST,2017-01-31,Med & Surg Equip Disp,Cardiac Cath Lab,BOSTON SCIENTIFIC LTD,21438088,50.4,896105403,7161561566
Department of Health,Worcestershire Acute Hospitals NHST,2017-01-31,Stents,Cardiac Cath Lab,BOSTON SCIENTIFIC LTD,21438088,151.2,896105403,7161561566
Department of Health,Worcestershire Acute Hospitals NHST,2017-01-31,Med & Surg Equip Disp,Cardiac Cath Lab,BOSTON SCIENTIFIC LTD,21438089,151.2,896105403,7161565594
Department of Health,Worcestershire Acute Hospitals NHST,2017-01-31,Stents,Cardiac Cath Lab,BOSTON SCIENTIFIC LTD,21438089,318,896105403,7161565594
Department of Health,Worcestershire Acute Hospitals NHST,2017-01-31,Med & Surg Equip Disp,Cardiac Cath Lab,BOSTON SCIENTIFIC LTD,21438090,352.8,896105403,7161502225
Department of Health,Worcestershire Acute Hospitals NHST,2017-01-31,Med & Surg Equip Disp,Cardiac Cath Lab,BOSTON SCIENTIFIC LTD,21438091,302.4,896105403,7161579146
Department of Health,Worcestershire Acute Hospitals NHST,2017-01-31,Med & Surg Equip Disp,Cardiac Cath Lab,BOSTON SCIENTIFIC LTD,21438092,403.2,896105403,7161579147
Department of Health,Worcestershire Acute Hospitals NHST,2017-01-31,Cleaning Materials,Other Pass Throughs,OSWALD DONNER & CO LTD,21438093,370.8,,67521
Department of Health,Worcestershire Acute Hospitals NHST,2017-01-31,Med & Surg Equip Disp,Dental Laboratory,CAVENDISH IMAGING,21438094,150,,77741
Department of Health,Worcestershire Acute Hospitals NHST,2017-01-31,Provisions,Catering Dept-No Spec,HARRY YEARSLEY LTD,21438095,442.58,876337878,905314184
Department of Health,Worcestershire Acute Hospitals NHST,2017-01-31,Med & Surg Equip Disp,Cardiac Cath Lab,BOSTON SCIENTIFIC LTD,21438096,252,896105403,7161567434
Department of Health,Worcestershire Acute Hospitals NHST,2017-01-31,Med & Surg Equip Disp,Cardiac Cath Lab,BOSTON SCIENTIFIC LTD,21438097,201.6,896105403,7161572559
Department of Health,Worcestershire Acute Hospitals NHST,2017-01-31,Stents,Cardiac Cath Lab,BOSTON SCIENTIFIC LTD,21438097,100.8,896105403,7161572559
Department of Health,Worcestershire Acute Hospitals NHST,2017-01-31,Stents,Cardiac Cath Lab,BOSTON SCIENTIFIC LTD,21438098,264,896105403,7161579145
Department of Health,Worcestershire Acute Hospitals NHST,2017-01-31,Stents,Cardiac Cath Lab,BOSTON SCIENTIFIC LTD,21438099,864,896105403,7161582330
Department of Health,Worcestershire Acute Hospitals NHST,2017-01-31,Med & Surg Equip Disp,Endoscopy Alex,BOSTON SCIENTIFIC LTD,21438100,5788.91,896105403,7161584561
Department of Health,Worcestershire Acute Hospitals NHST,2017-01-31,Med & Surg Equip Disp,Cardiac Cath Lab,BOSTON SCIENTIFIC LTD,21438101,151.2,896105403,7161565595
Department of Health,Worcestershire Acute Hospitals NHST,2017-01-31,Stents,Cardiac Cath Lab,BOSTON SCIENTIFIC LTD,21438101,318,896105403,7161565595
Department of Health,Worcestershire Acute Hospitals NHST,2017-01-31,Stents,Cardiac Cath Lab,BOSTON SCIENTIFIC LTD,21438102,201.6,896105403,7161502226
Department of Health,Worcestershire Acute Hospitals NHST,2017-01-31,Med & Surg Equip Disp,Cardiac Cath Lab,BOSTON SCIENTIFIC LTD,21438103,302.4,896105403,7161584940
Department of Health,Worcestershire Acute Hospitals NHST,2017-01-31,Stents,Cardiac Cath Lab,BOSTON SCIENTIFIC LTD,21438103,318,896105403,7161584940
Department of Health,Worcestershire Acute Hospitals NHST,2017-01-31,Med & Surg Equip Disp,Cardiac Cath Lab,BOSTON SCIENTIFIC LTD,21438104,201.6,896105403,7161559741
Department of Health,Worcestershire Acute Hospitals NHST,2017-01-31,Stents,Cardiac Cath Lab,BOSTON SCIENTIFIC LTD,21438104,100.8,896105403,7161559741
Department of Health,Worcestershire Acute Hospitals NHST,2017-01-31,Med & Surg Equip Disp,Cardiac Cath Lab,BOSTON SCIENTIFIC LTD,21438105,100.8,896105403,7161559743
Department of Health,Worcestershire Acute Hospitals NHST,2017-01-31,Stents,Cardiac Cath Lab,BOSTON SCIENTIFIC LTD,21438105,736.8,896105403,7161559743
Department of Health,Worcestershire Acute Hospitals NHST,2017-01-31,Cleaning Materials,Other Pass Throughs,OSWALD DONNER & CO LTD,21438106,370.8,,67517
Department of Health,Worcestershire Acute Hospitals NHST,2017-01-31,Admin & Clerical band 3,ENT Clinic (Linden Suite),SHEFFMED TRADE SERVICES LTD,21438107,207.6,763841901,46670
Department of Health,Worcestershire Acute Hospitals NHST,2017-01-31,WDC Revenue,ENT Clinic (Linden Suite),SHEFFMED TRADE SERVICES LTD,21438107,234,763841901,46670
Department of Health,Worcestershire Acute Hospitals NHST,2017-01-31,Patients Appl: Purchase,Trauma + Orthopaed KGH,DACEY LTD,21438279,61.98,433460177,472343
Department of Health,Worcestershire Acute Hospitals NHST,2017-01-31,Patients Appl: Purchase,GP Direct Access Worcs,DACEY LTD,21438282,156.83,433460177,472346
Department of Health,Worcestershire Acute Hospitals NHST,2017-01-31,Patients Appl: Purchase,Trauma + Orthopaedics WRH,DACEY LTD,21438286,92.08,433460177,472348
Department of Health,Worcestershire Acute Hospitals NHST,2017-01-31,Patients Appl: Purchase,GP Direct Access KGH,DACEY LTD,21438289,459.82,433460177,472349
Department of Health,Worcestershire Acute Hospitals NHST,2017-01-31,Patients Appl: Repairs,GP Direct Access KGH,DACEY LTD,21438292,49.87,433460177,472350
Department of Health,Worcestershire Acute Hospitals NHST,2017-01-31,Patients Appl: Purchase,GP Direct Access KGH,DACEY LTD,21438295,46.04,433460177,472351
Department of Health,Worcestershire Acute Hospitals NHST,2017-01-31,Patients Appl: Purchase,Trauma + Orthopaed KGH,DACEY LTD,21438298,92.18,433460177,472352
Department of Health,Worcestershire Acute Hospitals NHST,2017-01-31,Patients Appl: Repairs,GP Direct Access KGH,DACEY LTD,21438301,22.96,433460177,472353
Department of Health,Worcestershire Acute Hospitals NHST,2017-01-31,Patients Appl: Purchase,Trauma + Orthopaedics WRH,DACEY LTD,21438303,133.31,433460177,472325
Department of Health,Worcestershire Acute Hospitals NHST,2017-01-31,Patients Appl: Purchase,GP Direct Access KGH,DACEY LTD,21438306,95.33,433460177,472326
Department of Health,Worcestershire Acute Hospitals NHST,2017-01-31,Patients Appl: Purchase,GP Direct Access KGH,DACEY LTD,21438309,98.41,433460177,472331
Department of Health,Worcestershire Acute Hospitals NHST,2017-01-31,Patients Appl: Purchase,GP Direct Access Worcs,DACEY LTD,21438311,339.86,433460177,472252
Department of Health,Worcestershire Acute Hospitals NHST,2017-01-31,Patients Appl: Purchase,GP Direct Access Worcs,DACEY LTD,21438314,478.49,433460177,472254
Department of Health,Worcestershire Acute Hospitals NHST,2017-01-31,Patients Appl: Purchase,Elderly Care,DACEY LTD,21438317,502.61,433460177,472255
Department of Health,Worcestershire Acute Hospitals NHST,2017-01-31,Patients Appl: Purchase,Vascular Surgery,DACEY LTD,21438320,168.83,433460177,472259
Department of Health,Worcestershire Acute Hospitals NHST,2017-01-31,Patients Appl: Purchase,GP Direct Access Worcs,DACEY LTD,21438323,48.59,433460177,472264
Department of Health,Worcestershire Acute Hospitals NHST,2017-01-31,Patients Appl: Purchase,Trauma + Orthopaed Alex,DACEY LTD,21438327,95.33,433460177,472283
Department of Health,Worcestershire Acute Hospitals NHST,2017-01-31,Patients Appl: Purchase,GP Direct Access Worcs,DACEY LTD,21438330,48.59,433460177,472223
Department of Health,Worcestershire Acute Hospitals NHST,2017-01-31,Patients Appl: Purchase,GP Direct Access KGH,DACEY LTD,21438333,87.82,433460177,472224
Department of Health,Worcestershire Acute Hospitals NHST,2017-01-31,Patients Appl: Purchase,GP Direct Access Worcs,DACEY LTD,21438336,449.94,433460177,472225
Department of Health,Worcestershire Acute Hospitals NHST,2017-01-31,Patients Appl: Repairs,GP Direct Access Worcs,DACEY LTD,21438339,48.25,433460177,472230
Department of Health,Worcestershire Acute Hospitals NHST,2017-01-31,Patients Appl: Purchase,Trauma + Orthopaedics WRH,DACEY LTD,21438341,577.76,433460177,472232
Department of Health,Worcestershire Acute Hospitals NHST,2017-01-31,Patients Appl: Purchase,Rheumatology Worc,DACEY LTD,21438343,78.66,433460177,472233
Department of Health,Worcestershire Acute Hospitals NHST,2017-01-31,Patients Appl: Purchase,Trauma + Orthopaedics WRH,DACEY LTD,21438345,95.33,433460177,472238
Department of Health,Worcestershire Acute Hospitals NHST,2017-01-31,Patients Appl: Purchase,GP Direct Access KGH,DACEY LTD,21438348,112.55,433460177,472335
Department of Health,Worcestershire Acute Hospitals NHST,2017-01-31,Patients Appl: Purchase,Trauma + Orthopaed KGH,DACEY LTD,21438351,40.68,433460177,472338
Department of Health,Worcestershire Acute Hospitals NHST,2017-01-31,Patients Appl: Purchase,General Medicine KGH,DACEY LTD,21438352,41.68,433460177,472341
Department of Health,Worcestershire Acute Hospitals NHST,2017-01-31,Staff Uniforms & Clothing,Occupational Therapy,BIRMINGHAM INDUSTRIAL THERAPY ASSOCIATION,21438362,28.8,110477992,1062
Department of Health,Worcestershire Acute Hospitals NHST,2017-01-31,Med & Surg Equip General,T&O Medical,JRI ORTHOPAEDICS LTD,21438375,1756.8,236430383,SI029709
Department of Health,Worcestershire Acute Hospitals NHST,2017-01-31,Med & Surg Equip General,Theatre,APPLIED MEDICAL UK LTD,21438377,2610,905621247,94073975
Department of Health,Worcestershire Acute Hospitals NHST,2017-01-31,Med & Surg Equip Disp,Cardiac Cath Lab,TERUMO UK LTD,21438379,169.2,804941042,3876030611
Department of Health,Worcestershire Acute Hospitals NHST,2017-01-31,Patients Appl: Purchase,Trauma + Orthopaedics WRH,DACEY LTD,21438381,449.94,433460177,472342
Department of Health,Worcestershire Acute Hospitals NHST,2017-01-31,Patients Appl: Purchase,GP Direct Access KGH,DACEY LTD,21438383,176.97,433460177,472344
Department of Health,Worcestershire Acute Hospitals NHST,2017-01-31,Patients Appl: Purchase,GP Direct Access Worcs,DACEY LTD,21438385,156.83,433460177,472261
Department of Health,Worcestershire Acute Hospitals NHST,2017-01-31,Patients Appl: Purchase,GP Direct Access Worcs,DACEY LTD,21438387,95.33,433460177,472263
Department of Health,Worcestershire Acute Hospitals NHST,2017-01-31,Patients Appl: Purchase,Trauma + Orthopaedics WRH,DACEY LTD,21438389,95.33,433460177,472266
Department of Health,Worcestershire Acute Hospitals NHST,2017-01-31,Patients Appl: Purchase,Trauma + Orthopaedics WRH,DACEY LTD,21438391,32.02,433460177,472267
Department of Health,Worcestershire Acute Hospitals NHST,2017-01-31,Patients Appl: Purchase,GP Direct Access Worcs,DACEY LTD,21438393,25.15,433460177,472268
Department of Health,Worcestershire Acute Hospitals NHST,2017-01-31,Patients Appl: Repairs,GP Direct Access Worcs,DACEY LTD,21438397,44.48,433460177,472271
Department of Health,Worcestershire Acute Hospitals NHST,2017-01-31,Patients Appl: Purchase,GP Direct Access KGH,DACEY LTD,21438399,485.59,433460177,472272
Department of Health,Worcestershire Acute Hospitals NHST,2017-01-31,Patients Appl: Purchase,GP Direct Access Alex,DACEY LTD,21438400,319.8,433460177,472273
Department of Health,Worcestershire Acute Hospitals NHST,2017-01-31,Patients Appl: Purchase,GP Direct Access Alex,DACEY LTD,21438402,326.58,433460177,472274
Department of Health,Worcestershire Acute Hospitals NHST,2017-01-31,Patients Appl: Purchase,GP Direct Access Alex,DACEY LTD,21438404,156.94,433460177,472275
Department of Health,Worcestershire Acute Hospitals NHST,2017-01-31,Patients Appl: Purchase,GP Direct Access Alex,DACEY LTD,21438406,95.33,433460177,472276
Department of Health,Worcestershire Acute Hospitals NHST,2017-01-31,Patients Appl: Purchase,GP Direct Access Alex,DACEY LTD,21438408,48.59,433460177,472277
Department of Health,Worcestershire Acute Hospitals NHST,2017-01-31,Patients Appl: Purchase,GP Direct Access Alex,DACEY LTD,21438409,73.8,433460177,472278
Department of Health,Worcestershire Acute Hospitals NHST,2017-01-31,Patients Appl: Purchase,GP Direct Access Alex,DACEY LTD,21438410,91.02,433460177,472279
Department of Health,Worcestershire Acute Hospitals NHST,2017-01-31,Patients Appl: Purchase,GP Direct Access Alex,DACEY LTD,21438411,112.55,433460177,472284
Department of Health,Worcestershire Acute Hospitals NHST,2017-01-31,Patients Appl: Repairs,GP Direct Access Worcs,DACEY LTD,21438412,114.76,433460177,472228
Department of Health,Worcestershire Acute Hospitals NHST,2017-01-31,Patients Appl: Purchase,Trauma + Orthopaedics WRH,DACEY LTD,21438413,478.49,433460177,472237
Department of Health,Worcestershire Acute Hospitals NHST,2017-01-31,Patients Appl: Purchase,Diabetes,DACEY LTD,21438414,92.45,433460177,472239
Department of Health,Worcestershire Acute Hospitals NHST,2017-01-31,Patients Appl: Purchase,Trauma + Orthopaedics WRH,DACEY LTD,21438415,37.92,433460177,472243
Department of Health,Worcestershire Acute Hospitals NHST,2017-01-31,Patients Appl: Purchase,Diabetes,DACEY LTD,21438416,996.68,433460177,472143
Department of Health,Worcestershire Acute Hospitals NHST,2017-01-31,Patients Appl: Repairs,Trauma + Orthopaed KGH,DACEY LTD,21438417,77.5,433460177,471481
Department of Health,Worcestershire Acute Hospitals NHST,2017-01-31,Patients Appl: Purchase,GP Direct Access Worcs,DACEY LTD,21438418,383.28,433460177,472408
Department of Health,Worcestershire Acute Hospitals NHST,2017-01-31,Patients Appl: Purchase,GP Direct Access KGH,DACEY LTD,21438419,56.34,433460177,472336
Department of Health,Worcestershire Acute Hospitals NHST,2017-01-31,Patients Appl: Purchase,Trauma + Orthopaed KGH,DACEY LTD,21438420,449.94,433460177,472339
Department of Health,Worcestershire Acute Hospitals NHST,2017-01-31,Stents,Cardiac Cath Lab,TERUMO UK LTD,21438442,576,804941042,3876030390
Department of Health,Worcestershire Acute Hospitals NHST,2017-01-31,Stents,Cardiac Cath Lab,TERUMO UK LTD,21438443,1710,804941042,3876030612
Department of Health,Worcestershire Acute Hospitals NHST,2017-01-31,Patients Appl: Purchase,General Medicine Worcs,DACEY LTD,21438444,89.37,433460177,472345
Department of Health,Worcestershire Acute Hospitals NHST,2017-01-31,Patients Appl: Purchase,Trauma + Orthopaed KGH,DACEY LTD,21438445,112.55,433460177,472347
Department of Health,Worcestershire Acute Hospitals NHST,2017-01-31,Patients Appl: Purchase,GP Direct Access KGH,DACEY LTD,21438446,123.01,433460177,472327
Department of Health,Worcestershire Acute Hospitals NHST,2017-01-31,Patients Appl: Purchase,GP Direct Access KGH,DACEY LTD,21438447,49.2,433460177,472328
Department of Health,Worcestershire Acute Hospitals NHST,2017-01-31,Patients Appl: Purchase,GP Direct Access KGH,DACEY LTD,21438448,49.2,433460177,472329
Department of Health,Worcestershire Acute Hospitals NHST,2017-01-31,Patients Appl: Purchase,GP Direct Access Worcs,DACEY LTD,21438449,49.2,433460177,472330
Department of Health,Worcestershire Acute Hospitals NHST,2017-01-31,Patients Appl: Purchase,GP Direct Access KGH,DACEY LTD,21438450,322.18,433460177,472270
Department of Health,Worcestershire Acute Hospitals NHST,2017-01-31,Patients Appl: Purchase,Rheumatology Alex,DACEY LTD,21438451,478.49,433460177,472280
Department of Health,Worcestershire Acute Hospitals NHST,2017-01-31,Patients Appl: Purchase,Rheumatology Alex,DACEY LTD,21438452,38.45,433460177,472281
Department of Health,Worcestershire Acute Hospitals NHST,2017-01-31,Patients Appl: Purchase,GP Direct Access Alex,DACEY LTD,21438453,48.59,433460177,472282
Department of Health,Worcestershire Acute Hospitals NHST,2017-01-31,Patients Appl: Purchase,Rheumatology Alex,DACEY LTD,21438454,111.78,433460177,472217
Department of Health,Worcestershire Acute Hospitals NHST,2017-01-31,Patients Appl: Purchase,GP Direct Access KGH,DACEY LTD,21438455,42.74,433460177,472221
Department of Health,Worcestershire Acute Hospitals NHST,2017-01-31,Patients Appl: Repairs,GP Direct Access KGH,DACEY LTD,21438456,35.16,433460177,472229
Department of Health,Worcestershire Acute Hospitals NHST,2017-01-31,Patients Appl: Purchase,GP Direct Access Worcs,DACEY LTD,21438457,49.2,433460177,472332
Department of Health,Worcestershire Acute Hospitals NHST,2017-01-31,Patients Appl: Purchase,GP Direct Access KGH,DACEY LTD,21438458,49.2,433460177,472333
Department of Health,Worcestershire Acute Hospitals NHST,2017-01-31,Patients Appl: Purchase,GP Direct Access KGH,DACEY LTD,21438459,73.8,433460177,472334
Department of Health,Worcestershire Acute Hospitals NHST,2017-01-31,Patients Appl: Purchase,Trauma + Orthopaed KGH,DACEY LTD,21438460,449.94,433460177,472337
Department of Health,Worcestershire Acute Hospitals NHST,2017-01-31,Patients Appl: Purchase,Trauma + Orthopaed KGH,DACEY LTD,21438461,449.94,433460177,472340
Department of Health,Worcestershire Acute Hospitals NHST,2017-01-31,Med & Surg Equip Disp,Cardiac Cath Lab,TERUMO UK LTD,21438462,169.2,804941042,3876030098
Department of Health,Worcestershire Acute Hospitals NHST,2017-01-31,Med & Surg Equip General,Radiology Dept WRH,BAYER PLC,21438476,5121,641958611,187444246
Department of Health,Worcestershire Acute Hospitals NHST,2017-01-31,Med & Surg Equip General,Ophthalmology,BIRMINGHAM INDUSTRIAL THERAPY ASSOCIATION,21438479,57.6,110477992,1021
Department of Health,Worcestershire Acute Hospitals NHST,2017-01-31,Patients Appl: Purchase,Rheumatology Worc,DACEY LTD,21438480,40.68,433460177,472244
Department of Health,Worcestershire Acute Hospitals NHST,2017-01-31,Patients Appl: Purchase,Trauma + Orthopaedics WRH,DACEY LTD,21438481,449.94,433460177,472246
Department of Health,Worcestershire Acute Hospitals NHST,2017-01-31,Patients Appl: Purchase,GP Direct Access Worcs,DACEY LTD,21438482,47.88,433460177,472250
Department of Health,Worcestershire Acute Hospitals NHST,2017-01-31,Patients Appl: Purchase,Ward 16,CHANECO,21438483,145.92,294088133,0000188955
Department of Health,Worcestershire Acute Hospitals NHST,2017-01-31,Materials - Electrical,Technical Serv- No Spec,FUKUDA DENSHI CO LTD,21438484,876,677242121,0000019738
Department of Health,Worcestershire Acute Hospitals NHST,2017-01-31,NonRes Bldg Additions,Balance Sheet,FUKUDA DENSHI CO LTD,21438485,11400,677242121,0000019768
Department of Health,Worcestershire Acute Hospitals NHST,2017-01-31,Med & Surg Equip General,Outpats- Multi-Spec Alex,MEDITECH SYSTEMS LTD,21438486,279,663466122,44245
Department of Health,Worcestershire Acute Hospitals NHST,2017-01-31,Med & Surg Equip General,Avon 3 Infectious Diseases,XMA LTD,21438487,78,450034985,BC62760
Department of Health,Worcestershire Acute Hospitals NHST,2017-01-31,Med & Surg Equip Disp,Cardiac Cath Lab,TERUMO UK LTD,21438488,169.2,804941042,3876030391
Department of Health,Worcestershire Acute Hospitals NHST,2017-01-31,Med & Surg Equip Disp,Radiology Dept WRH,COOK (UK) LTD,21438489,331.2,,16097783
Department of Health,Worcestershire Acute Hospitals NHST,2017-01-31,Engineering Contracts,Engineering- No Special,GEOQUIP WORLDWIDE,21438490,489,,M0011102
Department of Health,Worcestershire Acute Hospitals NHST,2017-01-31,Patients Appl: Purchase,Trauma + Orthopaedics WRH,BEAGLE ORTHOPAEDICS,21438491,53.93,915387017,0000196592
Department of Health,Worcestershire Acute Hospitals NHST,2017-01-31,Patients Appl: Purchase,Trauma + Orthopaedics WRH,BEAGLE ORTHOPAEDICS,21438492,288,915387017,0000196591
Department of Health,Worcestershire Acute Hospitals NHST,2017-01-31,Prostheses - Hips,T&O Medical,STRYKER UK LTD,21438493,821.52,787438865,27909401
Department of Health,Worcestershire Acute Hospitals NHST,2017-01-31,Med & Surg Equip Disp,Cardiac Cath Lab,BOSTON SCIENTIFIC LTD,21438495,50.4,896105403,7161572013
Department of Health,Worcestershire Acute Hospitals NHST,2017-01-31,Stents,Cardiac Cath Lab,BOSTON SCIENTIFIC LTD,21438495,50.4,896105403,7161572013
Department of Health,Worcestershire Acute Hospitals NHST,2017-01-31,Med & Surg Equip Disp,Cardiac Cath Lab,BOSTON SCIENTIFIC LTD,21438497,151.2,896105403,7161562739
Department of Health,Worcestershire Acute Hospitals NHST,2017-01-31,Stents,Cardiac Cath Lab,BOSTON SCIENTIFIC LTD,21438498,444,896105403,7161562190
Department of Health,Worcestershire Acute Hospitals NHST,2017-01-31,Stents,Cardiac Cath Lab,BOSTON SCIENTIFIC LTD,21438499,1164,896105403,7161560940
Department of Health,Worcestershire Acute Hospitals NHST,2017-01-31,Med & Surg Equip General,Alex Theatre - Scrub,BOSTON SCIENTIFIC LTD,21438500,806.4,896105403,7161585955
Department of Health,Worcestershire Acute Hospitals NHST,2017-01-31,Med & Surg Equip Disp,Cardiac Cath Lab,BOSTON SCIENTIFIC LTD,21438503,1920,896105403,7161581084
Department of Health,Worcestershire Acute Hospitals NHST,2017-01-31,Med & Surg Equip General,Alex Theatre - Scrub,BOSTON SCIENTIFIC LTD,21438504,1212,896105403,7161578155
Department of Health,Worcestershire Acute Hospitals NHST,2017-01-31,Med & Surg Equip General,T&O Medical,BOSTON SCIENTIFIC LTD,21438505,967.68,896105403,7161578761
Department of Health,Worcestershire Acute Hospitals NHST,2017-01-31,Stents,Cardiac Cath Lab,BOSTON SCIENTIFIC LTD,21438506,582,896105403,7161557858
Department of Health,Worcestershire Acute Hospitals NHST,2017-01-31,Stents,Cardiac Cath Lab,BOSTON SCIENTIFIC LTD,21438507,288,896105403,7161557859
Department of Health,Worcestershire Acute Hospitals NHST,2017-01-31,Med & Surg Equip General,Radiology Dept Alex,BOSTON SCIENTIFIC LTD,21438508,96,896105403,7161560581
Department of Health,Worcestershire Acute Hospitals NHST,2017-01-31,Med & Surg Equip General,T&O Medical,BOSTON SCIENTIFIC LTD,21438509,80.64,896105403,7161560582
Department of Health,Worcestershire Acute Hospitals NHST,2017-01-31,Med & Surg Equip General,Cardiac Cath Lab,BOSTON SCIENTIFIC LTD,21438511,444,896105403,7161564536
Department of Health,Worcestershire Acute Hospitals NHST,2017-01-31,Stents,Cardiac Cath Lab,BOSTON SCIENTIFIC LTD,21438512,240,896105403,7161564537
Department of Health,Worcestershire Acute Hospitals NHST,2017-01-31,Stents,Cardiac Cath Lab,BOSTON SCIENTIFIC LTD,21438513,1008,896105403,7161564538
Department of Health,Worcestershire Acute Hospitals NHST,2017-01-31,Stents,Cardiac Cath Lab,BOSTON SCIENTIFIC LTD,21438514,582,896105403,7161564534
Department of Health,Worcestershire Acute Hospitals NHST,2017-01-31,Med & Surg Equip General,Alex Theatre - Scrub,BOSTON SCIENTIFIC LTD,21438515,1996.8,896105403,7161564184
Department of Health,Worcestershire Acute Hospitals NHST,2017-01-31,Med & Surg Equip General,Alex Theatre - Scrub,BOSTON SCIENTIFIC LTD,21438517,384,896105403,7161562406
Department of Health,Worcestershire Acute Hospitals NHST,2017-01-31,Med & Surg Equip Disp,Cardiac Cath Lab,BOSTON SCIENTIFIC LTD,21438518,960,896105403,7161569168
Department of Health,Worcestershire Acute Hospitals NHST,2017-01-31,Med & Surg Equip General,Alex Theatre - Scrub,BOSTON SCIENTIFIC LTD,21438520,990,896105403,7161567678
Department of Health,Worcestershire Acute Hospitals NHST,2017-01-31,Med & Surg Equip Disp,Radiology Dept WRH,BOSTON SCIENTIFIC LTD,21438521,204,896105403,7161563248
Department of Health,Worcestershire Acute Hospitals NHST,2017-01-31,Stents,Radiology Dept WRH,BOSTON SCIENTIFIC LTD,21438521,300,896105403,7161563248
Department of Health,Worcestershire Acute Hospitals NHST,2017-01-31,Med & Surg Equip General,Alex Theatre - Scrub,BOSTON SCIENTIFIC LTD,21438522,2345.16,896105403,7161568235
Department of Health,Worcestershire Acute Hospitals NHST,2017-01-31,Med & Surg Equip General,Cardiac Cath Lab,BOSTON SCIENTIFIC LTD,21438523,1008,896105403,7161562191
Department of Health,Worcestershire Acute Hospitals NHST,2017-01-31,Med & Surg Equip General,T&O Medical,BOSTON SCIENTIFIC LTD,21438524,161.28,896105403,7161561817
Department of Health,Worcestershire Acute Hospitals NHST,2017-01-31,Stents,Cardiac Cath Lab,BOSTON SCIENTIFIC LTD,21438525,240,896105403,7161585694
Department of Health,Worcestershire Acute Hospitals NHST,2017-01-31,Med & Surg Equip General,Alex Theatre - Scrub,BOSTON SCIENTIFIC LTD,21438526,2268,896105403,7161585957
Department of Health,Worcestershire Acute Hospitals NHST,2017-01-31,Med & Surg Equip Disp,Cardiac Cath Lab,BOSTON SCIENTIFIC LTD,21438527,100.8,896105403,7161579821
Department of Health,Worcestershire Acute Hospitals NHST,2017-01-31,Med & Surg Equip General,Radiology Dept Alex,BOSTON SCIENTIFIC LTD,21438529,96,896105403,7161557482
Department of Health,Worcestershire Acute Hospitals NHST,2017-01-31,Med & Surg Equip General,Cardiac Cath Lab,BOSTON SCIENTIFIC LTD,21438530,444,896105403,7161559135
Department of Health,Worcestershire Acute Hospitals NHST,2017-01-31,Stents,Cardiac Cath Lab,BOSTON SCIENTIFIC LTD,21438532,240,896105403,7161558508
Department of Health,Worcestershire Acute Hospitals NHST,2017-01-31,Med & Surg Equip Disp,Cardiac Cath Lab,BOSTON SCIENTIFIC LTD,21438533,960,896105403,7161576898
Department of Health,Worcestershire Acute Hospitals NHST,2017-01-31,Stents,Cardiac Cath Lab,BOSTON SCIENTIFIC LTD,21438533,0.54,896105403,7161576898
Department of Health,Worcestershire Acute Hospitals NHST,2017-01-31,Med & Surg Equip General,Theatre,BOSTON SCIENTIFIC LTD,21438534,1477.62,896105403,7161573724
Department of Health,Worcestershire Acute Hospitals NHST,2017-01-31,Med & Surg Equip General,Cardiac Cath Lab,BOSTON SCIENTIFIC LTD,21438535,444,896105403,7161574361
Department of Health,Worcestershire Acute Hospitals NHST,2017-01-31,Med & Surg Equip Disp,Cardiac Cath Lab,BOSTON SCIENTIFIC LTD,21438536,201.6,896105403,7161569734
Department of Health,Worcestershire Acute Hospitals NHST,2017-01-31,Stents,Cardiac Cath Lab,BOSTON SCIENTIFIC LTD,21438536,100.8,896105403,7161569734
Department of Health,Worcestershire Acute Hospitals NHST,2017-01-31,Med & Surg Equip Disp,Cardiac Cath Lab,BOSTON SCIENTIFIC LTD,21438537,50.4,896105403,7161569733
Department of Health,Worcestershire Acute Hospitals NHST,2017-01-31,Stents,Cardiac Cath Lab,BOSTON SCIENTIFIC LTD,21438537,201.6,896105403,7161569733
Department of Health,Worcestershire Acute Hospitals NHST,2017-01-31,Stents,Cardiac Cath Lab,BOSTON SCIENTIFIC LTD,21438538,552,896105403,7161569735
Department of Health,Worcestershire Acute Hospitals NHST,2017-01-31,Med & Surg Equip Disp,Cardiac Cath Lab,BOSTON SCIENTIFIC LTD,21438539,201.6,896105403,7161576899
Department of Health,Worcestershire Acute Hospitals NHST,2017-01-31,Stents,Cardiac Cath Lab,BOSTON SCIENTIFIC LTD,21438539,50.4,896105403,7161576899
Department of Health,Worcestershire Acute Hospitals NHST,2017-01-31,Med & Surg Equip Disp,Cardiac Cath Lab,BOSTON SCIENTIFIC LTD,21438540,100.8,896105403,7161562740
Department of Health,Worcestershire Acute Hospitals NHST,2017-01-31,Med & Surg Equip General,Alex Theatre - Scrub,BOSTON SCIENTIFIC LTD,21438541,1398,896105403,7161561815
Department of Health,Worcestershire Acute Hospitals NHST,2017-01-31,Med & Surg Equip Disp,Radiology Dept WRH,BOSTON SCIENTIFIC LTD,21438542,102,896105403,7161567435
Department of Health,Worcestershire Acute Hospitals NHST,2017-01-31,Med & Surg Equip Disp,Cardiac Cath Lab,BOSTON SCIENTIFIC LTD,21438543,960,896105403,7161562188
Department of Health,Worcestershire Acute Hospitals NHST,2017-01-31,Stents,Cardiac Cath Lab,BOSTON SCIENTIFIC LTD,21438544,168,896105403,7161560941
Department of Health,Worcestershire Acute Hospitals NHST,2017-01-31,Stents,Cardiac Cath Lab,BOSTON SCIENTIFIC LTD,21438545,48,896105403,7161586976
Department of Health,Worcestershire Acute Hospitals NHST,2017-01-31,Med & Surg Equip General,Alex Theatre - Scrub,BOSTON SCIENTIFIC LTD,21438546,1113.6,896105403,7161585958
Department of Health,Worcestershire Acute Hospitals NHST,2017-01-31,Stents,Cardiac Cath Lab,BOSTON SCIENTIFIC LTD,21438547,480,896105403,7161583704
Department of Health,Worcestershire Acute Hospitals NHST,2017-01-31,Stents,Cardiac Cath Lab,BOSTON SCIENTIFIC LTD,21438548,240,896105403,7161582901
Department of Health,Worcestershire Acute Hospitals NHST,2017-01-31,Med & Surg Equip Disp,Radiology Dept WRH,BOSTON SCIENTIFIC LTD,21438549,102,896105403,7161580474
Department of Health,Worcestershire Acute Hospitals NHST,2017-01-31,Stents,Cardiac Cath Lab,BOSTON SCIENTIFIC LTD,21438550,216,896105403,7161581085
Department of Health,Worcestershire Acute Hospitals NHST,2017-01-31,Med & Surg Equip Disp,Cardiac Cath Lab,BOSTON SCIENTIFIC LTD,21438551,100.8,896105403,7161579149
Department of Health,Worcestershire Acute Hospitals NHST,2017-01-31,Stents,Cardiac Cath Lab,BOSTON SCIENTIFIC LTD,21438551,50.4,896105403,7161579149
Department of Health,Worcestershire Acute Hospitals NHST,2017-01-31,Med & Surg Equip Disp,Radiology Dept WRH,BOSTON SCIENTIFIC LTD,21438552,306,896105403,7161579151
Department of Health,Worcestershire Acute Hospitals NHST,2017-01-31,Stents,Cardiac Cath Lab,BOSTON SCIENTIFIC LTD,21438553,96,896105403,7161576900
Department of Health,Worcestershire Acute Hospitals NHST,2017-01-31,Med & Surg Equip General,T&O Medical,BOSTON SCIENTIFIC LTD,21438554,806.4,896105403,7161577618
Department of Health,Worcestershire Acute Hospitals NHST,2017-01-31,Stents,Cardiac Cath Lab,BOSTON SCIENTIFIC LTD,21438555,582,896105403,7161558509
Department of Health,Worcestershire Acute Hospitals NHST,2017-01-31,Stents,Cardiac Cath Lab,BOSTON SCIENTIFIC LTD,21438556,192,896105403,7161558507
Department of Health,Worcestershire Acute Hospitals NHST,2017-01-31,Stents,Cardiac Cath Lab,BOSTON SCIENTIFIC LTD,21438557,168,896105403,7161566716
Department of Health,Worcestershire Acute Hospitals NHST,2017-01-31,Stents,Cardiac Cath Lab,BOSTON SCIENTIFIC LTD,21438558,564,896105403,7161574359
Department of Health,Worcestershire Acute Hospitals NHST,2017-01-31,Med & Surg Equip Disp,Cardiac Cath Lab,BOSTON SCIENTIFIC LTD,21438559,100.8,896105403,7161570332
Department of Health,Worcestershire Acute Hospitals NHST,2017-01-31,Med & Surg Equip General,Alex Theatre - Scrub,BOSTON SCIENTIFIC LTD,21438560,1045.62,896105403,7161570541
Department of Health,Worcestershire Acute Hospitals NHST,2017-01-31,Med & Surg Equip Disp,Cardiac Cath Lab,BOSTON SCIENTIFIC LTD,21438561,403.2,896105403,7161573184
Department of Health,Worcestershire Acute Hospitals NHST,2017-01-31,Med & Surg Equip Disp,Radiology Dept WRH,BOSTON SCIENTIFIC LTD,21438562,408,896105403,7161555542
Department of Health,Worcestershire Acute Hospitals NHST,2017-01-31,Stents,Radiology Dept WRH,BOSTON SCIENTIFIC LTD,21438562,960,896105403,7161555542
Department of Health,Worcestershire Acute Hospitals NHST,2017-01-31,Med & Surg Equip Disp,Cardiac Cath Lab,BOSTON SCIENTIFIC LTD,21438563,201.6,896105403,7161581648
Department of Health,Worcestershire Acute Hospitals NHST,2017-01-31,Stents,Cardiac Cath Lab,BOSTON SCIENTIFIC LTD,21438563,50.4,896105403,7161581648
Department of Health,Worcestershire Acute Hospitals NHST,2017-01-31,Med & Surg Equip Disp,Cardiac Cath Lab,BOSTON SCIENTIFIC LTD,21438564,352.8,896105403,7161582329
Department of Health,Worcestershire Acute Hospitals NHST,2017-01-31,Med & Surg Equip Disp,Cardiac Cath Lab,BOSTON SCIENTIFIC LTD,21438565,252,896105403,7161582328
Department of Health,Worcestershire Acute Hospitals NHST,2017-01-31,Stents,Cardiac Cath Lab,BOSTON SCIENTIFIC LTD,21438565,50.4,896105403,7161582328
Department of Health,Worcestershire Acute Hospitals NHST,2017-01-31,Stents,Cardiac Cath Lab,BOSTON SCIENTIFIC LTD,21438566,1908,896105403,7161583702
Department of Health,Worcestershire Acute Hospitals NHST,2017-01-31,Med & Surg Equip Disp,Cardiac Cath Lab,BOSTON SCIENTIFIC LTD,21438567,352.8,896105403,7161584943
Department of Health,Worcestershire Acute Hospitals NHST,2017-01-31,Stents,Cardiac Cath Lab,BOSTON SCIENTIFIC LTD,21438568,252,896105403,7161557270
Department of Health,Worcestershire Acute Hospitals NHST,2017-01-31,Med & Surg Equip Disp,Cardiac Cath Lab,BOSTON SCIENTIFIC LTD,21438569,352.8,896105403,7161566715
Department of Health,Worcestershire Acute Hospitals NHST,2017-01-31,Stents,Cardiac Cath Lab,BOSTON SCIENTIFIC LTD,21438569,100.8,896105403,7161566715
Department of Health,Worcestershire Acute Hospitals NHST,2017-01-31,Med & Surg Equip Disp,Cardiac Cath Lab,BOSTON SCIENTIFIC LTD,21438570,201.6,896105403,7161558506
Department of Health,Worcestershire Acute Hospitals NHST,2017-01-31,Med & Surg Equip Disp,Cardiac Cath Lab,BOSTON SCIENTIFIC LTD,21438571,100.8,896105403,7161562189
Department of Health,Worcestershire Acute Hospitals NHST,2017-01-31,Stents,Cardiac Cath Lab,BOSTON SCIENTIFIC LTD,21438571,736.8,896105403,7161562189
Department of Health,Worcestershire Acute Hospitals NHST,2017-01-31,Med & Surg Equip General,Alex Theatre - Scrub,BOSTON SCIENTIFIC LTD,21438572,1922.4,896105403,7161564183
Department of Health,Worcestershire Acute Hospitals NHST,2017-01-31,Med & Surg Equip Disp,Radiology Dept WRH,BOSTON SCIENTIFIC LTD,21438573,678,896105403,7161586981
Department of Health,Worcestershire Acute Hospitals NHST,2017-01-31,Stents,Radiology Dept WRH,BOSTON SCIENTIFIC LTD,21438573,1488,896105403,7161586981
Department of Health,Worcestershire Acute Hospitals NHST,2017-01-31,Med & Surg Equip Disp,Dental Laboratory,CAVENDISH IMAGING,21438574,150,,77740
Department of Health,Worcestershire Acute Hospitals NHST,2017-01-31,Med & Surg Equip Disp,Radiology Dept WRH,BOSTON SCIENTIFIC LTD,21438575,1380,896105403,7161567437
Department of Health,Worcestershire Acute Hospitals NHST,2017-01-31,Stents,Radiology Dept WRH,BOSTON SCIENTIFIC LTD,21438575,420,896105403,7161567437
Department of Health,Worcestershire Acute Hospitals NHST,2017-01-31,Med & Surg Equip Disp,Radiology Dept WRH,BOSTON SCIENTIFIC LTD,21438576,612,896105403,7161574910
Department of Health,Worcestershire Acute Hospitals NHST,2017-01-31,Stents,Radiology Dept WRH,BOSTON SCIENTIFIC LTD,21438576,804,896105403,7161574910
Department of Health,Worcestershire Acute Hospitals NHST,2017-01-31,Stents,Cardiac Cath Lab,BOSTON SCIENTIFIC LTD,21438577,360,896105403,7161576244
Department of Health,Worcestershire Acute Hospitals NHST,2017-01-31,Med & Surg Equip General,Alex Theatre - Scrub,BOSTON SCIENTIFIC LTD,21438578,1986.48,896105403,7161581909
Department of Health,Worcestershire Acute Hospitals NHST,2017-01-31,Med & Surg Equip Disp,Cardiac Cath Lab,BOSTON SCIENTIFIC LTD,21438579,403.2,896105403,7161582902
Department of Health,Worcestershire Acute Hospitals NHST,2017-01-31,Stents,Cardiac Cath Lab,BOSTON SCIENTIFIC LTD,21438579,418.8,896105403,7161582902
Department of Health,Worcestershire Acute Hospitals NHST,2017-01-31,Med & Surg Equip Disp,Cardiac Cath Lab,BOSTON SCIENTIFIC LTD,21438580,453.6,896105403,7161583703
Department of Health,Worcestershire Acute Hospitals NHST,2017-01-31,Stents,Cardiac Cath Lab,BOSTON SCIENTIFIC LTD,21438581,336,896105403,7161584945
Department of Health,Worcestershire Acute Hospitals NHST,2017-01-31,Med & Surg Equip Disp,Cardiac Cath Lab,BOSTON SCIENTIFIC LTD,21438582,201.6,896105403,7161584944
Department of Health,Worcestershire Acute Hospitals NHST,2017-01-31,Stents,Cardiac Cath Lab,BOSTON SCIENTIFIC LTD,21438582,100.8,896105403,7161584944
Department of Health,Worcestershire Acute Hospitals NHST,2017-01-31,Med & Surg Equip Disp,Cardiac Cath Lab,BOSTON SCIENTIFIC LTD,21438583,252,896105403,7161586325
Department of Health,Worcestershire Acute Hospitals NHST,2017-01-31,Stents,Cardiac Cath Lab,BOSTON SCIENTIFIC LTD,21438583,318,896105403,7161586325
Department of Health,Worcestershire Acute Hospitals NHST,2017-01-31,Med & Surg Equip Disp,Cardiac Cath Lab,BOSTON SCIENTIFIC LTD,21438584,302.4,896105403,7161557856
Department of Health,Worcestershire Acute Hospitals NHST,2017-01-31,Stents,Cardiac Cath Lab,BOSTON SCIENTIFIC LTD,21438584,50.4,896105403,7161557856
Department of Health,Worcestershire Acute Hospitals NHST,2017-01-31,Med & Surg Equip Disp,Cardiac Cath Lab,BOSTON SCIENTIFIC LTD,21438585,252,896105403,7161567433
Department of Health,Worcestershire Acute Hospitals NHST,2017-01-31,Stents,Cardiac Cath Lab,BOSTON SCIENTIFIC LTD,21438585,100.8,896105403,7161567433
Department of Health,Worcestershire Acute Hospitals NHST,2017-01-31,Med & Surg Equip Disp,Cardiac Cath Lab,BOSTON SCIENTIFIC LTD,21438586,201.6,896105403,7161560939
Department of Health,Worcestershire Acute Hospitals NHST,2017-01-31,Stents,Cardiac Cath Lab,BOSTON SCIENTIFIC LTD,21438586,50.4,896105403,7161560939
Department of Health,Worcestershire Acute Hospitals NHST,2017-01-31,Med & Surg Equip Disp,Radiology Dept WRH,BOSTON SCIENTIFIC LTD,21438587,510,896105403,7161579152
Department of Health,Worcestershire Acute Hospitals NHST,2017-01-31,Stents,Radiology Dept WRH,BOSTON SCIENTIFIC LTD,21438587,600,896105403,7161579152
Department of Health,Worcestershire Acute Hospitals NHST,2017-01-31,Med & Surg Equip Disp,Cardiac Cath Lab,BOSTON SCIENTIFIC LTD,21438588,302.4,896105403,7161581086
Department of Health,Worcestershire Acute Hospitals NHST,2017-01-31,Stents,Cardiac Cath Lab,BOSTON SCIENTIFIC LTD,21438588,100.8,896105403,7161581086
Department of Health,Worcestershire Acute Hospitals NHST,2017-01-31,Med & Surg Equip Disp,Cardiac Cath Lab,BOSTON SCIENTIFIC LTD,21438590,201.6,896105403,7161558505
Department of Health,Worcestershire Acute Hospitals NHST,2017-01-31,Stents,Cardiac Cath Lab,BOSTON SCIENTIFIC LTD,21438590,100.8,896105403,7161558505
Department of Health,Worcestershire Acute Hospitals NHST,2017-01-31,Med & Surg Equip General,Alex Theatre - Scrub,BOSTON SCIENTIFIC LTD,21438591,5068.44,896105403,7161567010
Department of Health,Worcestershire Acute Hospitals NHST,2017-01-31,Med & Surg Equip Disp,Cardiac Cath Lab,BOSTON SCIENTIFIC LTD,21438592,352.8,896105403,7161564533
Department of Health,Worcestershire Acute Hospitals NHST,2017-01-31,Med & Surg Equip Disp,Cardiac Cath Lab,BOSTON SCIENTIFIC LTD,21438593,352.8,896105403,7161564535
Department of Health,Worcestershire Acute Hospitals NHST,2017-01-31,Med & Surg Equip Disp,Dental Laboratory,CAVENDISH IMAGING,21438594,150,,77742
Department of Health,Worcestershire Acute Hospitals NHST,2017-01-31,Med & Surg Equip Disp,ICCU - Worcs,CANTEL UK LTD,21439477,287.94,,OPI019655
Department of Health,Worcestershire Acute Hospitals NHST,2017-01-31,Prostheses,T&O Medical,WRIGHT MEDICAL UK LTD,21439482,88.8,677219993,163601RI
Department of Health,Worcestershire Acute Hospitals NHST,2017-01-31,Surg Instruments Disp,T&O Medical,DE SOUTTER MEDICAL LTD,21439487,66.26,541298344,0000413296
Department of Health,Worcestershire Acute Hospitals NHST,2017-01-31,Furniture & Fittings,Diabetic Nursing TCS,MEDTRONIC LTD,21439495,576,467254526,1051622827
Department of Health,Worcestershire Acute Hospitals NHST,2017-01-31,Cleaning Equipment,KTC Endoscopy,CANTEL UK LTD,21439507,1127.88,,OPI019661
Department of Health,Worcestershire Acute Hospitals NHST,2017-01-31,Med & Surg Equip General,Alex Theatre - Scrub,VYGON (UK) LTD,21439515,318.9,484930515,116092864
Department of Health,Worcestershire Acute Hospitals NHST,2017-01-31,Staff Uniforms & Clothing,Endoscopy,BIRMINGHAM INDUSTRIAL THERAPY ASSOCIATION,21439521,31.2,110477992,1022
Department of Health,Worcestershire Acute Hospitals NHST,2017-01-31,Provisions,Catering (Patients),GOOD FOOD CHAIN,21439525,264.53,,598855
Department of Health,Worcestershire Acute Hospitals NHST,2017-01-31,"Books, Journals & Subscr",Knowledge Mgt,BLACKWELL UK LTD,21439527,419.17,532585539,00160185
Department of Health,Worcestershire Acute Hospitals NHST,2017-01-31,"Books, Journals & Subscr",Knowledge Mgt,BLACKWELL UK LTD,21439530,281.92,532585539,00160139
Department of Health,Worcestershire Acute Hospitals NHST,2017-01-31,"Books, Journals & Subscr",Knowledge Mgt,BLACKWELL UK LTD,21439533,213.65,532585539,00160031
Department of Health,Worcestershire Acute Hospitals NHST,2017-01-31,Materials - Electrical,Technical Serv- No Spec,FUKUDA DENSHI CO LTD,21439542,72,677242121,0000019829
Department of Health,Worcestershire Acute Hospitals NHST,2017-01-31,Med & Surg Equip General,Ophthalmology,CORE SURGICAL LTD,21439548,306,718364914,16690
Department of Health,Worcestershire Acute Hospitals NHST,2017-01-31,X-Ray Equip Maint/Repair,Radiology Dept WRH,NHS SUPPLY CHAIN,21439551,9571,654434729,2017004035
Department of Health,Worcestershire Acute Hospitals NHST,2017-01-31,Anaesthetics Accessories,ENT Clinic (Linden Suite),HEALTHCARE 21 (UK) LTD,21439554,105.66,GB129609593,1172121
Department of Health,Worcestershire Acute Hospitals NHST,2017-01-31,Patients Appl: Purchase,Occupational Therapy,KETTERING SURGICAL APPLIANCES LTD,21439555,29.94,121509115,78324
Department of Health,Worcestershire Acute Hospitals NHST,2017-01-31,Anaesthetics Accessories,Accident + Emergency,COOK (UK) LTD,21439558,99.6,,16097657
Department of Health,Worcestershire Acute Hospitals NHST,2017-01-31,Med & Surg Equip General,ICCU - Worcs,TELEFLEX MEDICAL,21439560,456,765368296,0989542169
Department of Health,Worcestershire Acute Hospitals NHST,2017-01-31,Med & Surg Equip General,Radiology Dept Alex,MEDGRAPHICS LTD,21439562,316.2,676108914,104298
Department of Health,Worcestershire Acute Hospitals NHST,2017-01-31,Patients Appl: Purchase,Minor Injuries Unit,TALAR MADE LTD,21439564,62.24,806199026,160703
Department of Health,Worcestershire Acute Hospitals NHST,2017-01-31,Laboratory External Tests,Regional Spec (Clin Chem),NEWCASTLE UPON TYNE HOSPITALS NHS FOUNDATION TRUST,21439566,468,654968777,R0270829
Department of Health,Worcestershire Acute Hospitals NHST,2017-01-31,Med & Surg Equip Disp,A+E Nursing WRH,DRAEGER MEDICAL UK LTD,21439568,210,,918305275
Department of Health,Worcestershire Acute Hospitals NHST,2017-01-31,Prostheses,T&O Medical,JOHNSON & JOHNSON MEDICAL LTD,21439570,88.06,592926302,0091417172
Department of Health,Worcestershire Acute Hospitals NHST,2017-01-31,Anaesthetics Accessories,ICCU - Alex,DRAEGER MEDICAL UK LTD,21439571,480,,918305829
Department of Health,Worcestershire Acute Hospitals NHST,2017-01-31,Med & Surg Equip Repair,Technical Serv Dept,GE MEDICAL SYSTEMS LTD,21439572,90.53,,418629
Department of Health,Worcestershire Acute Hospitals NHST,2017-01-31,Surg Instruments Disp,Alex Theatre - Scrub,BOSTON SCIENTIFIC LTD,21439573,1110,896105403,7161564182
Department of Health,Worcestershire Acute Hospitals NHST,2017-01-31,Surg Instruments Disp,Alex Theatre - Scrub,BOSTON SCIENTIFIC LTD,21439574,1110,896105403,7161581908
Department of Health,Worcestershire Acute Hospitals NHST,2017-01-31,Surg Instruments Disp,Alex Theatre - Scrub,BOSTON SCIENTIFIC LTD,21439575,1110,896105403,7161564181
Department of Health,Worcestershire Acute Hospitals NHST,2017-01-31,Med & Surg Equip General,NICU- Paeds,DRAEGER MEDICAL UK LTD,21439576,443.74,,918305486
Department of Health,Worcestershire Acute Hospitals NHST,2017-01-31,Med & Surg Equip General,Accident + Emergency,DRAEGER MEDICAL UK LTD,21439577,144.83,,918305622
Department of Health,Worcestershire Acute Hospitals NHST,2017-01-31,Vascular Implants,Theatre,B BRAUN MEDICAL LTD,21439578,1132.8,,0328365473
Department of Health,Worcestershire Acute Hospitals NHST,2017-01-31,Surg Instruments Disp,Alex Theatre - Scrub,BOSTON SCIENTIFIC LTD,21439579,1110,896105403,7161561818
Department of Health,Worcestershire Acute Hospitals NHST,2017-01-31,Surg Instruments Disp,Alex Theatre - Scrub,BOSTON SCIENTIFIC LTD,21439580,1332,896105403,7161578156
Department of Health,Worcestershire Acute Hospitals NHST,2017-01-31,Med & Surg Equip General,Theatre,VYGON (UK) LTD,21439581,318.9,484930515,116093196
Department of Health,Worcestershire Acute Hospitals NHST,2017-01-31,Materials - Electrical,Labour + Delivery,RELIANCE HIGH-TECH LTD,21439582,658.8,340833571,SLINV00048223
Department of Health,Worcestershire Acute Hospitals NHST,2017-01-31,Med & Surg Equip General,Radiology Dept Alex,MERIT MEDICAL UK LTD,21439583,35.4,645811531,638009
Department of Health,Worcestershire Acute Hospitals NHST,2017-01-31,Sterile Products,Cardiac Cath Lab,KIMAL PLC,21439584,968.26,877639753,CD970426739
Department of Health,Worcestershire Acute Hospitals NHST,2017-01-31,Stents,Radiology Dept WRH,MERIT MEDICAL UK LTD,21439585,78,645811531,637992
Department of Health,Worcestershire Acute Hospitals NHST,2017-01-31,Stents,Cardiac Cath Lab,MAQUET LTD,21439975,-903.6,468850893,3120012864CRCORR
Department of Health,Worcestershire Acute Hospitals NHST,2017-01-31,Contr Pest Control,Doms Non Tender-No Spec,OCS GROUP UK LTD T/A CANNON HYGIENE,21442642,1100.11,238034379,5000218669
Department of Health,Worcestershire Acute Hospitals NHST,2017-01-31,Patients Appl: Purchase,Trauma + Orthopaed Alex,OSSUR UK,21442728,347.33,572395027,SIUK415315
Department of Health,Worcestershire Acute Hospitals NHST,2017-01-31,Furniture & Fittings,Diabetic Nursing TCS,MEDTRONIC LTD,21442730,444.1,467254526,1051623264
Department of Health,Worcestershire Acute Hospitals NHST,2017-01-31,Furniture & Fittings,Diabetic Nursing TCS,MEDTRONIC LTD,21442732,382.39,467254526,1051623260
Department of Health,Worcestershire Acute Hospitals NHST,2017-01-31,Furniture & Fittings,Diabetic Nursing TCS,MEDTRONIC LTD,21442734,519.77,467254526,1051623727
Department of Health,Worcestershire Acute Hospitals NHST,2017-01-31,Med & Surg Equip Disp,Ophthalmic Nursing,JOHNSON & JOHNSON MEDICAL LTD,21442736,131.23,592926302,17000503
Department of Health,Worcestershire Acute Hospitals NHST,2017-01-31,Prostheses - Hips,T&O Medical,TJ SMITH & NEPHEW LTD,21442738,1142.4,,0915583974
Department of Health,Worcestershire Acute Hospitals NHST,2017-01-31,Patients Appl: Purchase,GP Direct Access Worcs,BEAGLE ORTHOPAEDICS,21442740,67.4,915387017,0000196887
Department of Health,Worcestershire Acute Hospitals NHST,2017-01-31,Stents,Cardiac Cath Lab,VASCULAR PERSPECTIVES LTD,21442749,504,817304152,36970
Department of Health,Worcestershire Acute Hospitals NHST,2017-01-31,Stents,Cardiac Cath Lab,VASCULAR PERSPECTIVES LTD,21442751,564,817304152,36971
Department of Health,Worcestershire Acute Hospitals NHST,2017-01-31,Med & Surg Equip General,Radiology Dept Alex,COOK (UK) LTD,21442752,924,,16098944
Department of Health,Worcestershire Acute Hospitals NHST,2017-01-31,Med & Surg Equip General,Alex Theatre - Scrub,EDWARDS LIFESCIENCES LTD,21442754,499.2,724574035,21627799
Department of Health,Worcestershire Acute Hospitals NHST,2017-01-31,Med & Surg Equip General,Alex Theatre - Scrub,EDWARDS LIFESCIENCES LTD,21442756,979.2,724574035,21627855
Department of Health,Worcestershire Acute Hospitals NHST,2017-01-31,Patients Appl: Purchase,Rheumatology Worc,PROMEDICS ORTHOPAEDIC LTD,21442759,25.08,926845001,OPI917355
Department of Health,Worcestershire Acute Hospitals NHST,2017-01-31,Laboratory Chemicals,Biochemistry,VITECH SCIENTIFIC LTD,21442762,168.12,417263756,107642
Department of Health,Worcestershire Acute Hospitals NHST,2017-01-31,Furniture & Fittings,Diabetic Nursing TCS,MEDTRONIC LTD,21442765,785.63,467254526,1051623265
Department of Health,Worcestershire Acute Hospitals NHST,2017-01-31,Med & Surg Equip Disp,Cardiac Cath Lab,MEDTRONIC LTD,21442767,50.4,467254526,1051623266
Department of Health,Worcestershire Acute Hospitals NHST,2017-01-31,Stents,Cardiac Cath Lab,VASCULAR PERSPECTIVES LTD,21442769,744,817304152,36956
Department of Health,Worcestershire Acute Hospitals NHST,2017-01-31,Dressings,Main Theatre,PAUL HARTMANN LTD,21442771,215.52,362341768,76690545
Department of Health,Worcestershire Acute Hospitals NHST,2017-01-31,Med & Surg Equip General,Radiology Dept Alex,BRACCO UK LTD,21442776,120,761495411,1603118450
Department of Health,Worcestershire Acute Hospitals NHST,2017-01-31,Stents,Cardiac Cath Lab,VOLCANO EUROPE BVBA,21442777,475,BE 0859842345,SI1618163
Department of Health,Worcestershire Acute Hospitals NHST,2017-01-31,Bedding & Linen: Non-Disp,Alex Theatre - Scrub,365 HEALTHCARE LTD,21442782,101.78,844466408,6012196
Department of Health,Worcestershire Acute Hospitals NHST,2017-01-31,Prostheses,T&O Medical,ARTHREX LTD,21442786,1693.2,679036503,INV16122481
Department of Health,Worcestershire Acute Hospitals NHST,2017-01-31,Patients Appl: Purchase,Trauma + Orthopaedics WRH,BEAGLE ORTHOPAEDICS,21442788,239.98,915387017,0000196885
Department of Health,Worcestershire Acute Hospitals NHST,2017-01-31,Patients Appl: Purchase,Trauma + Orthopaedics WRH,BEAGLE ORTHOPAEDICS,21442790,249.04,915387017,0000196886
Department of Health,Worcestershire Acute Hospitals NHST,2017-01-31,Provisions,Catering Dept-No Spec,PELICAN ROUGE COFFEE SOLUTIONS LTD,21442792,70.56,,160124344
Department of Health,Worcestershire Acute Hospitals NHST,2017-01-31,Med & Surg Equip General,T&O Medical,365 HEALTHCARE LTD,21442793,104.16,844466408,6012185
Department of Health,Worcestershire Acute Hospitals NHST,2017-01-31,Surg Instruments General,WRH Dermatology,BLINK MEDICAL LTD,21442794,434.4,846424124,5267437837
Department of Health,Worcestershire Acute Hospitals NHST,2017-01-31,AUC Additions,Balance Sheet,PORTAKABIN LTD,21442796,800.78,551855234,900764312
Department of Health,Worcestershire Acute Hospitals NHST,2017-01-31,Surg Instruments Disp,WRH Dermatology,MERCIAN SURGICAL SUPPLY CO LTD,21442798,192,110668004,0000091636
Department of Health,Worcestershire Acute Hospitals NHST,2017-01-31,AUC Additions,Balance Sheet,COMPUTACENTER (UK) LTD,21442800,100711.95,490334648,3780049623
Department of Health,Worcestershire Acute Hospitals NHST,2017-01-31,Med & Surg Equip Disp,Millbrook Suite,B BRAUN MEDICAL LTD,21442802,480,,0328366078
Department of Health,Worcestershire Acute Hospitals NHST,2017-01-31,Materials - Electrical,Building- No Spec,SPEEDY ASSET SERVICES LTD,21442804,120,151629570,7107920441
Department of Health,Worcestershire Acute Hospitals NHST,2017-01-31,Med & Surg Equip Disp,Theatre,B BRAUN MEDICAL LTD,21442806,238.8,,0328366077
Department of Health,Worcestershire Acute Hospitals NHST,2017-01-31,Materials - Electrical,Labour + Delivery,RELIANCE HIGH-TECH LTD,21442808,115.58,340833571,SLINV00047671
Department of Health,Worcestershire Acute Hospitals NHST,2017-01-31,External Consultancy Fees,Clinical Haematology- Med,HEART OF ENGLAND NHS FOUNDATION TRUST,21445059,5220,654912816,946808
Department of Health,Worcestershire Acute Hospitals NHST,2017-01-31,Travel & Subsistence,COO Operational Team,SRCL LTD,21445062,867.68,702461079-1,0000991226
Department of Health,Worcestershire Acute Hospitals NHST,2017-01-31,Services Received - NHSTs,Antenatal clinic,HEART OF ENGLAND NHS FOUNDATION TRUST,21445067,2909.44,654912816,948423
Department of Health,Worcestershire Acute Hospitals NHST,2017-01-31,Laboratory External Tests,Gen Surg-Med,UNIVERSITY HOSPITAL BIRMINGHAM NHS FOUNDATION TRUST,21445070,800,654965101,OPT028165
Department of Health,Worcestershire Acute Hospitals NHST,2017-01-31,Services Received - NHSTs,Antenatal clinic,SANDWELL&WEST BIRMINGHAM HOSPITALS NHS TRUST,21445075,966,654916216,77547
Department of Health,Worcestershire Acute Hospitals NHST,2017-01-31,Laboratory External Tests,Clinical Haematology- Med,UNIVERSITY HOSPITAL BIRMINGHAM NHS FOUNDATION TRUST,21445080,262.86,654965101,OPT031972
Department of Health,Worcestershire Acute Hospitals NHST,2017-01-31,Laboratory External Tests,Gen Surg-Med,UNIVERSITY HOSPITAL BIRMINGHAM NHS FOUNDATION TRUST,21445080,262.86,654965101,OPT031972
Department of Health,Worcestershire Acute Hospitals NHST,2017-01-31,Laboratory External Tests,Respiratory Medics,UNIVERSITY HOSPITAL BIRMINGHAM NHS FOUNDATION TRUST,21445080,1314.3,654965101,OPT031972
Department of Health,Worcestershire Acute Hospitals NHST,2017-01-31,Other Agency Staff,Clinical Coding,PHARMA.DIRECT UK & EUROPE LTD,21445085,1650,987458449,4290
Department of Health,Worcestershire Acute Hospitals NHST,2017-01-31,Other Agency Staff,Clinical Coding,PHARMA.DIRECT UK & EUROPE LTD,21445089,330,987458449,4289
Department of Health,Worcestershire Acute Hospitals NHST,2017-01-31,Services Received - NHSTs,Maternity Team 1,BIRMINGHAM WOMENS NHS FOUNDATION TRUST,21445093,5606.8,654912914,OPI145423
Department of Health,Worcestershire Acute Hospitals NHST,2017-01-31,Computer Software/License,Cardiopulmonary,WOODROW MERCER ASSOCIATES LLP,21445097,904.08,,109674
Department of Health,Worcestershire Acute Hospitals NHST,2017-01-31,IT Additions,Balance Sheet,WOODROW MERCER ASSOCIATES LLP,21445097,904.08,,109674
Department of Health,Worcestershire Acute Hospitals NHST,2017-01-31,Other Agency Staff,Physiotherapy,PLACEMENT GROUP (UK) LTD,21445102,1238.76,849065107,10170597
Department of Health,Worcestershire Acute Hospitals NHST,2017-01-31,Computer Software/License,Cardiopulmonary,WOODROW MERCER ASSOCIATES LLP,21445106,723.27,,109794
Department of Health,Worcestershire Acute Hospitals NHST,2017-01-31,IT Additions,Balance Sheet,WOODROW MERCER ASSOCIATES LLP,21445106,723.26,,109794
Department of Health,Worcestershire Acute Hospitals NHST,2017-01-31,External Consultancy Fees,New Hospital Impl Admin,P2G LLP,21445110,1596,,0121
Department of Health,Worcestershire Acute Hospitals NHST,2017-01-31,Agency Med SHO & HO,Older People Medics- Acon,MEDILINK CONSULTING LTD,21445115,924.17,,PIN27805
Department of Health,Worcestershire Acute Hospitals NHST,2017-01-31,Legal / Prof Fees,New Hospital Impl Admin,BEVAN BRITTAN LLP,21445118,1911.5,840723148,01488039
Department of Health,Worcestershire Acute Hospitals NHST,2017-01-31,Packing & Storage,Ophthalmology-Med,RESTORE PLC,21445122,116.29,843863011,688296
Department of Health,Worcestershire Acute Hospitals NHST,2017-01-31,Packing & Storage,Ophthalmology-Med,RESTORE PLC,21445126,77.04,843863011,688297
Department of Health,Worcestershire Acute Hospitals NHST,2017-01-31,Other Agency Staff,Physiotherapy,PLACEMENT GROUP (UK) LTD,21445129,1255.5,849065107,10171151
Department of Health,Worcestershire Acute Hospitals NHST,2017-01-31,Occ Therapist band 6,Occupational Therapy,PLACEMENT GROUP (UK) LTD,21445132,753.3,849065107,10171152
Department of Health,Worcestershire Acute Hospitals NHST,2017-01-31,Other Agency Staff,Physiotherapy,SUGARMAN GROUP LTD,21445134,1255.5,719331635,TM396084
Department of Health,Worcestershire Acute Hospitals NHST,2017-01-31,Consultant,Oncology Medical Staff,UNIVERSITY HOSPITALS COVENTRY&WARWICKSHIRE NHS TRUST,21445137,15581.98,654949096,1000050308
Department of Health,Worcestershire Acute Hospitals NHST,2017-01-31,Secndd staff frm othr org,Neurology,UNIVERSITY HOSPITALS COVENTRY&WARWICKSHIRE NHS TRUST,21445137,9374.12,654949096,1000050308
Department of Health,Worcestershire Acute Hospitals NHST,2017-01-31,Secndd staff frm othr org,Radiotherapy WRH,UNIVERSITY HOSPITALS COVENTRY&WARWICKSHIRE NHS TRUST,21445137,16865.69,654949096,1000050308
Department of Health,Worcestershire Acute Hospitals NHST,2017-01-31,External Consultancy Fees,Pulmonary Rehab Nursing TCS,HALLIDAY QUINN LTD,21445140,90,,HQSHNV334
Department of Health,Worcestershire Acute Hospitals NHST,2017-01-31,Occ Therapist band 6,Occupational Therapy,CARE4HEALTH LTD,21445143,1014.66,695611408,142588
Department of Health,Worcestershire Acute Hospitals NHST,2017-01-31,SrvcsRecd-Other NHS,CVI's - DAF's 2007-08,WORCESTERSHIRE HOSPITAL SPC PLC,21445146,19661.93,726543822,9513
Department of Health,Worcestershire Acute Hospitals NHST,2017-01-31,Other recvables - Current,Balance Sheet,WORCESTERSHIRE HOSPITAL SPC PLC,21445150,665.52,726543822,9521
Department of Health,Worcestershire Acute Hospitals NHST,2017-01-31,SrvcsRecd-Other NHS,A+E Meals,WORCESTERSHIRE HOSPITAL SPC PLC,21445150,8372.96,726543822,9521
Department of Health,Worcestershire Acute Hospitals NHST,2017-01-31,SrvcsRecd-Other NHS,Better Hospital Food,WORCESTERSHIRE HOSPITAL SPC PLC,21445150,27325.46,726543822,9521
Department of Health,Worcestershire Acute Hospitals NHST,2017-01-31,External Consultancy Fees,Central Serv,FRA ASSOCIATES LTD,21445153,10116,793026521,M4P1Y16
Department of Health,Worcestershire Acute Hospitals NHST,2017-01-31,Agency Med SHO & HO,Older People Medics- Acon,MEDILINK CONSULTING LTD,21445156,2310.7,,PIN27978
Department of Health,Worcestershire Acute Hospitals NHST,2017-01-31,Other Agency Staff,Clinical Effectiveness,PEACH RECRUITMENT,21445159,634.5,793238990,28330
Department of Health,Worcestershire Acute Hospitals NHST,2017-01-31,Occ Therapist band 6,Occupational Therapy,SUGARMAN GROUP LTD,21445162,1199.59,719331635,TM397361
Department of Health,Worcestershire Acute Hospitals NHST,2017-01-31,Occ Therapist band 6,Occupational Therapy,CARE4HEALTH LTD,21445166,1014.76,695611408,142592
Department of Health,Worcestershire Acute Hospitals NHST,2017-01-31,Data Lines,IT System - Network + Servers,VODAFONE LTD,21445170,399.12,569953277,CTN443377
Department of Health,Worcestershire Acute Hospitals NHST,2017-01-31,Other Agency Staff,Technical Serv- No Spec,MEDICAL ROOM LTD,21445173,1229.86,915796387,103095
Department of Health,Worcestershire Acute Hospitals NHST,2017-01-31,Other Agency Staff,Physiotherapy,PLACEMENT GROUP (UK) LTD,21445176,1255.5,849065107,10171734
Department of Health,Worcestershire Acute Hospitals NHST,2017-01-31,Other Agency Staff,Technical Serv- No Spec,MEDICAL ROOM LTD,21445178,1255.5,915796387,103073
Department of Health,Worcestershire Acute Hospitals NHST,2017-01-31,Other Agency Staff,Technical Serv- No Spec,RULLION ENGINEERING LTD,21445181,1556.82,,1519793
Department of Health,Worcestershire Acute Hospitals NHST,2017-01-31,Other Agency Staff,Technical Serv- No Spec,RULLION ENGINEERING LTD,21445185,1590.3,,1522620
Department of Health,Worcestershire Acute Hospitals NHST,2017-01-31,Other Agency Staff,Special Measures,PRACTICUS LTD,21445188,2700,831564434,68118
Department of Health,Worcestershire Acute Hospitals NHST,2017-01-31,External Consultancy Fees,Occupational Health,NETWORK OF STAFF SUPPORTERS LTD,21445191,45,763172627,8330WFDC
Department of Health,Worcestershire Acute Hospitals NHST,2017-01-31,Stocks Finished Goods,Balance Sheet,NHS BLOOD & TRANSPLANT,21445193,1064.44,654961603,858105
Department of Health,Worcestershire Acute Hospitals NHST,2017-01-31,Laboratory Chemicals,Histology,ROCHE DIAGNOSTICS LTD,21445195,-6039.47,684424418,6565017033
Department of Health,Worcestershire Acute Hospitals NHST,2017-01-31,Services Received - NHSTs,Antenatal clinic,SANDWELL&WEST BIRMINGHAM HOSPITALS NHS TRUST,21445197,-629,654916216,8119497
Department of Health,Worcestershire Acute Hospitals NHST,2017-01-31,Other Agency Staff,Trust Transport,PERTEMPS RECRUITMENT PARTNERSHIP LTD,21445200,220.42,844278800,252P267679
Department of Health,Worcestershire Acute Hospitals NHST,2017-01-31,Agency Med SHO & HO,Older People Medics- Acon,MEDILINK CONSULTING LTD,21445202,2324.42,,PIN28158
Department of Health,Worcestershire Acute Hospitals NHST,2017-01-31,Course Fees,General Training,ORION HEALTH LTD,21445204,5100,782641805,124077
Department of Health,Worcestershire Acute Hospitals NHST,2017-01-31,Services Received - NHSTs,Antenatal clinic,HEART OF ENGLAND NHS FOUNDATION TRUST,21445205,-2487.92,654912816,950356
Department of Health,Worcestershire Acute Hospitals NHST,2017-01-31,Medical Gases,Porters- No Spec,BOC LTD,21445207,270.55,226556555,3039195731
Department of Health,Worcestershire Acute Hospitals NHST,2017-01-31,Medical Gases,Portering,BOC LTD,21445209,145.51,226556555,3039175369
Department of Health,Worcestershire Acute Hospitals NHST,2017-01-31,Medical Gases,Portering,BOC LTD,21445211,124.17,226556555,3039173624
Department of Health,Worcestershire Acute Hospitals NHST,2017-01-31,Laboratory External Tests,Respiratory Medics,UNIVERSITY HOSPITAL BIRMINGHAM NHS FOUNDATION TRUST,21445213,3417.18,654965101,OPT036215
Department of Health,Worcestershire Acute Hospitals NHST,2017-01-31,Postage & Carriage,Biochemistry,TNT UK LTD,21445216,43.43,354715057,3391979
Department of Health,Worcestershire Acute Hospitals NHST,2017-01-31,Stocks Finished Goods,Balance Sheet,NHS BLOOD & TRANSPLANT,21445217,108.84,654961603,613347
Department of Health,Worcestershire Acute Hospitals NHST,2017-01-31,Stocks Finished Goods,Balance Sheet,NHS BLOOD & TRANSPLANT,21445219,471.76,654961603,613059
Department of Health,Worcestershire Acute Hospitals NHST,2017-01-31,Taxi & Other Vehicle Hire,Bereavement Service,CO OPERATIVE FUNERALCARE SERVICES,21445221,220,403314604,07070001492
Department of Health,Worcestershire Acute Hospitals NHST,2017-01-31,External Consultancy Fees,Pulmonary Rehab Nursing TCS,HALLIDAY QUINN LTD,21445223,90,,HQSHNV346
Department of Health,Worcestershire Acute Hospitals NHST,2017-01-31,Other Agency Staff,Technical Serv- No Spec,RULLION ENGINEERING LTD,21445225,1565.2,,1527741
Department of Health,Worcestershire Acute Hospitals NHST,2017-01-31,SrvcsRecd-Other NHS,Kings Court,ISS MEDICLEAN LTD,21445227,4589.86,417115775,SLINV35098704
Department of Health,Worcestershire Acute Hospitals NHST,2017-01-31,SrvcsRecd-Other NHS,New Hospital Impl Admin,ISS MEDICLEAN LTD,21445227,2661.12,417115775,SLINV35098704
Department of Health,Worcestershire Acute Hospitals NHST,2017-01-31,SrvcsRecd-Other NHS,PFI- Unitary Payments,ISS MEDICLEAN LTD,21445227,6462.72,417115775,SLINV35098704
Department of Health,Worcestershire Acute Hospitals NHST,2017-01-31,Other Agency Staff,Clinical Effectiveness,PEACH RECRUITMENT,21445229,551.7,793238990,28357
Department of Health,Worcestershire Acute Hospitals NHST,2017-01-31,Occ Therapist band 6,Occupational Therapy,CARE4HEALTH LTD,21445231,1238.76,695611408,142632
Department of Health,Worcestershire Acute Hospitals NHST,2017-01-31,Medical Gases,Porters- No Spec,BOC LTD,21445233,224.55,226556555,3039173619
Department of Health,Worcestershire Acute Hospitals NHST,2017-01-31,Packing & Storage,Day Unit Colposcopy Gynae,IRON MOUNTAIN (UK) LTD,21445235,110.33,607937516,0434842
Department of Health,Worcestershire Acute Hospitals NHST,2017-01-31,Packing & Storage,Day Unit Colposcopy Gynae,IRON MOUNTAIN (UK) LTD,21445237,110.33,607937516,0434844
Department of Health,Worcestershire Acute Hospitals NHST,2017-01-31,Occ Therapist band 6,Occupational Therapy,CARE4HEALTH LTD,21445239,933.58,695611408,142633
Department of Health,Worcestershire Acute Hospitals NHST,2017-01-31,Occ Therapist band 6,Occupational Therapy,SUGARMAN GROUP LTD,21445241,251.1,719331635,TM398557
Department of Health,Worcestershire Acute Hospitals NHST,2017-01-31,Fleet Vehicle Leases,Trust Transport,LEX AUTOLEASE LTD,21445243,660.32,244155576,EXI1015137
Department of Health,Worcestershire Acute Hospitals NHST,2017-01-31,Secndd staff frm othr org,Paeds Med Staff KGH,BIRMINGHAM CHILDRENS HOSPITAL NHS FOUNDATION TRUST,21445245,3479.75,654964300,15684289
Department of Health,Worcestershire Acute Hospitals NHST,2017-01-31,Services Received - NHSTs,Antenatal clinic,BIRMINGHAM WOMENS NHS FOUNDATION TRUST,21445246,-33.54,654912914,OPC013793
Department of Health,Worcestershire Acute Hospitals NHST,2017-01-31,Agency Med SHO & HO,Older People Medics- Acon,MEDILINK CONSULTING LTD,21445249,1390.92,,PIN28329
Department of Health,Worcestershire Acute Hospitals NHST,2017-01-31,Med & Surg Equip General,Satellite RenalDialy Unit,ALS LIFE SCIENCES LTD,21445251,124.74,,161815
Department of Health,Worcestershire Acute Hospitals NHST,2017-01-31,Medical Gases,Other Pass Throughs,WORCESTERSHIRE HOSPITAL SPC PLC,21445253,51.36,726543822,9524
Department of Health,Worcestershire Acute Hospitals NHST,2017-01-31,Medical Gases,Other Pass Throughs,WORCESTERSHIRE HOSPITAL SPC PLC,21445255,17570.06,726543822,9523
Department of Health,Worcestershire Acute Hospitals NHST,2017-01-31,SrvcsRecd-Other NHS,Better Hospital Food,WORCESTERSHIRE HOSPITAL SPC PLC,21445257,1956.9,726543822,9530
Department of Health,Worcestershire Acute Hospitals NHST,2017-01-31,SrvcsRecd-Other NHS,CVI's - DAF's 2007-08,WORCESTERSHIRE HOSPITAL SPC PLC,21445259,5845.67,726543822,9527
Department of Health,Worcestershire Acute Hospitals NHST,2017-01-31,SrvcsRecd-Other NHS,PFI- Unitary Payments,WORCESTERSHIRE HOSPITAL SPC PLC,21445261,-117.96,726543822,9528CR
Department of Health,Worcestershire Acute Hospitals NHST,2017-01-31,SrvcsRecd-Other NHS,Better Hospital Food,WORCESTERSHIRE HOSPITAL SPC PLC,21445262,-6696.98,726543822,9531CR
Department of Health,Worcestershire Acute Hospitals NHST,2017-01-31,Provisions,Catering Dept-No Spec,GOOD FOOD CHAIN,21445265,115.63,,598792
Department of Health,Worcestershire Acute Hospitals NHST,2017-01-31,Occ Therapist band 6,Occupational Therapy,CARE4HEALTH LTD,21445266,920.04,695611408,142683
Department of Health,Worcestershire Acute Hospitals NHST,2017-01-31,Other Agency Staff,Radiology Dept WRH,GLOBE LOCUMS LTD,21445268,713.57,,72727
Department of Health,Worcestershire Acute Hospitals NHST,2017-01-31,Postage & Carriage,Biochemistry,TNT UK LTD,21445270,65.14,354715057,3411506
Department of Health,Worcestershire Acute Hospitals NHST,2017-01-31,Occ Therapist band 6,Occupational Therapy,CARE4HEALTH LTD,21445272,736.56,695611408,142682
Department of Health,Worcestershire Acute Hospitals NHST,2017-01-31,Other Agency Staff,SLA Split of income,NHS PROFESSIONALS LTD,21445274,53777.72,654434043,I000000494P
Department of Health,Worcestershire Acute Hospitals NHST,2017-01-31,Med & Surg Equip General,Satellite RenalDialy Unit,ALS LIFE SCIENCES LTD,21445276,135.22,,162099
Department of Health,Worcestershire Acute Hospitals NHST,2017-01-31,Dietetic Products,Acute Stroke Unit,AAH PHARMACEUTICALS LTD,21445280,47.44,546573322,84185391P
Department of Health,Worcestershire Acute Hospitals NHST,2017-01-31,Dietetic Products,Acute Stroke Unit,AAH PHARMACEUTICALS LTD,21445282,72.88,546573322,84185154N
Department of Health,Worcestershire Acute Hospitals NHST,2017-01-31,Course Fees,Chief Executive,MAINSTREAM DEVELOPMENT,21445284,800,,1139
Department of Health,Worcestershire Acute Hospitals NHST,2017-01-31,Provisions,Catering Dept-No Spec,WELLS FARM DAIRY,21445318,1054.98,,12094101216
Department of Health,Worcestershire Acute Hospitals NHST,2017-01-31,Bldg/Eng Equip Maint Cont,Estates Bewdley Road,FRONTIER-PITTS LTD,21445319,341.8,528652330,SI071425
Department of Health,Worcestershire Acute Hospitals NHST,2017-01-31,Materials - Building,Engineering- No Special,CITY PLUMBING SUPPLIES,21445321,95.49,,2194AAO456
Department of Health,Worcestershire Acute Hospitals NHST,2017-01-31,Materials - Building,Engineering- No Special,CITY PLUMBING SUPPLIES,21445322,943.76,,2194AAO411
Department of Health,Worcestershire Acute Hospitals NHST,2017-01-31,Med & Surg Equip Repair,Technical Serv Dept,CARL ZEISS LTD,21445323,399.6,232508978,5140358989
Department of Health,Worcestershire Acute Hospitals NHST,2017-01-31,Med & Surg Equip Disp,Cardiac Cath Lab,BOSTON SCIENTIFIC LTD,21445325,151.2,896105403,7161560362
Department of Health,Worcestershire Acute Hospitals NHST,2017-01-31,Med & Surg Equip General,Alex Theatre - Scrub,BOSTON SCIENTIFIC LTD,21445327,990,896105403,7161567009
Department of Health,Worcestershire Acute Hospitals NHST,2017-01-31,Med & Surg Equip Disp,Cardiac Cath Lab,BOSTON SCIENTIFIC LTD,21445330,50.4,896105403,7161557860
Department of Health,Worcestershire Acute Hospitals NHST,2017-01-31,Med & Surg Equip Disp,Cardiac Cath Lab,BOSTON SCIENTIFIC LTD,21445334,50.4,896105403,7161584946
Department of Health,Worcestershire Acute Hospitals NHST,2017-01-31,Cleaning Equipment,Alex Theatre - Scrub,PURPLE SURGICAL UK LTD,21445338,58.04,229120979,656856
Department of Health,Worcestershire Acute Hospitals NHST,2017-01-31,Med & Surg Equip Disp,Endoscopy Alex,BOSTON SCIENTIFIC LTD,21445341,5437.38,896105403,7161573419
Department of Health,Worcestershire Acute Hospitals NHST,2017-01-31,Patients Appl: Purchase,Accident + Emergency,OSSUR UK,21445345,215.64,572395027,SIUK415123
Department of Health,Worcestershire Acute Hospitals NHST,2017-01-31,Stents,Cardiac Cath Lab,MEDTRONIC LTD,21445350,240,467254526,1051623261
Department of Health,Worcestershire Acute Hospitals NHST,2017-01-31,Med & Surg Equip General,Main Theatre,MEDTRONIC LTD,21445354,396,467254526,1051623772
Department of Health,Worcestershire Acute Hospitals NHST,2017-01-31,Med & Surg Equip General,Theatre,JOHNSON & JOHNSON MEDICAL LTD,21445359,1702.66,592926302,17000884
Department of Health,Worcestershire Acute Hospitals NHST,2017-01-31,Prostheses - Knees,T&O Medical,STRYKER UK LTD,21445365,811.44,787438865,27922045
Department of Health,Worcestershire Acute Hospitals NHST,2017-01-31,Surg Instruments General,Theatre,MEDTRONIC LTD,21445370,542.4,467254526,1051623262
Department of Health,Worcestershire Acute Hospitals NHST,2017-01-31,Surg Instruments General,Main Theatre,MEDTRONIC LTD,21445374,134.4,467254526,1051623770
Department of Health,Worcestershire Acute Hospitals NHST,2017-01-31,Surg Instruments General,Main Theatre,MEDTRONIC LTD,21445378,220.8,467254526,1051623771
Department of Health,Worcestershire Acute Hospitals NHST,2017-01-31,Provisions,Catering Dept-No Spec,PELICAN ROUGE COFFEE SOLUTIONS LTD,21445382,719.52,,160102828
Department of Health,Worcestershire Acute Hospitals NHST,2017-01-31,Med & Surg Equip General,Technical Serv- No Spec,WELCH ALLYN UK LTD,21445388,158.21,533124384,9000276778
Department of Health,Worcestershire Acute Hospitals NHST,2017-01-31,Course Fees,Estates-No Spec,QUBE GLOBAL SOFTWARE LTD,21445392,3100,,0000012162
Department of Health,Worcestershire Acute Hospitals NHST,2017-01-31,Med & Surg Equip Disp,Cardiac Cath Lab,MEDTRONIC LTD,21445397,529.2,467254526,1051623267
Department of Health,Worcestershire Acute Hospitals NHST,2017-01-31,Provisions,Catering Dept-No Spec,PELICAN ROUGE COFFEE SOLUTIONS LTD,21445401,118.56,,160102329
Department of Health,Worcestershire Acute Hospitals NHST,2017-01-31,Med & Surg Equip Disp,Endoscopy,BOSTON SCIENTIFIC LTD,21445408,27699.37,896105403,7161486232
Department of Health,Worcestershire Acute Hospitals NHST,2017-01-31,Cleaning Materials,Domestic Serv,NOBISCO LTD,21445410,49.73,,464167
Department of Health,Worcestershire Acute Hospitals NHST,2017-01-31,Medical Gases,Estates-No Spec,BOC LTD,21445415,947.75,226556555,3039201825
Department of Health,Worcestershire Acute Hospitals NHST,2017-01-31,Stents,Cardiac Cath Lab,CARDINAL HEALTH UK 432 LTD,21445419,66.96,,4400011370
Department of Health,Worcestershire Acute Hospitals NHST,2017-01-31,Cleaning Materials,Domestic Serv,NOBISCO LTD,21445422,117.02,,464168
Department of Health,Worcestershire Acute Hospitals NHST,2017-01-31,Med & Surg Equip Disp,Cardiac Cath Lab,BOSTON SCIENTIFIC LTD,21445423,453.6,896105403,7161512189
Department of Health,Worcestershire Acute Hospitals NHST,2017-01-31,Stents,Cardiac Cath Lab,BOSTON SCIENTIFIC LTD,21445423,318,896105403,7161512189
Department of Health,Worcestershire Acute Hospitals NHST,2017-01-31,Engineering Contracts,Engineering- No Special,SAACKE COMBUSTION SERVICES LTD,21445425,350.14,989179735,21211
Department of Health,Worcestershire Acute Hospitals NHST,2017-01-31,Med & Surg Equip Repair,Ward 14,VERATHON MEDICAL (UK) LTD,21445428,154.95,727290036,ARIUK040632
Department of Health,Worcestershire Acute Hospitals NHST,2017-01-31,Med & Surg Equip Disp,Endoscopy,BOSTON SCIENTIFIC LTD,21445431,16189.94,896105403,7161584947
Department of Health,Worcestershire Acute Hospitals NHST,2017-01-31,Med & Surg Equip Disp,Endoscopy,BOSTON SCIENTIFIC LTD,21445434,29036.93,896105403,7161573723
Department of Health,Worcestershire Acute Hospitals NHST,2017-01-31,Med & Surg Equip Disp,Endoscopy,BOSTON SCIENTIFIC LTD,21445436,15023.81,896105403,7161563891
Department of Health,Worcestershire Acute Hospitals NHST,2017-01-31,Med & Surg Equip Disp,Endoscopy Alex,BOSTON SCIENTIFIC LTD,21445440,6762.26,896105403,7161563602
Department of Health,Worcestershire Acute Hospitals NHST,2017-01-31,Laboratory Chemicals,Histology,ROCHE DIAGNOSTICS LTD,21445442,155.16,684424418,6570691258
Department of Health,Worcestershire Acute Hospitals NHST,2017-01-31,Surg Instruments General,Oral Surg Out-Patients,MERCIAN SURGICAL SUPPLY CO LTD,21445445,1021.2,110668004,0000091635
Department of Health,Worcestershire Acute Hospitals NHST,2017-01-31,Engineering Contracts,Engineering- No Special,INDUSTRIAL REFRIGERATION SERVICES LTD,21445448,1543.95,,523220
Department of Health,Worcestershire Acute Hospitals NHST,2017-01-31,AUC Additions,Balance Sheet,PORTAKABIN LTD,21445451,10036,551855234,900764313
Department of Health,Worcestershire Acute Hospitals NHST,2017-01-31,Surg Instruments General,Theatre,TELEFLEX MEDICAL,21445454,1789.2,765368296,0989542486
Department of Health,Worcestershire Acute Hospitals NHST,2017-01-31,Staff Uniforms & Clothing,Home Oxygen Service,RELIANCE HIGH-TECH LTD,21445457,46.24,340833571,SLINV00048004
Department of Health,Worcestershire Acute Hospitals NHST,2017-01-31,Payroll Ded'ns N/S Curr,Balance Sheet,ONE-OFF SUPPLIER,21446177,1044.86,,149615-03-JAN-2017
Department of Health,Worcestershire Acute Hospitals NHST,2017-01-31,Contact lenses & glasses,Ophthalmology,ONE-OFF SUPPLIER,21446180,641.4,,149616-04-JAN-2017
Department of Health,Worcestershire Acute Hospitals NHST,2017-01-31,External Consultancy Fees,Occupational Health,SYNERGY HEALTH LABORATORY SERVICES LTD,21446181,89.27,908624612,149617-04-JAN-2017
Department of Health,Worcestershire Acute Hospitals NHST,2017-01-31,Postage & Carriage,Other Pass Throughs,ROYAL MAIL,21446188,3470.72,243170002,149619-04-JAN-2017
Department of Health,Worcestershire Acute Hospitals NHST,2017-01-31,VAT Cont Out Serv Inp Tax,Balance Sheet,ROYAL MAIL,21446188,687.49,243170002,149619-04-JAN-2017
Department of Health,Worcestershire Acute Hospitals NHST,2017-01-31,Postage & Carriage,Other Pass Throughs,ROYAL MAIL,21446190,3590.98,243170002,149621-04-JAN-2017
Department of Health,Worcestershire Acute Hospitals NHST,2017-01-31,VAT Cont Out Serv Inp Tax,Balance Sheet,ROYAL MAIL,21446190,718.2,243170002,149621-04-JAN-2017
Department of Health,Worcestershire Acute Hospitals NHST,2017-01-31,Postage & Carriage,Other Pass Throughs,ROYAL MAIL,21446191,1864.37,243170002,149620-04-JAN-2017
Department of Health,Worcestershire Acute Hospitals NHST,2017-01-31,VAT Cont Out Serv Inp Tax,Balance Sheet,ROYAL MAIL,21446191,370.37,243170002,149620-04-JAN-2017
Department of Health,Worcestershire Acute Hospitals NHST,2017-01-31,External Consultancy Fees,Special Measures,VERTO VIS LLP,21446192,16867.2,,149618-04-JAN-2017
Department of Health,Worcestershire Acute Hospitals NHST,2017-01-31,Prostheses - Hips,T&O Medical,STRYKER UK LTD,21446913,183.6,787438865,27922042
Department of Health,Worcestershire Acute Hospitals NHST,2017-01-31,Prostheses - Hips,Alex Theatre - Scrub,STRYKER UK LTD,21446918,719.88,787438865,27922047
Department of Health,Worcestershire Acute Hospitals NHST,2017-01-31,Med & Surg Equip General,Radiology Dept Alex,COOK (UK) LTD,21446922,270,,16099237
Department of Health,Worcestershire Acute Hospitals NHST,2017-01-31,Provisions,Catering Dept-No Spec,PELICAN ROUGE COFFEE SOLUTIONS LTD,21446928,176.4,,160107051
Department of Health,Worcestershire Acute Hospitals NHST,2017-01-31,Prostheses - Hips,T&O Medical,STRYKER UK LTD,21446933,1036.56,787438865,27921232
Department of Health,Worcestershire Acute Hospitals NHST,2017-01-31,Prostheses - Hips,T&O Medical,STRYKER UK LTD,21446938,360,787438865,27921220
Department of Health,Worcestershire Acute Hospitals NHST,2017-01-31,Med & Surg Equip Disp,Chemotherapy Garden Suite,MACO PHARMA UK LTD,21446942,201.6,626877105,16012078
Department of Health,Worcestershire Acute Hospitals NHST,2017-01-31,Prostheses - Knees,T&O Medical,STRYKER UK LTD,21446945,318,787438865,27922058
Department of Health,Worcestershire Acute Hospitals NHST,2017-01-31,Prostheses - Hips,T&O Medical,STRYKER UK LTD,21446946,561.36,787438865,27921222
Department of Health,Worcestershire Acute Hospitals NHST,2017-01-31,Med & Surg Equip Disp,Avon Discharge,MACO PHARMA UK LTD,21446948,403.68,626877105,16012016
Department of Health,Worcestershire Acute Hospitals NHST,2017-01-31,Prostheses - Hips,T&O Medical,STRYKER UK LTD,21446952,792,787438865,27921236
Department of Health,Worcestershire Acute Hospitals NHST,2017-01-31,Prostheses - Knees,T&O Medical,STRYKER UK LTD,21446952,1083.6,787438865,27921236
Department of Health,Worcestershire Acute Hospitals NHST,2017-01-31,Prostheses - Hips,T&O Medical,STRYKER UK LTD,21446954,518.28,787438865,27922060
Department of Health,Worcestershire Acute Hospitals NHST,2017-01-31,Prostheses - Hips,T&O Medical,STRYKER UK LTD,21446957,183.6,787438865,27922041
Department of Health,Worcestershire Acute Hospitals NHST,2017-01-31,Med & Surg Equip General,Alex Theatre - Scrub,MEDLINE INDUSTRIES LTD,21446960,138,108219140,16GB72396
Department of Health,Worcestershire Acute Hospitals NHST,2017-01-31,Prostheses - Hips,T&O Medical,STRYKER UK LTD,21446963,518.28,787438865,27921234
Department of Health,Worcestershire Acute Hospitals NHST,2017-01-31,Med & Surg Equip Disp,Theatre,OLYMPUS KEYMED,21446966,667.3,250317495,CD2256970
Department of Health,Worcestershire Acute Hospitals NHST,2017-01-31,Surg Instruments Disp,WRH Dermatology,SCHUCO INTERNATIONAL (LONDON) LTD,21446970,475.2,229551160,INV47090
Department of Health,Worcestershire Acute Hospitals NHST,2017-01-31,Stents,Cardiac Cath Lab,VOLCANO EUROPE BVBA,21446971,4000,BE 0859842345,SI16180B2
Department of Health,Worcestershire Acute Hospitals NHST,2017-01-31,Computer Maintenance,Dir of IT,IUVO LTD,21446974,2200,704807641,IL1612096
Department of Health,Worcestershire Acute Hospitals NHST,2017-01-31,Stents,Cardiac Cath Lab,BIOSENSORS EUROPE SA,21446976,1525,,930075119
Department of Health,Worcestershire Acute Hospitals NHST,2017-01-31,Stents,Cardiac Cath Lab,BIOSENSORS EUROPE SA,21446977,1115,,930075031
Department of Health,Worcestershire Acute Hospitals NHST,2017-01-31,Materials - Building,Building- No Spec,WORKING AT HEIGHT LTD,21446979,2200,,WAH10742
Department of Health,Worcestershire Acute Hospitals NHST,2017-01-31,Stents,Cardiac Cath Lab,BIOSENSORS EUROPE SA,21446980,645,,930074907
Department of Health,Worcestershire Acute Hospitals NHST,2017-01-31,Surg Instruments Disp,Alex Theatre - Scrub,HOLOGIC LTD,21446981,1620,GB560664536,1763811
Department of Health,Worcestershire Acute Hospitals NHST,2017-01-31,Prostheses - Knees,T&O Medical,STRYKER UK LTD,21446983,2485.2,787438865,27922054
Department of Health,Worcestershire Acute Hospitals NHST,2017-01-31,Enteral Feeding,Endoscopy,AAH PHARMACEUTICALS LTD,21446985,465.12,546573322,84188119W
Department of Health,Worcestershire Acute Hospitals NHST,2017-01-31,Laboratory Chemicals,Histology,GENTA MEDICAL,21446987,2750.4,664750711,135599
Department of Health,Worcestershire Acute Hospitals NHST,2017-01-31,Laboratory Reagents,Histology,GENTA MEDICAL,21446987,624,664750711,135599
Department of Health,Worcestershire Acute Hospitals NHST,2017-01-31,Commissioning CHC,Histology,GENTA MEDICAL,21446989,324,664750711,135603
Department of Health,Worcestershire Acute Hospitals NHST,2017-01-31,Surg Instruments General,WRH Dermatology,MEDISAVE UK LTD,21446991,189.6,760460346,1139476
Department of Health,Worcestershire Acute Hospitals NHST,2017-01-31,Stationery,Pulmonary Rehab Nursing TCS,1ST CALL MOBILITY,21446993,570,802644060,H48616
Department of Health,Worcestershire Acute Hospitals NHST,2017-01-31,Equip Maint Contracts,Radiotherapy WRH,ONCOLOGY IMAGING SYSTEMS LTD,21446995,13068.75,724924329,207516
Department of Health,Worcestershire Acute Hospitals NHST,2017-01-31,Anaesthetics Accessories,Respiratory Support,RESMED UK LTD,21446997,28.8,596479469,2000065523
Department of Health,Worcestershire Acute Hospitals NHST,2017-01-31,Med & Surg Equip General,T&O Medical,JOHNSON & JOHNSON MEDICAL LTD,21455304,394.99,592926302,149622-04-JAN-2017
Department of Health,Worcestershire Acute Hospitals NHST,2017-01-31,Prostheses,T&O Medical,JOHNSON & JOHNSON MEDICAL LTD,21455306,54,592926302,149624-04-JAN-2017
Department of Health,Worcestershire Acute Hospitals NHST,2017-01-31,Contact lenses & glasses,Ophthalmology,ONE-OFF SUPPLIER,21455309,103.3,,149625-04-JAN-2017
Department of Health,Worcestershire Acute Hospitals NHST,2017-01-31,Comps Ex Gratia,Losses and Compensation,ONE-OFF SUPPLIER,21455310,410,,149626-05-JAN-2017
Department of Health,Worcestershire Acute Hospitals NHST,2017-01-31,Comps Ex Gratia,Losses and Compensation,ONE-OFF SUPPLIER,21455311,233.7,,149628-05-JAN-2017
Department of Health,Worcestershire Acute Hospitals NHST,2017-01-31,Comps Ex Gratia,Losses and Compensation,ONE-OFF SUPPLIER,21455312,37.5,,149627-05-JAN-2017
Department of Health,Worcestershire Acute Hospitals NHST,2017-01-31,Other recvables - Current,Balance Sheet,ONE-OFF SUPPLIER,21455313,1014,,149630-05-JAN-2017
Department of Health,Worcestershire Acute Hospitals NHST,2017-01-31,Course Fees,Occupational Therapy,ONE-OFF SUPPLIER,21455314,3659.25,,149629-05-JAN-2017
Department of Health,Worcestershire Acute Hospitals NHST,2017-01-31,Agency Other Medical,A+E Med Staffing WRH,DOCTORS ON CALL LTD,21456091,684,108252831,PIN21728
Department of Health,Worcestershire Acute Hospitals NHST,2017-01-31,Laboratory External Tests,Clinical Haematology- Med,HEART OF ENGLAND NHS FOUNDATION TRUST,21456093,166.26,654912816,146546
Department of Health,Worcestershire Acute Hospitals NHST,2017-01-31,Laboratory External Tests,Microbiology,HEART OF ENGLAND NHS FOUNDATION TRUST,21456093,16.26,654912816,146546
Department of Health,Worcestershire Acute Hospitals NHST,2017-01-31,Laboratory External Tests,Regional Spec (Clin Chem),HEART OF ENGLAND NHS FOUNDATION TRUST,21456093,166.4,654912816,146546
Department of Health,Worcestershire Acute Hospitals NHST,2017-01-31,Bldg/Eng Equip Maint/Rep,New Hospital Impl Admin,WORCESTERSHIRE HOSPITAL SPC PLC,21456096,6855.25,726543822,9425
Department of Health,Worcestershire Acute Hospitals NHST,2017-01-31,Medical Gases,Other Pass Throughs,WORCESTERSHIRE HOSPITAL SPC PLC,21456101,1521.04,726543822,9426
Department of Health,Worcestershire Acute Hospitals NHST,2017-01-31,Data Lines,IT System - COIN,BT PLC,21456105,5094,245719348-1,26082885Q032
Department of Health,Worcestershire Acute Hospitals NHST,2017-01-31,Med & Surg Equip General,Ophthalmic Nursing,WORCESTERSHIRE HOSPITAL SPC PLC,21456109,2562,726543822,9464
Department of Health,Worcestershire Acute Hospitals NHST,2017-01-31,Med & Surg Equip General,Ophthalmology,WORCESTERSHIRE HOSPITAL SPC PLC,21456109,1176.79,726543822,9464
Department of Health,Worcestershire Acute Hospitals NHST,2017-01-31,Med & Surg Equip General,Opthalmic Theatres Alex,WORCESTERSHIRE HOSPITAL SPC PLC,21456109,3699.96,726543822,9464
Department of Health,Worcestershire Acute Hospitals NHST,2017-01-31,Bldg/Eng Equip Maint/Rep,New Hospital Impl Admin,WORCESTERSHIRE HOSPITAL SPC PLC,21456115,4194.27,726543822,9473
Department of Health,Worcestershire Acute Hospitals NHST,2017-01-31,Computer Software/License,Xerox Contract,XEROX (UK) LTD,21456121,7454.5,232364682,900152738
Department of Health,Worcestershire Acute Hospitals NHST,2017-01-31,Laboratory External Tests,Regional Spec (Clin Chem),ROYAL LIVERPOOL&BROADGREEN UNIVERSITY HOSPITALS NHS TRUST (THE),21456127,94.1,654966000,8610059864
Department of Health,Worcestershire Acute Hospitals NHST,2017-01-31,Lease Cars: Contract,Hosp at Home Serv-Paeds,WORCESTERSHIRE HEALTH & CARE NHS TRUST,21456133,162.47,654973690,T022305
Department of Health,Worcestershire Acute Hospitals NHST,2017-01-31,Patients Travel Expenses,Treasury Mgt + Debtors,WORCESTERSHIRE HEALTH & CARE NHS TRUST,21456133,127.76,654973690,T022305
Department of Health,Worcestershire Acute Hospitals NHST,2017-01-31,Dietetic Products,Dietetics,WORCESTERSHIRE HOSPITAL SPC PLC,21456140,471.31,726543822,9491
Department of Health,Worcestershire Acute Hospitals NHST,2017-01-31,AUC Additions,Balance Sheet,WORCESTERSHIRE HOSPITAL SPC PLC,21456145,1936.54,726543822,9492
Department of Health,Worcestershire Acute Hospitals NHST,2017-01-31,Laboratory Bottles & Cont,Vacutainers,WORCESTERSHIRE HOSPITAL SPC PLC,21456149,44.76,726543822,9483
Department of Health,Worcestershire Acute Hospitals NHST,2017-01-31,Bldg/Eng Equip Maint/Rep,Endoscopy,WORCESTERSHIRE HOSPITAL SPC PLC,21456154,178.47,726543822,9484
Department of Health,Worcestershire Acute Hospitals NHST,2017-01-31,Bldg/Eng Equip Maint/Rep,MAU Silver Assessment Unit,WORCESTERSHIRE HOSPITAL SPC PLC,21456159,474.32,726543822,9486
Department of Health,Worcestershire Acute Hospitals NHST,2017-01-31,AUC Additions,Balance Sheet,WORCESTERSHIRE HOSPITAL SPC PLC,21456163,805.21,726543822,9488
Department of Health,Worcestershire Acute Hospitals NHST,2017-01-31,NonRes Bldg Additions,Balance Sheet,WORCESTERSHIRE HOSPITAL SPC PLC,21456168,3110.65,726543822,9489
Department of Health,Worcestershire Acute Hospitals NHST,2017-01-31,NonRes Bldg Additions,Balance Sheet,WORCESTERSHIRE HOSPITAL SPC PLC,21456172,6389.3,726543822,9490
Department of Health,Worcestershire Acute Hospitals NHST,2017-01-31,SrvcsRecd-Other NHS,CVI's - DAF's 2007-08,WORCESTERSHIRE HOSPITAL SPC PLC,21456176,1041.96,726543822,00235061
Department of Health,Worcestershire Acute Hospitals NHST,2017-01-31,Bldg/Eng Equip Maint/Rep,Riverbank Unit- Paeds,WORCESTERSHIRE HOSPITAL SPC PLC,21456182,6544.37,726543822,9493
Department of Health,Worcestershire Acute Hospitals NHST,2017-01-31,AUC Additions,Balance Sheet,WORCESTERSHIRE HOSPITAL SPC PLC,21456186,573.81,726543822,9494
Department of Health,Worcestershire Acute Hospitals NHST,2017-01-31,Data Lines,IT System - Network + Servers,BT GLOBAL SERVICES,21456192,403.52,245719348,0790198013
Department of Health,Worcestershire Acute Hospitals NHST,2017-01-31,Hcare Srv Rec NHS Trust,Gastroenterology Medics,HEART OF ENGLAND NHS FOUNDATION TRUST,21456198,3192,654912816,950030
Department of Health,Worcestershire Acute Hospitals NHST,2017-01-31,Hcare Srv Rec NHS Trust,Gastroenterology Medics,HEART OF ENGLAND NHS FOUNDATION TRUST,21456201,2660,654912816,950031
Department of Health,Worcestershire Acute Hospitals NHST,2017-01-31,Data Lines,IT System - COIN,BT GLOBAL SERVICES,21456205,5552,245719348,0790197121
Department of Health,Worcestershire Acute Hospitals NHST,2017-01-31,AUC Additions,Balance Sheet,PREMIER FACILITIES MANAGEMENT LTD,21456209,378,,95
Department of Health,Worcestershire Acute Hospitals NHST,2017-01-31,NonRes Bldg Additions,Balance Sheet,PREMIER FACILITIES MANAGEMENT LTD,21456209,8022,,95
Department of Health,Worcestershire Acute Hospitals NHST,2017-01-31,Data Lines,IT System - COIN,BT PLC,21456219,4436.52,245719348-1,26094631Q031
Department of Health,Worcestershire Acute Hospitals NHST,2017-01-31,Other Liabilities - Curr,Balance Sheet,NHS BUSINESS SERVICES AUTHORITY,21456224,21430.76,654434729,1000050394
Department of Health,Worcestershire Acute Hospitals NHST,2017-01-31,Medical Gases,Estates Bewdley Road,BOC LTD,21456229,470.68,226556555,3039172495
Department of Health,Worcestershire Acute Hospitals NHST,2017-01-31,Medical Gases,Estates Bewdley Road,BOC LTD,21456234,582.28,226556555,3039172496
Department of Health,Worcestershire Acute Hospitals NHST,2017-01-31,Medical Gases,Estates Bewdley Road,BOC LTD,21456237,619.48,226556555,3039172494
Department of Health,Worcestershire Acute Hospitals NHST,2017-01-31,NonNHS Trade Pybls Curr,Balance Sheet,NHS SUPPLY CHAIN,21456242,120428.89,654434729,1017186475
Department of Health,Worcestershire Acute Hospitals NHST,2017-01-31,NonNHS Trade Pybls Curr,Balance Sheet,NHS SUPPLY CHAIN,21456246,82343.01,654434729,1017186386
Department of Health,Worcestershire Acute Hospitals NHST,2017-01-31,NonNHS Trade Pybls Curr,Balance Sheet,NHS SUPPLY CHAIN,21456252,596.65,654434729,1017186435
Department of Health,Worcestershire Acute Hospitals NHST,2017-01-31,NonNHS Trade Pybls Curr,Balance Sheet,NHS SUPPLY CHAIN,21456257,19428.9,654434729,1017186398
Department of Health,Worcestershire Acute Hospitals NHST,2017-01-31,Other recvables - Current,Balance Sheet,GMP DRIVERCARE LTD,21456261,90,884164303,114796
Department of Health,Worcestershire Acute Hospitals NHST,2017-01-31,NonNHS Trade Pybls Curr,Balance Sheet,NHS SUPPLY CHAIN,21456273,2481.13,654434729,1017189412
Department of Health,Worcestershire Acute Hospitals NHST,2017-01-31,NonNHS Trade Pybls Curr,Balance Sheet,NHS SUPPLY CHAIN,21456276,68008.72,654434729,1017189428
Department of Health,Worcestershire Acute Hospitals NHST,2017-01-31,NonNHS Trade Pybls Curr,Balance Sheet,NHS SUPPLY CHAIN,21456281,34851.25,654434729,1017189370
Department of Health,Worcestershire Acute Hospitals NHST,2017-01-31,NonNHS Trade Pybls Curr,Balance Sheet,NHS SUPPLY CHAIN,21456288,9845.96,654434729,1017189388
Department of Health,Worcestershire Acute Hospitals NHST,2017-01-31,External Consultancy Fees,Financial Serv,LIAISON VAT CONSULTANCY LTD,21456293,9133.68,925449015,72141
Department of Health,Worcestershire Acute Hospitals NHST,2017-01-31,Course Fees,General Training,ORION HEALTH LTD,21456297,5100,782641805,124078
Department of Health,Worcestershire Acute Hospitals NHST,2017-01-31,Agency Other Medical,NTN Rheumatology Med,GENERAL MEDICINE GROUP LTD,21456303,5597.94,,GM149455
Department of Health,Worcestershire Acute Hospitals NHST,2017-01-31,Agency Other Medical,NTN Rheumatology Med,GENERAL MEDICINE GROUP LTD,21456308,5385.36,,GM149457
Department of Health,Worcestershire Acute Hospitals NHST,2017-01-31,Materials - Electrical,Heart Failure Nursing-Worcs TCS,RELIANCE HIGH-TECH LTD,21456312,115.58,340833571,SLINV00047944
Department of Health,Worcestershire Acute Hospitals NHST,2017-01-31,Agency Admin & Clerical,Treasury Mgt + Debtors,HAYS SPECIALIST RECRUITMENT LTD,21456318,241.8,,1007151576
Department of Health,Worcestershire Acute Hospitals NHST,2017-01-31,Other Agency Staff,Technical Serv- No Spec,RULLION ENGINEERING LTD,21456322,1607.04,,1530637
Department of Health,Worcestershire Acute Hospitals NHST,2017-01-31,Medical Gases,Portering,BOC LTD,21456327,83.28,226556555,3039216086
Department of Health,Worcestershire Acute Hospitals NHST,2017-01-31,Medical Gases,Porters- No Spec,BOC LTD,21456332,153.69,226556555,3039216082
Department of Health,Worcestershire Acute Hospitals NHST,2017-01-31,Stocks Finished Goods,Balance Sheet,ROYAL DEVON AND EXETER NHS FOUNDATION TRUST,21456336,155,,26344753
Department of Health,Worcestershire Acute Hospitals NHST,2017-01-31,Stocks Finished Goods,Balance Sheet,ROYAL DEVON AND EXETER NHS FOUNDATION TRUST,21456340,96,,26345051
Department of Health,Worcestershire Acute Hospitals NHST,2017-01-31,Stocks Finished Goods,Balance Sheet,ROYAL DEVON AND EXETER NHS FOUNDATION TRUST,21456344,856,,26345114
Department of Health,Worcestershire Acute Hospitals NHST,2017-01-31,Stocks Finished Goods,Balance Sheet,ROYAL DEVON AND EXETER NHS FOUNDATION TRUST,21456348,235,,26345095
Department of Health,Worcestershire Acute Hospitals NHST,2017-01-31,Med & Surg Equip Disp,Endoscopy,DIAGMED HEALTHCARE LTD,21458122,5076,392229344,HPSI135698
Department of Health,Worcestershire Acute Hospitals NHST,2017-01-31,Med & Surg Equip General,WRH ENT Theatre Non-Pay,PLATON MEDICAL LTD,21458126,295.2,661996684,92649
Department of Health,Worcestershire Acute Hospitals NHST,2017-01-31,Engineering Contracts,Engineering- No Special,ENVIROGEN WATER TECHNOLOGIES LTD,21458130,595,841026364,43392
Department of Health,Worcestershire Acute Hospitals NHST,2017-01-31,Bldg/Eng Equip Maint/Rep,Estates Bewdley Road,CITY ELECTRICAL FACTORS LTD,21458136,129.77,243901868,KID268718
Department of Health,Worcestershire Acute Hospitals NHST,2017-01-31,Bldg/Eng Equip Maint/Rep,Estates Bewdley Road,CITY ELECTRICAL FACTORS LTD,21458140,45.36,243901868,KID268778
Department of Health,Worcestershire Acute Hospitals NHST,2017-01-31,Prostheses,T&O Medical,WRIGHT MEDICAL UK LTD,21458143,64.8,677219993,163311RI
Department of Health,Worcestershire Acute Hospitals NHST,2017-01-31,Bldg/Eng Equip Maint/Rep,Estates Bewdley Road,SCREWFIX DIRECT,21458159,50.96,232555575,0763911348
Department of Health,Worcestershire Acute Hospitals NHST,2017-01-31,"Books, Journals & Subscr",Estates-No Spec,STATIONERY OFFICE,21458166,129.44,,26040360
Department of Health,Worcestershire Acute Hospitals NHST,2017-01-31,Med & Surg Equip General,WRH ENT Theatre Non-Pay,PLATON MEDICAL LTD,21458174,873.6,661996684,92595
Department of Health,Worcestershire Acute Hospitals NHST,2017-01-31,Med & Surg Equip General,Theatre,CAREFUSION UK 306 LTD,21458180,1510.4,884241217,5100578864
Department of Health,Worcestershire Acute Hospitals NHST,2017-01-31,Med & Surg Equip General,Main Theatre,VACSAX LTD,21458186,135.17,663611343,102855
Department of Health,Worcestershire Acute Hospitals NHST,2017-01-31,Materials - Electrical,Engineering- No Special,CITY ELECTRICAL FACTORS LTD,21458193,198.36,243901868,RED203708
Department of Health,Worcestershire Acute Hospitals NHST,2017-01-31,Sterile Products,Theatre,SQUADRON MEDICAL LTD,21458194,1495.12,398925088,9701701907
Department of Health,Worcestershire Acute Hospitals NHST,2017-01-31,Med & Surg Equip General,Laurel- Haematology Unit,WELCH ALLYN UK LTD,21458202,144,533124384,9000276872
Department of Health,Worcestershire Acute Hospitals NHST,2017-01-31,Land Book Value BF,Balance Sheet,FRESENIUS MEDICAL CARE UK LTD,21458209,307.2,674637108,1050545824
Department of Health,Worcestershire Acute Hospitals NHST,2017-01-31,Med & Surg Equip Disp,Satellite RenalDialy Unit,FRESENIUS MEDICAL CARE UK LTD,21458209,600,674637108,1050545824
Department of Health,Worcestershire Acute Hospitals NHST,2017-01-31,Stents,Radiology Dept WRH,MEDTRONIC LTD,21458215,182.4,467254526,1051624247
Department of Health,Worcestershire Acute Hospitals NHST,2017-01-31,Surg Instruments General,Theatre,MEDTRONIC LTD,21458222,475.2,467254526,1051624245
Department of Health,Worcestershire Acute Hospitals NHST,2017-01-31,Surg Instruments General,T&O Medical,JOHNSON & JOHNSON MEDICAL LTD,21458228,813.79,592926302,17002039
Department of Health,Worcestershire Acute Hospitals NHST,2017-01-31,Surg Instruments General,T&O Medical,JOHNSON & JOHNSON MEDICAL LTD,21458234,813.79,592926302,17002038
Department of Health,Worcestershire Acute Hospitals NHST,2017-01-31,Surg Instruments General,Main Theatre,JOHNSON & JOHNSON MEDICAL LTD,21458240,714.42,592926302,17002078
Department of Health,Worcestershire Acute Hospitals NHST,2017-01-31,Engineering Contracts,Engineering- No Special,TOWRITE ELECTRIC VEHICLES (HARBOROUGH) LTD,21458246,405.11,514010610,20335
Department of Health,Worcestershire Acute Hospitals NHST,2017-01-31,Stationery,Ward 3,LYRECO UK LTD,21458252,54.56,594371315,6751402190
Department of Health,Worcestershire Acute Hospitals NHST,2017-01-31,Sterile Products,Cardiac Cath Lab,KIMAL PLC,21458259,645.5,877639753,CD970426905
Department of Health,Worcestershire Acute Hospitals NHST,2017-01-31,Prostheses - Knees,T&O Medical,STRYKER UK LTD,21458274,811.44,787438865,27923670
Department of Health,Worcestershire Acute Hospitals NHST,2017-01-31,Dressings,Ward 9,ASPEN MEDICAL EUROPE LTD,21458280,79.01,111150247,218351
Department of Health,Worcestershire Acute Hospitals NHST,2017-01-31,Stents,Alex Theatre - Scrub,COOK (UK) LTD,21458284,153.82,,16099455
Department of Health,Worcestershire Acute Hospitals NHST,2017-01-31,Dressings,Beech A,KCI MEDICAL LTD,21458289,252.6,,1632946
Department of Health,Worcestershire Acute Hospitals NHST,2017-01-31,Med & Surg Equip Disp,Cardiac Cath Lab,BOSTON SCIENTIFIC LTD,21458299,50.4,896105403,7161586978
Department of Health,Worcestershire Acute Hospitals NHST,2017-01-31,Stents,Cardiac Cath Lab,BOSTON SCIENTIFIC LTD,21458301,72,896105403,7161586979
Department of Health,Worcestershire Acute Hospitals NHST,2017-01-31,Dressings,Ward 6 & CCU,ASPEN MEDICAL EUROPE LTD,21458304,103.63,111150247,218355
Department of Health,Worcestershire Acute Hospitals NHST,2017-01-31,NonRes Bldg Additions,Balance Sheet,PALL EUROPE LTD,21458307,4466.76,107772467,94738782
Department of Health,Worcestershire Acute Hospitals NHST,2017-01-31,Cleaning Materials,Doms Non Tender-No Spec,GV HEALTH LTD,21458310,1958.4,635758310,106397
Department of Health,Worcestershire Acute Hospitals NHST,2017-01-31,Cleaning Materials,Other Pass Throughs,DEKOMED LTD,21458312,2370,611311308,47911
Department of Health,Worcestershire Acute Hospitals NHST,2017-01-31,Patients Appl: Purchase,Out Patients All Clinics,TALAR MADE LTD,21458314,327.6,806199026,161415
Department of Health,Worcestershire Acute Hospitals NHST,2017-01-31,Med & Surg Equip General,WRH Vasc Theatre Non-Pay,MEDTRONIC LTD,21458426,1486.8,467254526,1051624240
Department of Health,Worcestershire Acute Hospitals NHST,2017-01-31,Stents,Radiology Dept WRH,MEDTRONIC LTD,21458428,97.2,467254526,1051624250
Department of Health,Worcestershire Acute Hospitals NHST,2017-01-31,Med & Surg Equip General,ICCU - Worcs,EDWARDS LIFESCIENCES LTD,21458431,-116.4,724574035,21627992
Department of Health,Worcestershire Acute Hospitals NHST,2017-01-31,Med & Surg Equip Repair,HSDU- Multi-Specialty,B BRAUN MEDICAL LTD,21458433,371.29,,392278591
Department of Health,Worcestershire Acute Hospitals NHST,2017-01-31,Land Book Value BF,Balance Sheet,FRESENIUS MEDICAL CARE UK LTD,21458436,465,674637108,1050545823
Department of Health,Worcestershire Acute Hospitals NHST,2017-01-31,Med & Surg Equip General,Satellite RenalDialy Unit,FRESENIUS MEDICAL CARE UK LTD,21458436,583.2,674637108,1050545823
Department of Health,Worcestershire Acute Hospitals NHST,2017-01-31,Surg Instruments General,Theatre,MEDTRONIC LTD,21458439,493.2,467254526,1051624244
Department of Health,Worcestershire Acute Hospitals NHST,2017-01-31,Med & Surg Equip Leases,T&O Medical,STRYKER UK LTD,21458442,3422.4,787438865,27922727
Department of Health,Worcestershire Acute Hospitals NHST,2017-01-31,Med & Surg Equip General,WRH Intra Op Fluid Mgt Consumables,EDWARDS LIFESCIENCES LTD,21458445,2419.2,724574035,21628031
Department of Health,Worcestershire Acute Hospitals NHST,2017-01-31,Med & Surg Equip Repair,ICCU - Worcs,ARJOHUNTLEIGH UK,21458446,907.47,GB382474630,78135
